Local authority department which incurred the expenditure,Service Division,Cost Centre,Summary of the Purpose of Expenditure,Expense Type,Expense Code,Detailed Expense Type,Date of Transaction,Transaction Number,Beneficiary,Merchant Category Number,Merchant Category,Gross Amount,VAT,Net Amount
Regeneration and Local Services,Culture & Sport,054813,Gala Theatre - Technical,Supplies and Services,304259,Equipment and Materials,01-Jan-2019,000008193837627,Prime Video MB37G3C04,5735,Equipment-purchase and rental,7.99,0.00,7.99
Regeneration and Local Services,Culture & Sport,054815,Gala Theatre Stage School,Supplies and Services,324117,Provisions E324,01-Jan-2019,000008193837683,TESCO STORES 2371,5411,Catering costs - provisions,13.00,0.00,13.00
Children and Young Peoples Services,Head of Childrens Social Care,085342,9 Cedar Drive Aycliffe,Supplies and Services,324117,Provisions E324,01-Jan-2019,000008193837889,SAINSBURYS SACAT 2082,5411,Catering costs - provisions,16.00,0.00,16.00
Children and Young Peoples Services,Head of Childrens Social Care,085342,9 Cedar Drive Aycliffe,Supplies and Services,348037,Subsistence E348,01-Jan-2019,000008193837893,THE CHINESE BUFFET,5814,Subsistence,77.36,12.89,64.47
Children and Young Peoples Services,Head of Education and Skills,071801,Selby Cottage Childcare Centre,Supplies and Services,324117,Provisions E324,02-Jan-2019,000008196374221,TESCO STORES 2278,5411,Catering costs - provisions,61.01,0.00,61.01
Resources,Finance & Transactional Services,065180,Collections,Charges,720130,Fees and Charges,02-Jan-2019,000008196374259,COMBINED COURT CEN,9222,Fees-legal,44.00,0.00,44.00
Resources,Digital and Customer Services,065212,Digital Durham,Supplies and Services,336005,Advertising E336,02-Jan-2019,000008196374269,Twitter Online Ads,7311,Advertising other than for staff,55.50,0.00,55.50
Resources,Digital and Customer Services,065487,ICT Telephony Recharges,Supplies and Services,344033,Telephones,02-Jan-2019,000008196374279,AMZN MKTP UK MB8Q95OF4,5942,Telephones general-all costs,149.50,0.00,149.50
Children and Young Peoples Services,Head of Childrens Social Care,085100,Strategic Manager Families First Area South,Supplies and Services,384199,Miscellaneous Expenses,02-Jan-2019,000008196374287,GRO HM PASSPORT OFFICE,9399,Other hired and contracted services,9.25,0.00,9.25
Children and Young Peoples Services,Head of Childrens Social Care,085357,Bespoke Placements,Transport,235057,Public Transport,02-Jan-2019,000008196374299,HOLIDAY PAYMENT VRUK,4722,Staff travelling,490.00,0.00,490.00
Children and Young Peoples Services,Head of Childrens Social Care,085342,9 Cedar Drive Aycliffe,Supplies and Services,328041,Clothing uniforms and laundry E328,02-Jan-2019,000008196374359,HOUSE OF FRASER CA,5311,Clothing uniforms and laundry,5.95,0.00,5.95
Children and Young Peoples Services,Head of Childrens Social Care,085342,9 Cedar Drive Aycliffe,Supplies and Services,324117,Provisions E324,02-Jan-2019,000008196374369,SAINSBURYS 2082,5411,Catering costs - provisions,22.35,0.00,22.35
Children and Young Peoples Services,Head of Childrens Social Care,085342,9 Cedar Drive Aycliffe,Supplies and Services,324117,Provisions E324,02-Jan-2019,000008196374381,TESCO STORES 2916,5411,Catering costs - provisions,6.69,0.00,6.69
Resources,Finance & Transactional Services,065180,Collections,Supplies and Services,338045,Services,02-Jan-2019,000008196374397,HMCOURT-SERVICES.G,9222,Legal expenses 338045,110.00,0.00,110.00
Children and Young Peoples Services,"Head of Early Help, Inclusion and Vulnerable Children",071440,Barnard Castle One Point Hub,Supplies and Services,332047,Printing Stationery and Gen Off Exps,02-Jan-2019,000008196374473,AMZN Mktp UK MB8WD4CZ4,5942,Stationery,30.64,0.00,30.64
Regeneration and Local Services,Culture & Sport,054233,Bishop Auckland Town Hall Library,Supplies and Services,312011,Newspapers books and periodicals E312,02-Jan-2019,000008196374489,AMZN Mktp UK MB4W76F74,5942,Books-school library,16.18,0.00,16.18
Regeneration and Local Services,Culture & Sport,054233,Bishop Auckland Town Hall Library,Supplies and Services,324117,Provisions E324,02-Jan-2019,000008196374495,ASDA STORES,5411,Catering costs - provisions,13.55,0.00,13.55
Regeneration and Local Services,Direct Services,021242,Catering - County Hall,Supplies and Services,324117,Provisions E324,02-Jan-2019,000008196374529,TESCO STORES 2278,5411,Catering costs - provisions,26.76,0.00,26.76
Children and Young Peoples Services,Childrens Services Operational Support,052986,CYPS - Locality and Operational Support,Supplies and Services,328041,Clothing uniforms and laundry E328,02-Jan-2019,000008196374563,WWW.ARGOS.CO.UK,5310,Clothing uniforms and laundry,74.00,0.00,74.00
Children and Young Peoples Services,Childrens Services Operational Support,052986,CYPS - Locality and Operational Support,Supplies and Services,324117,Provisions E324,02-Jan-2019,000008196374573,ASDA STORES,5411,Catering costs - provisions,7.58,0.00,7.58
Regeneration and Local Services,Culture & Sport,054813,Gala Theatre - Technical,Supplies and Services,312009,Newspapers books and periodicals E312,02-Jan-2019,000008196374579,WH SMITH,5994,Newspapers books and periodicals,6.93,0.00,6.93
Regeneration and Local Services,Technical Services,024611,Strategic Highways - Road Safety ETP,Supplies and Services,304403,Equipment and Materials,02-Jan-2019,000008196374587,THE BIKEABILITY TRUST,5111,Other consumables,153.96,0.00,153.96
Children and Young Peoples Services,"Head of Early Help, Inclusion and Vulnerable Children",085965,Barnard,Supplies and Services,328041,Clothing uniforms and laundry E328,02-Jan-2019,000008196374607,FOOTASYLUM PLC,5691,Clothing uniforms and laundry,-92.49,0.00,-92.49
Children and Young Peoples Services,Head of Childrens Social Care,085352,Tow Law CU,Supplies and Services,304259,Equipment and Materials,02-Jan-2019,000008196374767,WILKO DURHAM 426,5722,Equipment-purchase and rental,6.00,0.00,6.00
Children and Young Peoples Services,Head of Childrens Social Care,085333,Coxhoe Satelite Home,Supplies and Services,304999,Equipment and Materials,02-Jan-2019,000008196374801,INFINITE AIR,7991,Misc equipment tools and materials,23.90,0.00,23.90
Children and Young Peoples Services,Head of Childrens Social Care,085333,Coxhoe Satelite Home,Supplies and Services,324117,Provisions E324,02-Jan-2019,000008196374811,ASDA SUPERSTORE 4987,5411,Catering costs - provisions,92.09,0.00,92.09
Children and Young Peoples Services,Head of Childrens Social Care,085333,Coxhoe Satelite Home,Supplies and Services,324117,Provisions E324,02-Jan-2019,000008196374817,ASDA SUPERSTORE 4987,5411,Catering costs - provisions,3.64,0.00,3.64
Children and Young Peoples Services,Head of Childrens Social Care,085333,Coxhoe Satelite Home,Supplies and Services,324117,Provisions E324,02-Jan-2019,000008196374825,CO-OP GROUP 310016,5411,Catering costs - provisions,6.90,0.00,6.90
Children and Young Peoples Services,Head of Childrens Social Care,085333,Coxhoe Satelite Home,Transport,235057,Public Transport,02-Jan-2019,000008196374829,IPSGROUP.COM,7523,Staff travelling,3.00,0.00,3.00
Resources,Resources Management,069000,Resources Management,Supplies and Services,324117,Provisions E324,02-Jan-2019,000008196374839,SAINSBURYS LOC4937,5411,Catering costs - provisions,2.40,0.00,2.40
Children and Young Peoples Services,Head of Childrens Social Care,085342,9 Cedar Drive Aycliffe,Supplies and Services,384199,Miscellaneous Expenses,02-Jan-2019,000008196374851,NUFC www.nufc.co.uk,7941,Other hired and contracted services,17.00,0.00,17.00
Children and Young Peoples Services,"Head of Early Help, Inclusion and Vulnerable Children",085957,Secure Management,Supplies and Services,324117,Provisions E324,02-Jan-2019,000008196374871,TESCO STORES 6329,5411,Catering costs - provisions,100.36,0.00,100.36
Children and Young Peoples Services,Head of Education and Skills,078411,16-19 Education & Training,Supplies and Services,372009,Subscriptions E372,02-Jan-2019,000008199073351,BUFFER AWESOME YEARLY,2741,Subscriptions 372009,-81.06,0.00,-81.06
Regeneration and Local Services,Direct Services,010301,C&G - North Grounds Maintenance,Supplies and Services,304221,Equipment and Materials,02-Jan-2019,000008209311487,GREENHAM TRADING LTD,5085,Direct materials,446.40,74.40,372.00
Children and Young Peoples Services,Head of Childrens Social Care,085100,Strategic Manager Families First Area South,Supplies and Services,384199,Miscellaneous Expenses,02-Jan-2019,000008271879657,GRO HM PASSPORT OFFICE,9399,Other hired and contracted services,-9.25,0.00,-9.25
Children and Young Peoples Services,Head of Education and Skills,071801,Selby Cottage Childcare Centre,Supplies and Services,328041,Clothing uniforms and laundry E328,03-Jan-2019,000008199073337,THE RANGE,5311,Clothing uniforms and laundry,3.99,0.00,3.99
Children and Young Peoples Services,Head of Education and Skills,071801,Selby Cottage Childcare Centre,Supplies and Services,304259,Equipment and Materials,03-Jan-2019,000008199073339,WILKO RETAIL LIMIT,5722,Equipment-purchase and rental,14.15,0.00,14.15
Children and Young Peoples Services,Head of Education and Skills,071801,Selby Cottage Childcare Centre,Supplies and Services,324117,Provisions E324,03-Jan-2019,000008199073343,WM MORRISONS STORE,5411,Catering costs - provisions,42.94,0.00,42.94
Children and Young Peoples Services,Head of Education and Skills,054640,Durham Learning Resources,Supplies and Services,332047,Printing Stationery and Gen Off Exps,03-Jan-2019,000008199073345,DAVPAC,5399,Stationery,40.39,6.73,33.66
Resources,Digital and Customer Services,065481,Technical Services,Supplies and Services,304335,Equipment and Materials,03-Jan-2019,000008199073347,AMZN MKTP UK AMAZON.CO,5942,ICT supplies etc,-0.55,0.00,-0.55
Adult and Health Services,Head of Adults,055302,Durham Pathways,Supplies and Services,324117,Provisions E324,03-Jan-2019,000008199073371,MARKS&SPENCER PLC SACA,5411,Catering costs - provisions,7.92,0.00,7.92
Children and Young Peoples Services,Head of Childrens Social Care,085342,9 Cedar Drive Aycliffe,Supplies and Services,304221,Equipment and Materials,03-Jan-2019,000008199073375,B & Q 1120,5211,Direct materials,42.75,0.00,42.75
Dedicated Schools Grant,DSG High Needs Block,079050,SENSS-Sensory,Supplies and Services,384999,Miscellaneous Expenses,03-Jan-2019,000008199073377,WWW.GAFFERTAPE.COM,5085,Other expenses,39.84,0.00,39.84
Children and Young Peoples Services,Head of Childrens Social Care,085332,Middlestone Moor CU,Supplies and Services,324117,Provisions E324,03-Jan-2019,000008199073379,ALDI 74 774,5411,Catering costs - provisions,12.29,0.00,12.29
Regeneration and Local Services,Direct Services,021242,Catering - County Hall,Premises,145009,Cleaning and Domestic Supplies,03-Jan-2019,000008199073399,ALLIANCE DISPOSABLES L,2842,Other cleaning and domestic costs,293.71,48.95,244.76
Regeneration and Local Services,Direct Services,021242,Catering - County Hall,Premises,145009,Cleaning and Domestic Supplies,03-Jan-2019,000008199073401,ALLIANCE DISPOSABLES L,2842,Other cleaning and domestic costs,83.12,13.85,69.27
Regeneration and Local Services,Culture & Sport,054233,Bishop Auckland Town Hall Library,Supplies and Services,312011,Newspapers books and periodicals E312,03-Jan-2019,000008199073403,Amazon.co.uk MB7I13404,5969,Books-school library,44.97,0.00,44.97
Regeneration and Local Services,Culture & Sport,054812,Gala Theatre - Catering etc,Premises,145009,Cleaning and Domestic Supplies,03-Jan-2019,000008199073405,ALLIANCE DISPOSABLES L,2842,Other cleaning and domestic costs,147.34,24.56,122.78
Children and Young Peoples Services,Childrens Services Operational Support,052986,CYPS - Locality and Operational Support,Supplies and Services,324117,Provisions E324,03-Jan-2019,000008199073423,ASDA STORES,5411,Catering costs - provisions,124.00,0.00,124.00
Children and Young Peoples Services,Childrens Services Operational Support,052986,CYPS - Locality and Operational Support,Supplies and Services,324117,Provisions E324,03-Jan-2019,000008199073425,ASDA STORES,5411,Catering costs - provisions,24.55,0.00,24.55
Children and Young Peoples Services,Childrens Services Operational Support,052986,CYPS - Locality and Operational Support,Supplies and Services,384999,Miscellaneous Expenses,03-Jan-2019,000008199073427,WWW.SMYTHSTOYS.COM,5945,Other expenses,37.46,0.00,37.46
Regeneration and Local Services,Culture & Sport,054819,Gala Theatre - Theatre,Supplies and Services,324117,Provisions E324,03-Jan-2019,000008199073435,TESCO STORES 2371,5411,Catering costs - provisions,48.40,0.00,48.40
Regeneration and Local Services,Direct Services,010301,C&G - North Grounds Maintenance,Supplies and Services,304403,Equipment and Materials,03-Jan-2019,000008199073441,BESCOL,5231,Other consumables,45.00,7.50,37.50
Regeneration and Local Services,Economic Development and Housing,030714,Salvus House,Supplies and Services,324117,Provisions E324,03-Jan-2019,000008199073443,TESCO STORES 5970,5411,Catering costs - provisions,5.00,0.00,5.00
Children and Young Peoples Services,Head of Childrens Social Care,085334,West Rainton Satelite Home,Supplies and Services,324117,Provisions E324,03-Jan-2019,000008199073447,TESCO STORES 2371,5411,Catering costs - provisions,160.28,0.00,160.28
Children and Young Peoples Services,Head of Childrens Social Care,085342,9 Cedar Drive Aycliffe,Supplies and Services,348037,Subsistence E348,03-Jan-2019,000008199073451,THE OLIVE GARDEN,5812,Subsistence,13.50,0.00,13.50
Children and Young Peoples Services,Head of Childrens Social Care,085342,9 Cedar Drive Aycliffe,Supplies and Services,308011,Furniture,03-Jan-2019,000008199073453,SIESTA BLINDS LTD,5714,Furniture repair and replacement,110.00,0.00,110.00
Children and Young Peoples Services,Head of Childrens Social Care,085342,9 Cedar Drive Aycliffe,Supplies and Services,324117,Provisions E324,03-Jan-2019,000008199073455,SAINSBURYS LOC4622,5411,Catering costs - provisions,4.80,0.00,4.80
Children and Young Peoples Services,Head of Childrens Social Care,085352,Tow Law CU,Supplies and Services,324117,Provisions E324,03-Jan-2019,000008199073461,YOUR LOCAL FOOD & WINE,5411,Catering costs - provisions,85.47,0.00,85.47
Children and Young Peoples Services,Head of Childrens Social Care,085352,Tow Law CU,Supplies and Services,324117,Provisions E324,03-Jan-2019,000008199073463,LIDL UK LANGLEY MOOR,5411,Catering costs - provisions,37.84,0.00,37.84
Adult and Health Services,Head of Adults,055301,Stanley Pathways,Supplies and Services,324117,Provisions E324,03-Jan-2019,000008199073467,ASDA SUPERSTORE,5411,Catering costs - provisions,61.00,0.00,61.00
Regeneration and Local Services,Economic Development and Housing,031576,B& B - Temp Accom,Supplies and Services,364320,Grants to Voluntary Organisations,03-Jan-2019,000008199073469,AYCLIFFE BIZ,7011,Accommodation assistance,420.00,0.00,420.00
Adult and Health Services,Head of Adults,055306,Spennymoor Pathways,Supplies and Services,324117,Provisions E324,03-Jan-2019,000008199073483,ASDA SUPERSTORE 4987,5411,Catering costs - provisions,5.70,0.00,5.70
Resources,Digital and Customer Services,069010,Administration,Supplies and Services,304259,Equipment and Materials,03-Jan-2019,000008199073489,DISCLOSURE SCOTLAND,9399,Equipment-purchase and rental,25.00,0.00,25.00
Regeneration and Local Services,Direct Services,021235,Catering - Wharton Park,Premises,145009,Cleaning and Domestic Supplies,03-Jan-2019,000008199073497,ALLIANCE DISPOSABLES L,2842,Other cleaning and domestic costs,62.12,10.35,51.77
Regeneration and Local Services,Direct Services,021235,Catering - Wharton Park,Premises,145009,Cleaning and Domestic Supplies,03-Jan-2019,000008199073499,ALLIANCE DISPOSABLES L,2842,Other cleaning and domestic costs,46.25,7.71,38.54
Adult and Health Services,Head of Adults,055309,Peterlee Pathways,Supplies and Services,324117,Provisions E324,03-Jan-2019,000008199073501,LIDL UK PETERLEE,5411,Catering costs - provisions,4.44,0.00,4.44
Regeneration and Local Services,Culture & Sport,011060,Hardwick Park Catering,Supplies and Services,324117,Provisions E324,03-Jan-2019,000008203502365,BATLEYS PERTH,5300,Catering costs - provisions,289.74,48.29,241.45
Regeneration and Local Services,Culture & Sport,011060,Hardwick Park Catering,Supplies and Services,324117,Provisions E324,03-Jan-2019,000008203502365 - 1,BATLEYS PERTH,5300,Catering costs - provisions,268.97,,268.97
Regeneration and Local Services,Direct Services,021234,Catering - Locomotion,Supplies and Services,324117,Provisions E324,03-Jan-2019,000008203502379,BATLEYS PERTH,5300,Catering costs - provisions,310.50,51.75,258.75
Regeneration and Local Services,Direct Services,021234,Catering - Locomotion,Supplies and Services,324117,Provisions E324,03-Jan-2019,000008203502379 - 1,BATLEYS PERTH,5300,Catering costs - provisions,68.85,,68.85
Regeneration and Local Services,Direct Services,030691,"Catering - Durham Dales Centre			",Supplies and Services,324117,Provisions E324,03-Jan-2019,000008203502447,BATLEYS PERTH,5300,Catering costs - provisions,59.40,9.90,49.50
Regeneration and Local Services,Direct Services,030691,"Catering - Durham Dales Centre			",Supplies and Services,324117,Provisions E324,03-Jan-2019,000008203502447 - 1,BATLEYS PERTH,5300,Catering costs - provisions,99.67,,99.67
Regeneration and Local Services,Direct Services,021235,Catering - Wharton Park,Supplies and Services,324117,Provisions E324,03-Jan-2019,000008203502581,BATLEYS PERTH,5300,Catering costs - provisions,121.44,20.24,101.20
Regeneration and Local Services,Direct Services,021235,Catering - Wharton Park,Supplies and Services,324117,Provisions E324,03-Jan-2019,000008203502581 - 1,BATLEYS PERTH,5300,Catering costs - provisions,20.23,,20.23
Regeneration and Local Services,Direct Services,021235,Catering - Wharton Park,Supplies and Services,324117,Provisions E324,03-Jan-2019,000008203502583,BATLEYS PERTH,5300,Catering costs - provisions,125.40,20.90,104.50
Regeneration and Local Services,Direct Services,021235,Catering - Wharton Park,Supplies and Services,324117,Provisions E324,03-Jan-2019,000008203502583 - 1,BATLEYS PERTH,5300,Catering costs - provisions,22.84,,22.84
Children and Young Peoples Services,Head of Education and Skills,078411,16-19 Education & Training,Supplies and Services,372009,Subscriptions E372,04-Jan-2019,000008199073355,BUFFER AWESOME YEARLY,2741,Subscriptions 372009,-2.23,0.00,-2.23
Resources,Digital and Customer Services,069010,Administration,Supplies and Services,312011,Newspapers books and periodicals E312,04-Jan-2019,000008199073491,AMZN Mktp UK MB7ZP4LC4,5942,Books-school library,101.64,0.00,101.64
Resources,Finance & Transactional Services,065180,Collections,Supplies and Services,338045,Services,04-Jan-2019,000008203502173,HMCOURTS-SERVICE.G,9222,Legal expenses 338045,"1,877.00",0.00,1877.00
Resources,Digital and Customer Services,065461,Business Support,Supplies and Services,304335,Equipment and Materials,04-Jan-2019,000008203502175,BITEABLE PTY LTD,7392,ICT supplies etc,22.98,0.00,22.98
Regeneration and Local Services,Economic Development and Housing,030771,Durham Advance Flexible Fund,Supplies and Services,324117,Provisions E324,04-Jan-2019,000008203502183,CO-OP GROUP 010518,5411,Catering costs - provisions,87.00,0.00,87.00
Adult and Health Services,Head of Adults,055302,Durham Pathways,Supplies and Services,324117,Provisions E324,04-Jan-2019,000008203502191,SAINSBURYS SACAT 0776,5411,Catering costs - provisions,2.85,0.00,2.85
Children and Young Peoples Services,Head of Childrens Social Care,085332,Middlestone Moor CU,Supplies and Services,304083,Equipment and Materials,04-Jan-2019,000008203502195,POUNDSTRETCHER 128,5714,Catering equipment,3.98,0.00,3.98
Children and Young Peoples Services,Head of Childrens Social Care,085332,Middlestone Moor CU,Supplies and Services,324117,Provisions E324,04-Jan-2019,000008203502197,TESCO STORES 2371,5411,Catering costs - provisions,5.60,0.00,5.60
Children and Young Peoples Services,Head of Childrens Social Care,085332,Middlestone Moor CU,Supplies and Services,324117,Provisions E324,04-Jan-2019,000008203502199,ALDI 59 774,5411,Catering costs - provisions,22.03,0.00,22.03
Children and Young Peoples Services,Head of Childrens Social Care,085332,Middlestone Moor CU,Supplies and Services,324117,Provisions E324,04-Jan-2019,000008203502201,TESCO STORE 3539,5411,Catering costs - provisions,-4.40,0.00,-4.40
Children and Young Peoples Services,Head of Childrens Social Care,085332,Middlestone Moor CU,Supplies and Services,324117,Provisions E324,04-Jan-2019,000008203502203,TESCO STORES 2371,5411,Catering costs - provisions,-1.20,0.00,-1.20
Regeneration and Local Services,Direct Services,021242,Catering - County Hall,Supplies and Services,324117,Provisions E324,04-Jan-2019,000008203502241,JR HOLLAND FOODSERVICE,5499,Catering costs - provisions,201.40,0.00,201.40
Regeneration and Local Services,Direct Services,021242,Catering - County Hall,Supplies and Services,324117,Provisions E324,04-Jan-2019,000008203502243,JR HOLLAND FOODSERVICE,5499,Catering costs - provisions,57.17,0.00,57.17
Regeneration and Local Services,Direct Services,021242,Catering - County Hall,Supplies and Services,324117,Provisions E324,04-Jan-2019,000008203502245,JR HOLLAND FOODSERVICE,5499,Catering costs - provisions,34.46,0.00,34.46
Regeneration and Local Services,Direct Services,021242,Catering - County Hall,Supplies and Services,324117,Provisions E324,04-Jan-2019,000008203502247,JR HOLLAND FOODSERVICE,5499,Catering costs - provisions,6.94,0.00,6.94
Regeneration and Local Services,Direct Services,021242,Catering - County Hall,Supplies and Services,324117,Provisions E324,04-Jan-2019,000008203502249,HOPWELLS LTD,5811,Catering costs - provisions,312.76,0.00,312.76
Children and Young Peoples Services,Head of Education and Skills,070169,Durham SSP,Supplies and Services,304403,Equipment and Materials,04-Jan-2019,000008203502253,THEEVENTSCALPLUGINS,5045,Other consumables,71.51,0.00,71.51
Regeneration and Local Services,Culture & Sport,054812,Gala Theatre - Catering etc,Supplies and Services,324117,Provisions E324,04-Jan-2019,000008203502259,JR HOLLAND FOODSERVICE,5499,Catering costs - provisions,66.43,0.00,66.43
Regeneration and Local Services,Culture & Sport,054812,Gala Theatre - Catering etc,Supplies and Services,324117,Provisions E324,04-Jan-2019,000008203502261,JR HOLLAND FOODSERVICE,5499,Catering costs - provisions,50.51,0.00,50.51
Regeneration and Local Services,Culture & Sport,054812,Gala Theatre - Catering etc,Supplies and Services,324117,Provisions E324,04-Jan-2019,000008203502263,JR HOLLAND FOODSERVICE,5499,Catering costs - provisions,18.40,0.00,18.40
Regeneration and Local Services,Culture & Sport,054812,Gala Theatre - Catering etc,Supplies and Services,324117,Provisions E324,04-Jan-2019,000008203502265,JR HOLLAND FOODSERVICE,5499,Catering costs - provisions,13.80,0.00,13.80
Regeneration and Local Services,Culture & Sport,054812,Gala Theatre - Catering etc,Supplies and Services,324117,Provisions E324,04-Jan-2019,000008203502267,HOPWELLS LTD,5811,Catering costs - provisions,59.87,0.00,59.87
Regeneration and Local Services,Direct Services,021242,Catering - County Hall,Supplies and Services,324117,Provisions E324,04-Jan-2019,000008203502275,SAINSBURYS LOC4634,5411,Catering costs - provisions,8.00,0.00,8.00
Children and Young Peoples Services,Childrens Services Operational Support,052986,CYPS - Locality and Operational Support,Supplies and Services,324117,Provisions E324,04-Jan-2019,000008203502299,ASDA GEORGE COM LEEDS,5411,Catering costs - provisions,46.00,0.00,46.00
Children and Young Peoples Services,Head of Childrens Social Care,085342,9 Cedar Drive Aycliffe,Supplies and Services,324117,Provisions E324,04-Jan-2019,000008203502301,ASDA GEORGE COM LEEDS,5411,Catering costs - provisions,41.00,0.00,41.00
Children and Young Peoples Services,Head of Childrens Social Care,085342,9 Cedar Drive Aycliffe,Supplies and Services,324117,Provisions E324,04-Jan-2019,000008203502303,TESCO STORES 2916,5411,Catering costs - provisions,12.87,0.00,12.87
Children and Young Peoples Services,Head of Childrens Social Care,085342,9 Cedar Drive Aycliffe,Supplies and Services,304259,Equipment and Materials,04-Jan-2019,000008203502305,SPORTSDIRECT.COM,5941,Equipment-purchase and rental,7.98,1.33,6.65
Children and Young Peoples Services,Head of Childrens Social Care,085342,9 Cedar Drive Aycliffe,Supplies and Services,304259,Equipment and Materials,04-Jan-2019,000008203502305 - 1,SPORTSDIRECT.COM,5941,Equipment-purchase and rental,39.00,,39.00
Children and Young Peoples Services,Head of Childrens Social Care,085342,9 Cedar Drive Aycliffe,Supplies and Services,384999,Miscellaneous Expenses,04-Jan-2019,000008203502307,NEWCASTLE UNITED,7997,Other expenses,67.73,0.00,67.73
Regeneration and Local Services,Direct Services,010301,C&G - North Grounds Maintenance,Supplies and Services,304221,Equipment and Materials,04-Jan-2019,000008203502317,TRAVIS PERKINS,5211,Direct materials,219.96,36.66,183.30
Regeneration and Local Services,Culture & Sport,054813,Gala Theatre - Technical,Supplies and Services,304999,Equipment and Materials,04-Jan-2019,000008203502325,Prime Video,5968,Misc equipment tools and materials,7.99,0.00,7.99
Regeneration and Local Services,Culture & Sport,011060,Hardwick Park Catering,Supplies and Services,324117,Provisions E324,04-Jan-2019,000008203502331,JR HOLLAND FOODSERVICE,5499,Catering costs - provisions,88.79,0.00,88.79
Regeneration and Local Services,Culture & Sport,011060,Hardwick Park Catering,Supplies and Services,324117,Provisions E324,04-Jan-2019,000008203502333,JR HOLLAND FOODSERVICE,5499,Catering costs - provisions,83.69,0.00,83.69
Regeneration and Local Services,Culture & Sport,011060,Hardwick Park Catering,Supplies and Services,324117,Provisions E324,04-Jan-2019,000008203502335,JR HOLLAND FOODSERVICE,5499,Catering costs - provisions,67.95,0.00,67.95
Regeneration and Local Services,Culture & Sport,011060,Hardwick Park Catering,Supplies and Services,324117,Provisions E324,04-Jan-2019,000008203502337,JR HOLLAND FOODSERVICE,5499,Catering costs - provisions,51.74,0.00,51.74
Regeneration and Local Services,Culture & Sport,011060,Hardwick Park Catering,Supplies and Services,324117,Provisions E324,04-Jan-2019,000008203502339,JR HOLLAND FOODSERVICE,5499,Catering costs - provisions,50.32,0.00,50.32
Regeneration and Local Services,Culture & Sport,011060,Hardwick Park Catering,Supplies and Services,324117,Provisions E324,04-Jan-2019,000008203502341,JR HOLLAND FOODSERVICE,5499,Catering costs - provisions,41.44,0.00,41.44
Regeneration and Local Services,Culture & Sport,011060,Hardwick Park Catering,Supplies and Services,324117,Provisions E324,04-Jan-2019,000008203502343,JR HOLLAND FOODSERVICE,5499,Catering costs - provisions,28.95,0.00,28.95
Regeneration and Local Services,Culture & Sport,011060,Hardwick Park Catering,Supplies and Services,324117,Provisions E324,04-Jan-2019,000008203502345,JR HOLLAND FOODSERVICE,5499,Catering costs - provisions,28.88,0.00,28.88
Regeneration and Local Services,Culture & Sport,011060,Hardwick Park Catering,Supplies and Services,324117,Provisions E324,04-Jan-2019,000008203502347,JR HOLLAND FOODSERVICE,5499,Catering costs - provisions,23.66,0.00,23.66
Regeneration and Local Services,Culture & Sport,011060,Hardwick Park Catering,Supplies and Services,324117,Provisions E324,04-Jan-2019,000008203502349,JR HOLLAND FOODSERVICE,5499,Catering costs - provisions,16.30,0.00,16.30
Regeneration and Local Services,Culture & Sport,011060,Hardwick Park Catering,Supplies and Services,324117,Provisions E324,04-Jan-2019,000008203502351,JR HOLLAND FOODSERVICE,5499,Catering costs - provisions,8.28,0.00,8.28
Regeneration and Local Services,Culture & Sport,011060,Hardwick Park Catering,Supplies and Services,324117,Provisions E324,04-Jan-2019,000008203502353,JR HOLLAND FOODSERVICE,5499,Catering costs - provisions,3.22,0.00,3.22
Regeneration and Local Services,Culture & Sport,011060,Hardwick Park Catering,Supplies and Services,324117,Provisions E324,04-Jan-2019,000008203502355,HOPWELLS LTD,5811,Catering costs - provisions,162.00,27.00,135.00
Regeneration and Local Services,Culture & Sport,011060,Hardwick Park Catering,Supplies and Services,324117,Provisions E324,04-Jan-2019,000008203502355 - 1,HOPWELLS LTD,5811,Catering costs - provisions,123.51,,123.51
Regeneration and Local Services,Culture & Sport,011060,Hardwick Park Catering,Supplies and Services,324117,Provisions E324,04-Jan-2019,000008203502357,HOPWELLS LTD,5811,Catering costs - provisions,153.40,0.00,153.40
Regeneration and Local Services,Culture & Sport,011060,Hardwick Park Catering,Supplies and Services,324117,Provisions E324,04-Jan-2019,000008203502359,HOPWELLS LTD,5811,Catering costs - provisions,103.50,17.25,86.25
Regeneration and Local Services,Culture & Sport,011060,Hardwick Park Catering,Supplies and Services,324117,Provisions E324,04-Jan-2019,000008203502359 - 1,HOPWELLS LTD,5811,Catering costs - provisions,44.54,,44.54
Regeneration and Local Services,Culture & Sport,011060,Hardwick Park Catering,Supplies and Services,324117,Provisions E324,04-Jan-2019,000008203502361,HOPWELLS LTD,5811,Catering costs - provisions,61.56,10.26,51.30
Regeneration and Local Services,Culture & Sport,011060,Hardwick Park Catering,Supplies and Services,324117,Provisions E324,04-Jan-2019,000008203502361 - 1,HOPWELLS LTD,5811,Catering costs - provisions,27.41,,27.41
Regeneration and Local Services,Culture & Sport,011060,Hardwick Park Catering,Supplies and Services,324117,Provisions E324,04-Jan-2019,000008203502363,HOPWELLS LTD,5811,Catering costs - provisions,64.98,10.83,54.15
Regeneration and Local Services,Culture & Sport,011060,Hardwick Park Catering,Supplies and Services,324117,Provisions E324,04-Jan-2019,000008203502363 - 1,HOPWELLS LTD,5811,Catering costs - provisions,20.18,,20.18
Regeneration and Local Services,Direct Services,021234,Catering - Locomotion,Supplies and Services,324117,Provisions E324,04-Jan-2019,000008203502369,JR HOLLAND FOODSERVICE,5499,Catering costs - provisions,47.45,0.00,47.45
Regeneration and Local Services,Direct Services,021234,Catering - Locomotion,Supplies and Services,324117,Provisions E324,04-Jan-2019,000008203502371,JR HOLLAND FOODSERVICE,5499,Catering costs - provisions,27.21,0.00,27.21
Regeneration and Local Services,Direct Services,021234,Catering - Locomotion,Supplies and Services,324117,Provisions E324,04-Jan-2019,000008203502373,JR HOLLAND FOODSERVICE,5499,Catering costs - provisions,22.84,0.00,22.84
Regeneration and Local Services,Direct Services,021234,Catering - Locomotion,Supplies and Services,324117,Provisions E324,04-Jan-2019,000008203502375,HOPWELLS LTD,5811,Catering costs - provisions,427.48,0.00,427.48
Regeneration and Local Services,Direct Services,021234,Catering - Locomotion,Supplies and Services,324117,Provisions E324,04-Jan-2019,000008203502377,HOPWELLS LTD,5811,Catering costs - provisions,239.37,0.00,239.37
Regeneration and Local Services,Direct Services,021234,Catering - Locomotion,Supplies and Services,324117,Provisions E324,04-Jan-2019,000008203502381,JR HOLLAND FOODSERVICE,5499,Catering costs - provisions,-0.92,0.00,-0.92
Regeneration and Local Services,Direct Services,010525,Catering - Green Lane,Supplies and Services,324117,Provisions E324,04-Jan-2019,000008203502387,HOPWELLS LTD,5811,Catering costs - provisions,126.18,0.00,126.18
Children and Young Peoples Services,Head of Childrens Social Care,085551,Short Break Services-Park Hse Sher,Supplies and Services,304999,Equipment and Materials,04-Jan-2019,000008203502391,PLANET LEISURE,7933,Misc equipment tools and materials,17.50,0.00,17.50
Children and Young Peoples Services,Head of Childrens Social Care,085551,Short Break Services-Park Hse Sher,Supplies and Services,304999,Equipment and Materials,04-Jan-2019,000008203502393,PLANET LEISURE,7933,Misc equipment tools and materials,69.40,11.57,57.83
Children and Young Peoples Services,Head of Childrens Social Care,085551,Short Break Services-Park Hse Sher,Supplies and Services,348037,Subsistence E348,04-Jan-2019,000008203502395,MCDONALDS,5812,Subsistence,4.55,0.76,3.79
Children and Young Peoples Services,Head of Childrens Social Care,085333,Coxhoe Satelite Home,Supplies and Services,324117,Provisions E324,04-Jan-2019,000008203502401,TESCO STORES 2916,5411,Catering costs - provisions,107.15,0.00,107.15
Regeneration and Local Services,Direct Services,010367,C&G - South Grounds Maintenance,Supplies and Services,384999,Miscellaneous Expenses,04-Jan-2019,000008203502417,WWW.GUSTHARTS.COM,5046,Other expenses,414.07,0.00,414.07
Children and Young Peoples Services,Head of Childrens Social Care,085352,Tow Law CU,Supplies and Services,324117,Provisions E324,04-Jan-2019,000008203502431,ASDA SUPERSTORE 4987,5411,Catering costs - provisions,180.04,0.00,180.04
Regeneration and Local Services,Direct Services,030691,"Catering - Durham Dales Centre			",Supplies and Services,324117,Provisions E324,04-Jan-2019,000008203502433,JR HOLLAND FOODSERVICE,5499,Catering costs - provisions,140.63,0.00,140.63
Regeneration and Local Services,Direct Services,030691,"Catering - Durham Dales Centre			",Supplies and Services,324117,Provisions E324,04-Jan-2019,000008203502435,JR HOLLAND FOODSERVICE,5499,Catering costs - provisions,98.26,0.00,98.26
Regeneration and Local Services,Direct Services,030691,"Catering - Durham Dales Centre			",Supplies and Services,324117,Provisions E324,04-Jan-2019,000008203502437,JR HOLLAND FOODSERVICE,5499,Catering costs - provisions,74.12,0.00,74.12
Regeneration and Local Services,Direct Services,030691,"Catering - Durham Dales Centre			",Supplies and Services,324117,Provisions E324,04-Jan-2019,000008203502439,JR HOLLAND FOODSERVICE,5499,Catering costs - provisions,45.62,0.00,45.62
Regeneration and Local Services,Direct Services,030691,"Catering - Durham Dales Centre			",Supplies and Services,324117,Provisions E324,04-Jan-2019,000008203502441,JR HOLLAND FOODSERVICE,5499,Catering costs - provisions,34.15,0.00,34.15
Regeneration and Local Services,Direct Services,030691,"Catering - Durham Dales Centre			",Supplies and Services,324117,Provisions E324,04-Jan-2019,000008203502443,JR HOLLAND FOODSERVICE,5499,Catering costs - provisions,28.34,0.00,28.34
Regeneration and Local Services,Direct Services,030691,"Catering - Durham Dales Centre			",Supplies and Services,324117,Provisions E324,04-Jan-2019,000008203502445,HOPWELLS LTD,5811,Catering costs - provisions,144.43,0.00,144.43
Adult and Health Services,Head of Adults,055643,Hawthorn House LD Respite Unit,Supplies and Services,324117,Provisions E324,04-Jan-2019,000008203502449,JR HOLLAND FOODSERVICE,5499,Catering costs - provisions,53.82,0.00,53.82
Adult and Health Services,Head of Adults,055643,Hawthorn House LD Respite Unit,Supplies and Services,324117,Provisions E324,04-Jan-2019,000008203502451,JR HOLLAND FOODSERVICE,5499,Catering costs - provisions,20.28,0.00,20.28
Adult and Health Services,Head of Adults,055643,Hawthorn House LD Respite Unit,Supplies and Services,324117,Provisions E324,04-Jan-2019,000008203502453,JR HOLLAND FOODSERVICE,5499,Catering costs - provisions,17.38,0.00,17.38
Adult and Health Services,Head of Adults,055643,Hawthorn House LD Respite Unit,Supplies and Services,324117,Provisions E324,04-Jan-2019,000008203502455,JR HOLLAND FOODSERVICE,5499,Catering costs - provisions,9.45,0.00,9.45
Adult and Health Services,Head of Adults,055643,Hawthorn House LD Respite Unit,Supplies and Services,324117,Provisions E324,04-Jan-2019,000008203502457,JR HOLLAND FOODSERVICE,5499,Catering costs - provisions,4.65,0.00,4.65
Adult and Health Services,Head of Adults,055643,Hawthorn House LD Respite Unit,Supplies and Services,324117,Provisions E324,04-Jan-2019,000008203502459,HOPWELLS LTD,5811,Catering costs - provisions,3.72,0.62,3.10
Adult and Health Services,Head of Adults,055643,Hawthorn House LD Respite Unit,Supplies and Services,324117,Provisions E324,04-Jan-2019,000008203502459 - 1,HOPWELLS LTD,5811,Catering costs - provisions,50.43,,50.43
Adult and Health Services,Head of Adults,055301,Stanley Pathways,Supplies and Services,324117,Provisions E324,04-Jan-2019,000008203502489,ASDA SUPERSTORE,5411,Catering costs - provisions,3.23,0.00,3.23
Adult and Health Services,Head of Adults,055807,Newton Aycliffe Pathways,Premises,145023,Cleaning and Domestic Supplies,04-Jan-2019,000008203502557,ALDI 74 774,5411,Cleaning and domestic materials,6.71,0.00,6.71
Resources,Digital and Customer Services,069010,Administration,Supplies and Services,304403,Equipment and Materials,04-Jan-2019,000008203502561,PAYPAL ENVATO MKPL EN,5999,Other consumables,18.33,0.00,18.33
Adult and Health Services,Head of Adults,055306,Spennymoor Pathways,Supplies and Services,324117,Provisions E324,04-Jan-2019,000008203502565,ASDA SUPERSTORE 4987,5411,Catering costs - provisions,2.04,0.00,2.04
Regeneration and Local Services,Direct Services,021235,Catering - Wharton Park,Supplies and Services,324117,Provisions E324,04-Jan-2019,000008203502567,JR HOLLAND FOODSERVICE,5499,Catering costs - provisions,48.33,0.00,48.33
Regeneration and Local Services,Direct Services,021235,Catering - Wharton Park,Supplies and Services,324117,Provisions E324,04-Jan-2019,000008203502569,JR HOLLAND FOODSERVICE,5499,Catering costs - provisions,26.41,0.00,26.41
Regeneration and Local Services,Direct Services,021235,Catering - Wharton Park,Supplies and Services,324117,Provisions E324,04-Jan-2019,000008203502571,JR HOLLAND FOODSERVICE,5499,Catering costs - provisions,25.51,0.00,25.51
Regeneration and Local Services,Direct Services,021235,Catering - Wharton Park,Supplies and Services,324117,Provisions E324,04-Jan-2019,000008203502573,JR HOLLAND FOODSERVICE,5499,Catering costs - provisions,20.80,0.00,20.80
Regeneration and Local Services,Direct Services,021235,Catering - Wharton Park,Supplies and Services,324117,Provisions E324,04-Jan-2019,000008203502575,JR HOLLAND FOODSERVICE,5499,Catering costs - provisions,13.40,0.00,13.40
Regeneration and Local Services,Direct Services,021235,Catering - Wharton Park,Supplies and Services,324117,Provisions E324,04-Jan-2019,000008203502577,HOPWELLS LTD,5811,Catering costs - provisions,86.26,0.00,86.26
Regeneration and Local Services,Direct Services,021235,Catering - Wharton Park,Supplies and Services,324117,Provisions E324,04-Jan-2019,000008203502579,HOPWELLS LTD,5811,Catering costs - provisions,67.46,0.00,67.46
Resources,Finance & Transactional Services,065176,Quality/Subsidy/Appeals/Training/Support,Supplies and Services,372009,Subscriptions E372,04-Jan-2019,000008203502589,WWW.IRRV.ORG.UK,2741,Subscriptions 372009,"1,440.00",240.00,1200.00
Regeneration and Local Services,Direct Services,021242,Catering - County Hall,Supplies and Services,324117,Provisions E324,04-Jan-2019,000008209311207,BATLEYS PERTH,5300,Catering costs - provisions,142.92,23.82,119.10
Regeneration and Local Services,Direct Services,021242,Catering - County Hall,Supplies and Services,324117,Provisions E324,04-Jan-2019,000008209311207 - 1,BATLEYS PERTH,5300,Catering costs - provisions,87.70,,87.70
Regeneration and Local Services,Culture & Sport,011060,Hardwick Park Catering,Supplies and Services,324117,Provisions E324,04-Jan-2019,000008209311507,BATLEYS PERTH,5300,Catering costs - provisions,266.40,44.40,222.00
Regeneration and Local Services,Culture & Sport,011060,Hardwick Park Catering,Supplies and Services,324117,Provisions E324,04-Jan-2019,000008209311507 - 1,BATLEYS PERTH,5300,Catering costs - provisions,176.17,,176.17
Regeneration and Local Services,Direct Services,021234,Catering - Locomotion,Supplies and Services,324117,Provisions E324,04-Jan-2019,000008209311555,BATLEYS PERTH,5300,Catering costs - provisions,90.72,15.12,75.60
Regeneration and Local Services,Direct Services,021234,Catering - Locomotion,Supplies and Services,324117,Provisions E324,04-Jan-2019,000008209311555 - 1,BATLEYS PERTH,5300,Catering costs - provisions,11.40,,11.40
Regeneration and Local Services,Direct Services,021234,Catering - Locomotion,Supplies and Services,324117,Provisions E324,04-Jan-2019,000008209311561,BATLEYS PERTH,5300,Catering costs - provisions,19.18,3.20,15.98
Regeneration and Local Services,Direct Services,010525,Catering - Green Lane,Supplies and Services,324117,Provisions E324,04-Jan-2019,000008209311587,BATLEYS PERTH,5300,Catering costs - provisions,95.70,15.95,79.75
Regeneration and Local Services,Direct Services,010525,Catering - Green Lane,Supplies and Services,324117,Provisions E324,04-Jan-2019,000008209311587 - 1,BATLEYS PERTH,5300,Catering costs - provisions,71.75,,71.75
Adult and Health Services,Head of Adults,055643,Hawthorn House LD Respite Unit,Supplies and Services,324117,Provisions E324,04-Jan-2019,000008209311759,BATLEYS PERTH,5300,Catering costs - provisions,11.40,1.90,9.50
Adult and Health Services,Head of Adults,055643,Hawthorn House LD Respite Unit,Supplies and Services,324117,Provisions E324,04-Jan-2019,000008209311759 - 1,BATLEYS PERTH,5300,Catering costs - provisions,89.25,,89.25
Adult and Health Services,Head of Adults,055643,Hawthorn House LD Respite Unit,Supplies and Services,324117,Provisions E324,04-Jan-2019,000008209311771,BATLEYS PERTH,5300,Catering costs - provisions,-11.99,0.00,-11.99
Resources,Digital and Customer Services,065212,Digital Durham,Supplies and Services,336005,Advertising E336,05-Jan-2019,000008203502177,Twitter Online Ads,7311,Advertising other than for staff,55.50,0.00,55.50
Children and Young Peoples Services,Childrens Services Operational Support,052986,CYPS - Locality and Operational Support,Supplies and Services,328041,Clothing uniforms and laundry E328,05-Jan-2019,000008203502231,B&M RETAIL LTD,5310,Clothing uniforms and laundry,8.00,0.00,8.00
Regeneration and Local Services,Economic Development and Housing,031500,Housing Solutions - Core Team,Employees,040149,Recruitment Instruction and Training,05-Jan-2019,000008203502321,PREMIER INN,3811,Training-all costs,132.50,22.08,110.42
Regeneration and Local Services,Culture & Sport,054302,Cornforth Library,Supplies and Services,304649,Equipment and Materials,05-Jan-2019,000008203502397,LEGO,5945,Toys,190.86,0.00,190.86
Resources,Resources Management,069000,Resources Management,Supplies and Services,324117,Provisions E324,05-Jan-2019,000008203502403,SAINSBURYS SACAT (2303,5411,Catering costs - provisions,20.85,0.00,20.85
Children and Young Peoples Services,Head of Childrens Social Care,085342,9 Cedar Drive Aycliffe,Supplies and Services,328041,Clothing uniforms and laundry E328,05-Jan-2019,000008203502405,PRIMARK,5651,Clothing uniforms and laundry,43.50,0.00,43.50
Children and Young Peoples Services,Head of Childrens Social Care,085342,9 Cedar Drive Aycliffe,Supplies and Services,348037,Subsistence E348,05-Jan-2019,000008203502407,THE OLIVE GARDEN,5812,Subsistence,9.80,0.00,9.80
Children and Young Peoples Services,Head of Childrens Social Care,085342,9 Cedar Drive Aycliffe,Supplies and Services,348037,Subsistence E348,05-Jan-2019,000008203502409,MCDONALDS,5814,Subsistence,1.78,0.00,1.78
Children and Young Peoples Services,Head of Childrens Social Care,085342,9 Cedar Drive Aycliffe,Supplies and Services,328041,Clothing uniforms and laundry E328,05-Jan-2019,000008203502411,NEW LOOK,5621,Clothing uniforms and laundry,10.05,0.00,10.05
Children and Young Peoples Services,Head of Childrens Social Care,085342,9 Cedar Drive Aycliffe,Supplies and Services,384999,Miscellaneous Expenses,05-Jan-2019,000008203502413,BODYCARE,5977,Other expenses,11.93,0.00,11.93
Resources,Legal & Democratic Services,067910,Democratic Representation,Supplies and Services,344033,Telephones,06-Jan-2019,000008203502179,AMZN MKTP UK MB1P64NE4,5942,Telephones general-all costs,20.48,0.00,20.48
Children and Young Peoples Services,"Head of Early Help, Inclusion and Vulnerable Children",079599,Psychological-HQ,Supplies and Services,312011,Newspapers books and periodicals E312,06-Jan-2019,000008203502273,Amazon.co.uk MB2PW5NB4,5969,Books-school library,149.00,0.00,149.00
Children and Young Peoples Services,Head of Childrens Social Care,085333,Coxhoe Satelite Home,Supplies and Services,324117,Provisions E324,06-Jan-2019,000008203502291,CO-OP GROUP 310016,5411,Catering costs - provisions,5.55,0.00,5.55
Children and Young Peoples Services,Head of Childrens Social Care,085333,Coxhoe Satelite Home,Supplies and Services,324117,Provisions E324,06-Jan-2019,000008203502293,CO-OP GROUP 310016,5411,Catering costs - provisions,3.95,0.00,3.95
Children and Young Peoples Services,"Head of Early Help, Inclusion and Vulnerable Children",085957,Secure Management,Supplies and Services,324117,Provisions E324,06-Jan-2019,000008203502323,TESCO DELIVERY SAVER1,5411,Catering costs - provisions,6.99,0.00,6.99
Regeneration and Local Services,Culture & Sport,054813,Gala Theatre - Technical,Supplies and Services,304259,Equipment and Materials,06-Jan-2019,000008203502327,CURRYS SUPERSTORE,5732,Equipment-purchase and rental,11.99,0.00,11.99
Regeneration and Local Services,Culture & Sport,054813,Gala Theatre - Technical,Supplies and Services,304259,Equipment and Materials,06-Jan-2019,000008203502329,HALFORDS 0784,5940,Equipment-purchase and rental,80.00,0.00,80.00
Children and Young Peoples Services,Head of Childrens Social Care,085342,9 Cedar Drive Aycliffe,Supplies and Services,348037,Subsistence E348,06-Jan-2019,000008203502419,MCDONALDS,5812,Subsistence,7.74,0.00,7.74
Regeneration and Local Services,Culture & Sport,011060,Hardwick Park Catering,Supplies and Services,304083,Equipment and Materials,06-Jan-2019,000008203502485,AMZN Mktp UK MB81F9NE4,5942,Catering equipment,36.52,6.09,30.43
Children and Young Peoples Services,Head of Childrens Social Care,085352,Tow Law CU,Supplies and Services,328041,Clothing uniforms and laundry E328,06-Jan-2019,000008203502549,CLEARANCE BARGAINS,5310,Clothing uniforms and laundry,49.99,0.00,49.99
Children and Young Peoples Services,Head of Childrens Social Care,085352,Tow Law CU,Supplies and Services,312011,Newspapers books and periodicals E312,06-Jan-2019,000008203502551,HOME BARGAINS,5251,Books-school library,14.68,0.00,14.68
Children and Young Peoples Services,Head of Childrens Social Care,085352,Tow Law CU,Supplies and Services,324117,Provisions E324,06-Jan-2019,000008203502553,NISA LOCAL,5411,Catering costs - provisions,18.82,0.00,18.82
Resources,Digital and Customer Services,069010,Administration,Supplies and Services,336005,Advertising E336,06-Jan-2019,000008203502563,FACEBK 2GR7CH25B2,7311,Advertising other than for staff,500.00,0.00,500.00
Resources,Digital and Customer Services,065461,Business Support,Supplies and Services,304335,Equipment and Materials,07-Jan-2019,000008203502181,BITEABLE PTY LTD,7392,ICT supplies etc,0.63,0.00,0.63
Children and Young Peoples Services,Head of Education and Skills,070169,Durham SSP,Supplies and Services,304403,Equipment and Materials,07-Jan-2019,000008203502255,THEEVENTSCALPLUGINS,5045,Other consumables,1.97,0.00,1.97
Regeneration and Local Services,Culture & Sport,011060,Hardwick Park Catering,Supplies and Services,304245,Equipment and Materials,07-Jan-2019,000008203502487,AMZN Mktp UK MB5D75364,5942,Materials,26.32,4.39,21.93
Resources,Digital and Customer Services,065212,Digital Durham,Supplies and Services,336005,Advertising E336,07-Jan-2019,000008209311065,FACEBK 76XQBHE662,7311,Advertising other than for staff,161.47,0.00,161.47
Children and Young Peoples Services,Head of Education and Skills,075021,Youth Employment Initiative,Supplies and Services,384199,Miscellaneous Expenses,07-Jan-2019,000008209311093,THOMAS OWEN & SONS /N/,5611,Other hired and contracted services,14.76,2.46,12.30
Children and Young Peoples Services,Head of Education and Skills,075021,Youth Employment Initiative,Supplies and Services,384199,Miscellaneous Expenses,07-Jan-2019,000008209311093 - 1,THOMAS OWEN & SONS /N/,5611,Other hired and contracted services,11.00,,11.00
Adult and Health Services,Head of Adults,055302,Durham Pathways,Supplies and Services,324117,Provisions E324,07-Jan-2019,000008209311113,SAINSBURYS SACAT 0776,5411,Catering costs - provisions,9.75,0.00,9.75
Children and Young Peoples Services,Head of Childrens Social Care,085332,Middlestone Moor CU,Supplies and Services,324117,Provisions E324,07-Jan-2019,000008209311123,ASDA STORES,5411,Catering costs - provisions,40.13,0.00,40.13
Regeneration and Local Services,Direct Services,010367,C&G - South Grounds Maintenance,Supplies and Services,304221,Equipment and Materials,07-Jan-2019,000008209311161,MKM PETERLEE,5211,Direct materials,7.78,1.30,6.48
Regeneration and Local Services,Direct Services,021242,Catering - County Hall,Supplies and Services,324117,Provisions E324,07-Jan-2019,000008209311193,JR HOLLAND FOODSERVICE,5499,Catering costs - provisions,211.50,0.00,211.50
Regeneration and Local Services,Direct Services,021242,Catering - County Hall,Supplies and Services,324117,Provisions E324,07-Jan-2019,000008209311199,JR HOLLAND FOODSERVICE,5499,Catering costs - provisions,62.02,0.00,62.02
Regeneration and Local Services,Direct Services,021242,Catering - County Hall,Supplies and Services,324117,Provisions E324,07-Jan-2019,000008209311203,JR HOLLAND FOODSERVICE,5499,Catering costs - provisions,6.90,0.00,6.90
Regeneration and Local Services,Direct Services,021242,Catering - County Hall,Supplies and Services,324117,Provisions E324,07-Jan-2019,000008209311213,FREEMAN CATERING BUTCH,5422,Catering costs - provisions,16.80,0.00,16.80
Regeneration and Local Services,Direct Services,021242,Catering - County Hall,Supplies and Services,324117,Provisions E324,07-Jan-2019,000008209311215,FREEMAN CATERING BUTCH,5422,Catering costs - provisions,117.09,0.00,117.09
Children and Young Peoples Services,Head of Childrens Social Care,085511,Emergency Duty Team,Employees,040149,Recruitment Instruction and Training,07-Jan-2019,000008209311243,PREMIER INN,3811,Training-all costs,73.50,0.00,73.50
Regeneration and Local Services,Economic Development and Housing,030773,CLLD North,Employees,040149,Recruitment Instruction and Training,07-Jan-2019,000008209311249,WWW.CSKILLS.ORG,8249,Training-all costs,36.00,6.00,30.00
Children and Young Peoples Services,Head of Childrens Social Care,085361,LAC & Permanence Team 1,Supplies and Services,328041,Clothing uniforms and laundry E328,07-Jan-2019,000008209311257,WWW.SCHOOLWEARSOLUTION,5641,Clothing uniforms and laundry,29.44,0.00,29.44
Children and Young Peoples Services,Head of Childrens Social Care,085361,LAC & Permanence Team 1,Supplies and Services,384999,Miscellaneous Expenses,07-Jan-2019,000008209311261,WWW.DEVON.GOV.UK,8220,Other expenses,10.50,0.00,10.50
Children and Young Peoples Services,Head of Childrens Social Care,085333,Coxhoe Satelite Home,Supplies and Services,304221,Equipment and Materials,07-Jan-2019,000008209311265,SCREWFIX DIRECT,5211,Direct materials,219.99,0.00,219.99
Children and Young Peoples Services,Head of Education and Skills,071732,Dean Bank Childcare,Supplies and Services,324117,Provisions E324,07-Jan-2019,000008209311351,ASDA GROCERIES ONLINE,5411,Catering costs - provisions,49.36,0.00,49.36
Children and Young Peoples Services,Head of Education and Skills,071732,Dean Bank Childcare,Supplies and Services,324117,Provisions E324,07-Jan-2019,000008209311359,CO-OP GROUP 310027,5411,Catering costs - provisions,4.30,0.00,4.30
Children and Young Peoples Services,Head of Education and Skills,071732,Dean Bank Childcare,Supplies and Services,324117,Provisions E324,07-Jan-2019,000008209311361,ASDA GROCERIES ONLINE,5411,Catering costs - provisions,-0.30,0.00,-0.30
Adult and Health Services,Head of Adults,055202,Support and Recovery,Supplies and Services,304403,Equipment and Materials,07-Jan-2019,000008209311405,ELTONS FOOTWEAR,7251,Other consumables,10.50,0.00,10.50
Adult and Health Services,Head of Adults,055202,Support and Recovery,Supplies and Services,328041,Clothing uniforms and laundry E328,07-Jan-2019,000008209311415,ARGOS LTD,5310,Clothing uniforms and laundry,39.98,0.00,39.98
Regeneration and Local Services,Economic Development and Housing,030771,Durham Advance Flexible Fund,Supplies and Services,348037,Subsistence E348,07-Jan-2019,000008209311421,ARRIVA NORTH EAST,4131,Subsistence,4.30,0.00,4.30
Regeneration and Local Services,Economic Development and Housing,031500,Housing Solutions - Core Team,Transport,235057,Public Transport,07-Jan-2019,000008209311449,VERIFONE TAXI/PRIVATE,4121,Staff travelling,30.00,0.00,30.00
Children and Young Peoples Services,Childrens Services Operational Support,052986,CYPS - Locality and Operational Support,Third Party Payments 4THIRD,430100,Rendered by Private Contractors,07-Jan-2019,000008209311475,SKIPPY WASTE SERVICES,7399,Payments to sub-contractors,60.00,10.00,50.00
Regeneration and Local Services,Culture & Sport,011060,Hardwick Park Catering,Supplies and Services,324117,Provisions E324,07-Jan-2019,000008209311495,JR HOLLAND FOODSERVICE,5499,Catering costs - provisions,79.53,0.00,79.53
Regeneration and Local Services,Culture & Sport,011060,Hardwick Park Catering,Supplies and Services,324117,Provisions E324,07-Jan-2019,000008209311499,JR HOLLAND FOODSERVICE,5499,Catering costs - provisions,48.94,0.00,48.94
Regeneration and Local Services,Culture & Sport,011060,Hardwick Park Catering,Supplies and Services,324117,Provisions E324,07-Jan-2019,000008209311505,JR HOLLAND FOODSERVICE,5499,Catering costs - provisions,14.42,0.00,14.42
Regeneration and Local Services,Culture & Sport,011060,Hardwick Park Catering,Supplies and Services,324117,Provisions E324,07-Jan-2019,000008209311521,FREEMAN CATERING BUTCH,5422,Catering costs - provisions,40.21,0.00,40.21
Regeneration and Local Services,Culture & Sport,011060,Hardwick Park Catering,Supplies and Services,324117,Provisions E324,07-Jan-2019,000008209311525,FREEMAN CATERING BUTCH,5422,Catering costs - provisions,39.80,0.00,39.80
Regeneration and Local Services,Economic Development and Housing,030757,Interserve/Skills Support for the Unemployed,Employees,040149,Recruitment Instruction and Training,07-Jan-2019,000008209311537,WWW.CSKILLS.ORG,8249,Training-all costs,36.00,0.00,36.00
Regeneration and Local Services,Direct Services,021234,Catering - Locomotion,Supplies and Services,324117,Provisions E324,07-Jan-2019,000008209311543,JR HOLLAND FOODSERVICE,5499,Catering costs - provisions,91.44,0.00,91.44
Regeneration and Local Services,Direct Services,021234,Catering - Locomotion,Supplies and Services,324117,Provisions E324,07-Jan-2019,000008209311549,JR HOLLAND FOODSERVICE,5499,Catering costs - provisions,11.03,0.00,11.03
Regeneration and Local Services,Direct Services,021234,Catering - Locomotion,Supplies and Services,324117,Provisions E324,07-Jan-2019,000008209311563,FREEMAN CATERING BUTCH,5422,Catering costs - provisions,80.18,0.00,80.18
Regeneration and Local Services,Direct Services,010525,Catering - Green Lane,Supplies and Services,324117,Provisions E324,07-Jan-2019,000008209311595,FREEMAN CATERING BUTCH,5422,Catering costs - provisions,3.03,0.00,3.03
Regeneration and Local Services,Direct Services,010525,Catering - Green Lane,Supplies and Services,324117,Provisions E324,07-Jan-2019,000008209311601,FREEMAN CATERING BUTCH,5422,Catering costs - provisions,52.63,0.00,52.63
Children and Young Peoples Services,Head of Childrens Social Care,085551,Short Break Services-Park Hse Sher,Supplies and Services,304259,Equipment and Materials,07-Jan-2019,000008209311621,DISCLOSURE & BARRING,9399,Equipment-purchase and rental,13.00,0.00,13.00
Regeneration and Local Services,Economic Development and Housing,031500,Housing Solutions - Core Team,Supplies and Services,384999,Miscellaneous Expenses,07-Jan-2019,000008209311625,WWW.DURHAM.GOV.UK,9399,Other expenses,10.00,0.00,10.00
Children and Young Peoples Services,Head of Childrens Social Care,085334,West Rainton Satelite Home,Supplies and Services,308011,Furniture,07-Jan-2019,000008209311675,EDS BEDS LTD,5712,Furniture repair and replacement,131.00,0.00,131.00
Children and Young Peoples Services,Head of Childrens Social Care,085334,West Rainton Satelite Home,Supplies and Services,324117,Provisions E324,07-Jan-2019,000008209311679,TESCO STORES 2371,5411,Catering costs - provisions,139.14,0.00,139.14
Regeneration and Local Services,Direct Services,010367,C&G - South Grounds Maintenance,Supplies and Services,384999,Miscellaneous Expenses,07-Jan-2019,000008209311691,WWW.GUSTHARTS.COM,5046,Other expenses,209.11,0.00,209.11
Children and Young Peoples Services,"Head of Early Help, Inclusion and Vulnerable Children",085957,Secure Management,Supplies and Services,324117,Provisions E324,07-Jan-2019,000008209311717,TESCO STORES 6329,5411,Catering costs - provisions,115.63,0.00,115.63
Regeneration and Local Services,Direct Services,030691,"Catering - Durham Dales Centre			",Supplies and Services,324117,Provisions E324,07-Jan-2019,000008209311723,JR HOLLAND FOODSERVICE,5499,Catering costs - provisions,187.97,0.00,187.97
Regeneration and Local Services,Direct Services,030691,"Catering - Durham Dales Centre			",Supplies and Services,324117,Provisions E324,07-Jan-2019,000008209311729,JR HOLLAND FOODSERVICE,5499,Catering costs - provisions,17.64,0.00,17.64
Regeneration and Local Services,Direct Services,030691,"Catering - Durham Dales Centre			",Supplies and Services,324117,Provisions E324,07-Jan-2019,000008209311731,JR HOLLAND FOODSERVICE,5499,Catering costs - provisions,7.35,0.00,7.35
Regeneration and Local Services,Direct Services,030691,"Catering - Durham Dales Centre			",Supplies and Services,324117,Provisions E324,07-Jan-2019,000008209311737,FREEMAN CATERING BUTCH,5422,Catering costs - provisions,139.11,0.00,139.11
Adult and Health Services,Head of Adults,055643,Hawthorn House LD Respite Unit,Supplies and Services,324117,Provisions E324,07-Jan-2019,000008209311753,JR HOLLAND FOODSERVICE,5499,Catering costs - provisions,20.28,0.00,20.28
Adult and Health Services,Head of Adults,055643,Hawthorn House LD Respite Unit,Supplies and Services,324117,Provisions E324,07-Jan-2019,000008209311765,FREEMAN CATERING BUTCH,5422,Catering costs - provisions,48.22,0.00,48.22
Regeneration and Local Services,Direct Services,010301,C&G - North Grounds Maintenance,Supplies and Services,304999,Equipment and Materials,07-Jan-2019,000008209311793,NEW ROW FARM NURSERIES,5193,Misc equipment tools and materials,499.08,83.18,415.90
Resources,Digital and Customer Services,065335,School Services - Implementations,Supplies and Services,304639,Equipment and Materials,07-Jan-2019,000008209311803,WWW.ALIEXPRESS.COM,5964,Technicians-supplies,15.92,0.00,15.92
Resources,Digital and Customer Services,065335,School Services - Implementations,Supplies and Services,304303,Equipment and Materials,07-Jan-2019,000008209311807,WWW.TOOLSTATION.COM,5251,Network for resale,5.99,1.00,4.99
Children and Young Peoples Services,"Head of Early Help, Inclusion and Vulnerable Children",085957,Secure Management,Supplies and Services,384999,Miscellaneous Expenses,07-Jan-2019,000008209311817,AMZN Mktp UK MB3M11JZ4,5942,Other expenses,57.99,9.67,48.32
Children and Young Peoples Services,"Head of Early Help, Inclusion and Vulnerable Children",085954,Walworth,Supplies and Services,384999,Miscellaneous Expenses,07-Jan-2019,000008209311821,Amazon.co.uk MB6EU3JC4,5969,Other expenses,8.62,1.44,7.18
Children and Young Peoples Services,"Head of Early Help, Inclusion and Vulnerable Children",085965,Barnard,Supplies and Services,338057,Services,07-Jan-2019,000008209311823,DOMICILARY,8043,Medical fees 338057,45.00,7.50,37.50
Regeneration and Local Services,Economic Development and Housing,030699,Business Growth and Innovation General,Supplies and Services,364320,Grants to Voluntary Organisations,07-Jan-2019,000008209311839,EPH RESERVATIONS 1,7011,Accommodation assistance,79.50,0.00,79.50
Children and Young Peoples Services,Childrens Services Operational Support,052986,CYPS - Locality and Operational Support,Supplies and Services,304259,Equipment and Materials,07-Jan-2019,000008209311843,NEWCASTLE CITY COUNCIL,9399,Equipment-purchase and rental,27.00,0.00,27.00
Regeneration and Local Services,Culture & Sport,011060,Hardwick Park Catering,Supplies and Services,304083,Equipment and Materials,07-Jan-2019,000008209311849,Amazon.co.uk MB33M2JA4,5969,Catering equipment,19.46,3.24,16.22
Adult and Health Services,Head of Adults,055301,Stanley Pathways,Supplies and Services,308011,Furniture,07-Jan-2019,000008209311861,POUNDSTRETCHER 354,5714,Furniture repair and replacement,11.25,0.00,11.25
Adult and Health Services,Head of Adults,055301,Stanley Pathways,Supplies and Services,324117,Provisions E324,07-Jan-2019,000008209311867,ASDA SUPERSTORE,5411,Catering costs - provisions,3.00,0.00,3.00
Children and Young Peoples Services,Head of Childrens Social Care,085333,Coxhoe Satelite Home,Supplies and Services,324117,Provisions E324,07-Jan-2019,000008209311907,TESCO STORES 2916,5411,Catering costs - provisions,61.93,0.00,61.93
Children and Young Peoples Services,Head of Childrens Social Care,085333,Coxhoe Satelite Home,Supplies and Services,324117,Provisions E324,07-Jan-2019,000008209311913,TESCO STORES 2916,5411,Catering costs - provisions,40.45,0.00,40.45
Resources,Corporate Finance & Commercial Services,069800,Corporate Procurement,Employees,040149,Recruitment Instruction and Training,07-Jan-2019,000008209311933,WWW.CIPS.ORG,8699,Training-all costs,130.00,0.00,130.00
Regeneration and Local Services,Direct Services,021235,Catering - Wharton Park,Supplies and Services,324117,Provisions E324,07-Jan-2019,000008209311975,JR HOLLAND FOODSERVICE,5499,Catering costs - provisions,12.00,0.00,12.00
Regeneration and Local Services,Transport and Contracted Services,032061,Traffic,Employees,040149,Recruitment Instruction and Training,07-Jan-2019,000008212845595,THE CHARTERED INSTITUT,8398,Training-all costs,125.00,0.00,125.00
Regeneration and Local Services,Economic Development and Housing,030699,Business Growth and Innovation General,Supplies and Services,304259,Equipment and Materials,07-Jan-2019,000008212845635,CANVA FOR WORK YEARLY,7221,Equipment-purchase and rental,93.87,0.00,93.87
Regeneration and Local Services,Culture & Sport,054812,Gala Theatre - Catering etc,Supplies and Services,324117,Provisions E324,07-Jan-2019,000008212845715,BATLEYS PERTH,5300,Catering costs - provisions,112.44,18.74,93.70
Regeneration and Local Services,Culture & Sport,054812,Gala Theatre - Catering etc,Supplies and Services,324117,Provisions E324,07-Jan-2019,000008212845715 - 1,BATLEYS PERTH,5300,Catering costs - provisions,85.91,,85.91
Regeneration and Local Services,Culture & Sport,011060,Hardwick Park Catering,Supplies and Services,324117,Provisions E324,07-Jan-2019,000008212845895,BATLEYS PERTH,5300,Catering costs - provisions,-5.99,0.00,-5.99
Regeneration and Local Services,Direct Services,030691,"Catering - Durham Dales Centre			",Supplies and Services,324117,Provisions E324,07-Jan-2019,000008212846061,BATLEYS PERTH,5300,Catering costs - provisions,63.66,10.61,53.05
Regeneration and Local Services,Direct Services,030691,"Catering - Durham Dales Centre			",Supplies and Services,324117,Provisions E324,07-Jan-2019,000008212846061 - 1,BATLEYS PERTH,5300,Catering costs - provisions,54.24,,54.24
Children and Young Peoples Services,"Head of Early Help, Inclusion and Vulnerable Children",085957,Secure Management,Supplies and Services,372009,Subscriptions E372,07-Jan-2019,000008212846151,SKY BUSINESS,4899,Subscriptions 372009,295.20,49.20,246.00
Children and Young Peoples Services,Head of Education and Skills,071801,Selby Cottage Childcare Centre,Supplies and Services,304259,Equipment and Materials,08-Jan-2019,000008212845575,WILKO RETAIL LIMIT,5722,Equipment-purchase and rental,23.50,0.00,23.50
Children and Young Peoples Services,Head of Education and Skills,071801,Selby Cottage Childcare Centre,Supplies and Services,324117,Provisions E324,08-Jan-2019,000008212845577,TESCO STORES 2278,5411,Catering costs - provisions,7.09,0.00,7.09
Children and Young Peoples Services,Head of Education and Skills,071801,Selby Cottage Childcare Centre,Supplies and Services,304999,Equipment and Materials,08-Jan-2019,000008212845581,Amazon Prime MB7HK2TL4,5968,Misc equipment tools and materials,7.99,0.00,7.99
Children and Young Peoples Services,Head of Education and Skills,071801,Selby Cottage Childcare Centre,Supplies and Services,324117,Provisions E324,08-Jan-2019,000008212845583,TESCO STORES 2278,5411,Catering costs - provisions,9.34,0.00,9.34
Regeneration and Local Services,Direct Services,010301,C&G - North Grounds Maintenance,Supplies and Services,304221,Equipment and Materials,08-Jan-2019,000008212845587,TRAVIS PERKINS,5211,Direct materials,160.08,26.68,133.40
Children and Young Peoples Services,Head of Childrens Social Care,085357,Bespoke Placements,Supplies and Services,352001,Conference Expenses,08-Jan-2019,000008212845601,HOTEL 52,7011,Conferencesseminars fees etc,100.00,16.67,83.33
Regeneration and Local Services,Economic Development and Housing,030773,CLLD North,Transport,235057,Public Transport,08-Jan-2019,000008212845611,STATION TAXIS SUND,4121,Staff travelling,6.60,0.00,6.60
Regeneration and Local Services,Economic Development and Housing,030773,CLLD North,Transport,235057,Public Transport,08-Jan-2019,000008212845613,GO NORTH EAST - V/T,4131,Staff travelling,6.70,0.00,6.70
Regeneration and Local Services,Economic Development and Housing,030699,Business Growth and Innovation General,Supplies and Services,342033,Computers and Communications,08-Jan-2019,000008212845637,STK Shutterstock,7333,Computer hardware,19.00,0.00,19.00
Regeneration and Local Services,Economic Development and Housing,030699,Business Growth and Innovation General,Supplies and Services,312011,Newspapers books and periodicals E312,08-Jan-2019,000008212845639,FASTHOSTS INTERNET,4816,Books-school library,59.99,10.00,49.99
Regeneration and Local Services,Economic Development and Housing,030699,Business Growth and Innovation General,Supplies and Services,312011,Newspapers books and periodicals E312,08-Jan-2019,000008212845641,FASTHOSTS INTERNET,4816,Books-school library,6.34,1.06,5.28
Regeneration and Local Services,Direct Services,010367,C&G - South Grounds Maintenance,Supplies and Services,304221,Equipment and Materials,08-Jan-2019,000008212845659,SCREWFIX PETERLEE,5211,Direct materials,119.99,20.00,99.99
Regeneration and Local Services,Direct Services,021242,Catering - County Hall,Supplies and Services,324117,Provisions E324,08-Jan-2019,000008212845691,JR HOLLAND FOODSERVICE,5499,Catering costs - provisions,224.50,0.00,224.50
Regeneration and Local Services,Direct Services,021242,Catering - County Hall,Supplies and Services,324117,Provisions E324,08-Jan-2019,000008212845695,JR HOLLAND FOODSERVICE,5499,Catering costs - provisions,80.55,0.00,80.55
Regeneration and Local Services,Direct Services,021242,Catering - County Hall,Supplies and Services,324117,Provisions E324,08-Jan-2019,000008212845701,JR HOLLAND FOODSERVICE,5499,Catering costs - provisions,31.51,0.00,31.51
Children and Young Peoples Services,Head of Education and Skills,070169,Durham SSP,Supplies and Services,384199,Miscellaneous Expenses,08-Jan-2019,000008212845707,WWW.JOOMUNITED.COM,5734,Other hired and contracted services,46.41,0.00,46.41
Children and Young Peoples Services,Head of Childrens Social Care,085333,Coxhoe Satelite Home,Supplies and Services,324117,Provisions E324,08-Jan-2019,000008212845741,ASDA SUPERSTORE 4987,5411,Catering costs - provisions,24.03,0.00,24.03
Children and Young Peoples Services,Head of Childrens Social Care,085352,Tow Law CU,Supplies and Services,312009,Newspapers books and periodicals E312,08-Jan-2019,000008212845773,WH SMITH,5994,Newspapers books and periodicals,9.58,0.00,9.58
Children and Young Peoples Services,Head of Childrens Social Care,085352,Tow Law CU,Supplies and Services,332047,Printing Stationery and Gen Off Exps,08-Jan-2019,000008212845777,ODEON,7832,Stationery,22.40,3.73,18.67
Children and Young Peoples Services,Head of Education and Skills,071732,Dean Bank Childcare,Supplies and Services,324117,Provisions E324,08-Jan-2019,000008212845785,ASDA GROCERIES ONLINE,5411,Catering costs - provisions,54.82,0.00,54.82
Children and Young Peoples Services,Head of Education and Skills,071732,Dean Bank Childcare,Supplies and Services,324117,Provisions E324,08-Jan-2019,000008212845789,ASDA GROCERIES ONLINE,5411,Catering costs - provisions,-0.11,0.00,-0.11
Regeneration and Local Services,Culture & Sport,054813,Gala Theatre - Technical,Supplies and Services,312011,Newspapers books and periodicals E312,08-Jan-2019,000008212845795,AMZN MKTP UK MB1Z65A74,5942,Books-school library,54.67,9.11,45.56
Regeneration and Local Services,Culture & Sport,054813,Gala Theatre - Technical,Supplies and Services,312011,Newspapers books and periodicals E312,08-Jan-2019,000008212845799,Amazon.co.uk MB2YS4AM4,5969,Books-school library,20.78,0.00,20.78
Regeneration and Local Services,Culture & Sport,054813,Gala Theatre - Technical,Supplies and Services,312011,Newspapers books and periodicals E312,08-Jan-2019,000008212845801,Amazon.co.uk MB6S00A74,5969,Books-school library,28.28,0.00,28.28
Regeneration and Local Services,Culture & Sport,054813,Gala Theatre - Technical,Supplies and Services,332047,Printing Stationery and Gen Off Exps,08-Jan-2019,000008212845805,RYMAN,5943,Stationery,28.78,0.00,28.78
Regeneration and Local Services,Culture & Sport,054813,Gala Theatre - Technical,Supplies and Services,312011,Newspapers books and periodicals E312,08-Jan-2019,000008212845807,AMZN MKTP UK MB5UQ0AJ4,5942,Books-school library,219.88,0.00,219.88
Regeneration and Local Services,Culture & Sport,054813,Gala Theatre - Technical,Supplies and Services,340001,Postages E340,08-Jan-2019,000008212845809,TNT_DIRECT,4215,Postages,50.28,0.00,50.28
Regeneration and Local Services,Culture & Sport,054813,Gala Theatre - Technical,Supplies and Services,340001,Postages E340,08-Jan-2019,000008212845813,TNT_DIRECT,4215,Postages,32.02,0.00,32.02
Children and Young Peoples Services,"Head of Early Help, Inclusion and Vulnerable Children",085965,Barnard,Supplies and Services,328041,Clothing uniforms and laundry E328,08-Jan-2019,000008212845871,JD SPORTS INTERNET,5941,Clothing uniforms and laundry,264.00,0.00,264.00
Children and Young Peoples Services,"Head of Early Help, Inclusion and Vulnerable Children",085956,Lumley,Supplies and Services,328041,Clothing uniforms and laundry E328,08-Jan-2019,000008212845875,OFFICE LONDON INTE,5661,Clothing uniforms and laundry,90.00,0.00,90.00
Regeneration and Local Services,Direct Services,010301,C&G - North Grounds Maintenance,Supplies and Services,304403,Equipment and Materials,08-Jan-2019,000008212845887,SPALDINGS LTD,5065,Other consumables,170.76,0.00,170.76
Regeneration and Local Services,Culture & Sport,011060,Hardwick Park Catering,Supplies and Services,324117,Provisions E324,08-Jan-2019,000008212845891,JR HOLLAND FOODSERVICE,5499,Catering costs - provisions,12.51,0.00,12.51
Regeneration and Local Services,Direct Services,010525,Catering - Green Lane,Supplies and Services,324117,Provisions E324,08-Jan-2019,000008212845917,JR HOLLAND FOODSERVICE,5499,Catering costs - provisions,34.29,0.00,34.29
Children and Young Peoples Services,Head of Childrens Social Care,085551,Short Break Services-Park Hse Sher,Supplies and Services,328041,Clothing uniforms and laundry E328,08-Jan-2019,000008212845931,ORIGINAL FACTORY S,5311,Clothing uniforms and laundry,20.00,0.00,20.00
Children and Young Peoples Services,Head of Childrens Social Care,085551,Short Break Services-Park Hse Sher,Supplies and Services,324117,Provisions E324,08-Jan-2019,000008212845933,ALDI 59 774,5411,Catering costs - provisions,16.75,0.00,16.75
Children and Young Peoples Services,Head of Childrens Social Care,085333,Coxhoe Satelite Home,Supplies and Services,324117,Provisions E324,08-Jan-2019,000008212846019,CO-OP GROUP 310016,5411,Catering costs - provisions,21.92,0.00,21.92
Children and Young Peoples Services,Head of Childrens Social Care,085352,Tow Law CU,Supplies and Services,324117,Provisions E324,08-Jan-2019,000008212846045,ASDA SUPERSTORE 4987,5411,Catering costs - provisions,214.08,0.00,214.08
Regeneration and Local Services,Direct Services,030691,"Catering - Durham Dales Centre			",Supplies and Services,324117,Provisions E324,08-Jan-2019,000008212846055,JR HOLLAND FOODSERVICE,5499,Catering costs - provisions,80.52,0.00,80.52
Regeneration and Local Services,Direct Services,030691,"Catering - Durham Dales Centre			",Supplies and Services,324117,Provisions E324,08-Jan-2019,000008212846057,JR HOLLAND FOODSERVICE,5499,Catering costs - provisions,26.50,0.00,26.50
Regeneration and Local Services,Direct Services,030691,"Catering - Durham Dales Centre			",Supplies and Services,324117,Provisions E324,08-Jan-2019,000008212846065,JR HOLLAND FOODSERVICE,5499,Catering costs - provisions,-5.50,0.00,-5.50
Regeneration and Local Services,Direct Services,030691,"Catering - Durham Dales Centre			",Supplies and Services,324117,Provisions E324,08-Jan-2019,000008212846067,JR HOLLAND FOODSERVICE,5499,Catering costs - provisions,-8.50,0.00,-8.50
Adult and Health Services,Head of Adults,055643,Hawthorn House LD Respite Unit,Supplies and Services,324117,Provisions E324,08-Jan-2019,000008212846075,JR HOLLAND FOODSERVICE,5499,Catering costs - provisions,17.38,0.00,17.38
Regeneration and Local Services,Culture & Sport,011215,Museums Heritage & Collections,Supplies and Services,332047,Printing Stationery and Gen Off Exps,08-Jan-2019,000008212846081,Amazon.co.uk MB5EL4TN4,5969,Stationery,12.95,0.00,12.95
Regeneration and Local Services,Culture & Sport,011215,Museums Heritage & Collections,Supplies and Services,332047,Printing Stationery and Gen Off Exps,08-Jan-2019,000008212846083,Amazon.co.uk MB6Y83AK4,5969,Stationery,25.90,0.00,25.90
Regeneration and Local Services,Culture & Sport,011215,Museums Heritage & Collections,Supplies and Services,332047,Printing Stationery and Gen Off Exps,08-Jan-2019,000008212846087,WWW.KITEPACKAGING.CO.U,5085,Stationery,25.88,4.31,21.57
Regeneration and Local Services,Culture & Sport,011215,Museums Heritage & Collections,Supplies and Services,332047,Printing Stationery and Gen Off Exps,08-Jan-2019,000008212846093,TRANSPACK LIMITED,5999,Stationery,62.47,10.41,52.06
Regeneration and Local Services,Direct Services,010301,C&G - North Grounds Maintenance,Supplies and Services,304403,Equipment and Materials,08-Jan-2019,000008212846113,BESCOL,5231,Other consumables,38.89,6.48,32.41
Children and Young Peoples Services,"Head of Early Help, Inclusion and Vulnerable Children",074000,TTF-Attachment and Results,Supplies and Services,308011,Furniture,08-Jan-2019,000008212846117,FRANKS THE FLOORING ST,5713,Furniture repair and replacement,150.00,0.00,150.00
Children and Young Peoples Services,"Head of Early Help, Inclusion and Vulnerable Children",074000,TTF-Attachment and Results,Supplies and Services,308011,Furniture,08-Jan-2019,000008212846121,MAGUIRE TA LTD,5713,Furniture repair and replacement,150.00,0.00,150.00
Children and Young Peoples Services,"Head of Early Help, Inclusion and Vulnerable Children",074000,TTF-Attachment and Results,Supplies and Services,308011,Furniture,08-Jan-2019,000008212846123,J DODDS CARPETS LTD,5713,Furniture repair and replacement,150.00,25.00,125.00
Children and Young Peoples Services,Head of Childrens Social Care,085342,9 Cedar Drive Aycliffe,Supplies and Services,312011,Newspapers books and periodicals E312,08-Jan-2019,000008212846133,Amazon.co.uk MB4R96AS4,5969,Books-school library,33.48,0.00,33.48
Children and Young Peoples Services,"Head of Early Help, Inclusion and Vulnerable Children",085955,Auckland,Supplies and Services,384999,Miscellaneous Expenses,08-Jan-2019,000008212846147,AMZN Mktp UK MB8AF7T24,5942,Other expenses,5.87,0.00,5.87
Children and Young Peoples Services,"Head of Early Help, Inclusion and Vulnerable Children",085957,Secure Management,Supplies and Services,304221,Equipment and Materials,08-Jan-2019,000008212846155,SCREWFIX DIRECT LT,5211,Direct materials,-79.90,-13.32,-66.58
Children and Young Peoples Services,Head of Childrens Social Care,085372,Young People Services - North,Supplies and Services,338048,Services,08-Jan-2019,000008212846171,HMCOURTS-SERVICE.G,9222,Court costs 338048,65.00,0.00,65.00
Regeneration and Local Services,Economic Development and Housing,030690,Durham Dales Centre - Tourist Information Centre,Supplies and Services,328041,Clothing uniforms and laundry E328,08-Jan-2019,000008212846173,A&K HOSIERY LTD,5621,Clothing uniforms and laundry,361.44,60.24,301.20
Regeneration and Local Services,Culture & Sport,054235,Bishop Auckland Town Hall Cafe,Supplies and Services,324117,Provisions E324,08-Jan-2019,000008212846185,JR HOLLAND FOODSERVICE,5499,Catering costs - provisions,58.69,0.00,58.69
Regeneration and Local Services,Transport and Contracted Services,031704,Care Connect - CCTV Countywide,Supplies and Services,384956,Miscellaneous Expenses,08-Jan-2019,000008212846189,SECURITY INDUSTRY,7393,Licences,220.00,0.00,220.00
Regeneration and Local Services,Direct Services,021324,Catering - Meadowfield,Supplies and Services,324117,Provisions E324,08-Jan-2019,000008212846191,JR HOLLAND FOODSERVICE,5499,Catering costs - provisions,37.32,0.00,37.32
Regeneration and Local Services,Direct Services,021324,Catering - Meadowfield,Supplies and Services,324117,Provisions E324,08-Jan-2019,000008212846197,JR HOLLAND FOODSERVICE,5499,Catering costs - provisions,14.19,0.00,14.19
Regeneration and Local Services,Culture & Sport,011263,Louisa Centre,Supplies and Services,324117,Provisions E324,08-Jan-2019,000008212846251,ASDA SUPERSTORE,5411,Catering costs - provisions,13.00,0.00,13.00
Resources,Digital and Customer Services,069010,Administration,Supplies and Services,312011,Newspapers books and periodicals E312,08-Jan-2019,000008212846287,AMZN Mktp UK MB2DD8TH4,5942,Books-school library,54.73,0.00,54.73
Resources,Digital and Customer Services,069010,Administration,Third Party Payments 4THIRD,430100,Rendered by Private Contractors,08-Jan-2019,000008212846293,EB COUNTY LINES CONFE,7399,Payments to sub-contractors,99.00,0.00,99.00
Regeneration and Local Services,Direct Services,021242,Catering - County Hall,Supplies and Services,324117,Provisions E324,08-Jan-2019,000008217384491,BATLEYS PERTH,5300,Catering costs - provisions,105.48,17.58,87.90
Regeneration and Local Services,Direct Services,021242,Catering - County Hall,Supplies and Services,324117,Provisions E324,08-Jan-2019,000008217384491 - 1,BATLEYS PERTH,5300,Catering costs - provisions,41.71,,41.71
Children and Young Peoples Services,Head of Childrens Social Care,085352,Tow Law CU,Supplies and Services,328041,Clothing uniforms and laundry E328,08-Jan-2019,000008217384665,PRIMARK 670 GATESHEAD,5651,Clothing uniforms and laundry,46.50,0.00,46.50
Children and Young Peoples Services,Head of Childrens Social Care,085352,Tow Law CU,Supplies and Services,328041,Clothing uniforms and laundry E328,08-Jan-2019,000008217384669,PRIMARK 670 GATESHEAD,5651,Clothing uniforms and laundry,28.00,0.00,28.00
Regeneration and Local Services,Culture & Sport,011060,Hardwick Park Catering,Supplies and Services,324117,Provisions E324,08-Jan-2019,000008217384829,BATLEYS PERTH,5300,Catering costs - provisions,201.42,33.57,167.85
Regeneration and Local Services,Culture & Sport,011060,Hardwick Park Catering,Supplies and Services,324117,Provisions E324,08-Jan-2019,000008217384829 - 1,BATLEYS PERTH,5300,Catering costs - provisions,43.50,,43.50
Resources,Digital and Customer Services,070204,School Services - Systems,Supplies and Services,304639,Equipment and Materials,08-Jan-2019,000008217385079,AMZN MKTP UK MB2G82AW4,5942,Technicians-supplies,4.26,0.71,3.55
Resources,Digital and Customer Services,070204,School Services - Systems,Supplies and Services,304639,Equipment and Materials,08-Jan-2019,000008217385079 - 1,AMZN MKTP UK MB2G82AW4,5942,Technicians-supplies,0.03,,0.03
Regeneration and Local Services,Culture & Sport,054235,Bishop Auckland Town Hall Cafe,Supplies and Services,324117,Provisions E324,08-Jan-2019,000008217385155,BATLEYS PERTH,5300,Catering costs - provisions,18.18,3.03,15.15
Regeneration and Local Services,Direct Services,021324,Catering - Meadowfield,Supplies and Services,324117,Provisions E324,08-Jan-2019,000008217385161,BATLEYS PERTH,5300,Catering costs - provisions,98.10,16.35,81.75
Regeneration and Local Services,Direct Services,021324,Catering - Meadowfield,Supplies and Services,324117,Provisions E324,08-Jan-2019,000008217385161 - 1,BATLEYS PERTH,5300,Catering costs - provisions,130.76,,130.76
Regeneration and Local Services,Economic Development and Housing,030699,Business Growth and Innovation General,Supplies and Services,304259,Equipment and Materials,09-Jan-2019,000008212845643,CANVA FOR WORK YEARLY,7221,Equipment-purchase and rental,2.58,0.00,2.58
Children and Young Peoples Services,Head of Education and Skills,070169,Durham SSP,Supplies and Services,384199,Miscellaneous Expenses,09-Jan-2019,000008212845709,WWW.JOOMUNITED.COM,5734,Other hired and contracted services,1.28,0.00,1.28
Resources,Digital and Customer Services,069010,Administration,Supplies and Services,312011,Newspapers books and periodicals E312,09-Jan-2019,000008212846291,AMZN Mktp UK MB9E53AN4,5942,Books-school library,18.17,0.00,18.17
Children and Young Peoples Services,Head of Education and Skills,071801,Selby Cottage Childcare Centre,Supplies and Services,324117,Provisions E324,09-Jan-2019,000008217384339,ASDA GROCERIES ONLINE,5411,Catering costs - provisions,90.05,0.00,90.05
Children and Young Peoples Services,Head of Education and Skills,071801,Selby Cottage Childcare Centre,Supplies and Services,324117,Provisions E324,09-Jan-2019,000008217384345,ASDA GROCERIES ONLINE,5411,Catering costs - provisions,-12.00,0.00,-12.00
Children and Young Peoples Services,Head of Childrens Social Care,085100,Strategic Manager Families First Area South,Supplies and Services,384199,Miscellaneous Expenses,09-Jan-2019,000008217384351,SUNDERLAND CC,9399,Other hired and contracted services,10.00,0.00,10.00
Children and Young Peoples Services,Head of Childrens Social Care,085357,Bespoke Placements,Supplies and Services,352001,Conference Expenses,09-Jan-2019,000008217384355,HARRY JOHNSON,7011,Conferencesseminars fees etc,110.52,18.42,92.10
Children and Young Peoples Services,Head of Childrens Social Care,085357,Bespoke Placements,Supplies and Services,352001,Conference Expenses,09-Jan-2019,000008217384355 - 1,HARRY JOHNSON,7011,Conferencesseminars fees etc,368.28,,368.28
Regeneration and Local Services,Economic Development and Housing,030773,CLLD North,Supplies and Services,328041,Clothing uniforms and laundry E328,09-Jan-2019,000008217384361,PEACOCK STORES LTD,5331,Clothing uniforms and laundry,18.00,0.00,18.00
Children and Young Peoples Services,Head of Education and Skills,075021,Youth Employment Initiative,Supplies and Services,384199,Miscellaneous Expenses,09-Jan-2019,000008217384371,WWW.NORTHYORKS.GOV.UK,9399,Other hired and contracted services,10.00,0.00,10.00
Children and Young Peoples Services,Head of Childrens Social Care,085342,9 Cedar Drive Aycliffe,Supplies and Services,324117,Provisions E324,09-Jan-2019,000008217384407,TESCO STORES 2916,5411,Catering costs - provisions,25.14,0.00,25.14
Regeneration and Local Services,Economic Development and Housing,030699,Business Growth and Innovation General,Supplies and Services,304403,Equipment and Materials,09-Jan-2019,000008217384415,ADOBE CREATIVE CLOUD,5734,Other consumables,49.94,0.00,49.94
Children and Young Peoples Services,"Head of Early Help, Inclusion and Vulnerable Children",071670,Willington Childrens Centre,Supplies and Services,324117,Provisions E324,09-Jan-2019,000008217384465,BESTWAY WHOLESALE,5451,Catering costs - provisions,23.33,0.00,23.33
Regeneration and Local Services,Direct Services,021242,Catering - County Hall,Premises,145009,Cleaning and Domestic Supplies,09-Jan-2019,000008217384471,ALLIANCE DISPOSABLES L,2842,Other cleaning and domestic costs,151.75,25.29,126.46
Regeneration and Local Services,Direct Services,021242,Catering - County Hall,Premises,145009,Cleaning and Domestic Supplies,09-Jan-2019,000008217384475,ALLIANCE DISPOSABLES L,2842,Other cleaning and domestic costs,73.80,12.30,61.50
Regeneration and Local Services,Direct Services,021242,Catering - County Hall,Premises,145009,Cleaning and Domestic Supplies,09-Jan-2019,000008217384475 - 1,ALLIANCE DISPOSABLES L,2842,Other cleaning and domestic costs,0.03,,0.03
Regeneration and Local Services,Direct Services,021242,Catering - County Hall,Supplies and Services,324117,Provisions E324,09-Jan-2019,000008217384481,JR HOLLAND FOODSERVICE,5499,Catering costs - provisions,125.75,0.00,125.75
Regeneration and Local Services,Direct Services,021242,Catering - County Hall,Supplies and Services,324117,Provisions E324,09-Jan-2019,000008217384485,JR HOLLAND FOODSERVICE,5499,Catering costs - provisions,46.00,0.00,46.00
Regeneration and Local Services,Direct Services,021242,Catering - County Hall,Premises,145009,Cleaning and Domestic Supplies,09-Jan-2019,000008217384499,ALLIANCE DISPOSABLES L,2842,Other cleaning and domestic costs,-83.12,-13.85,-69.27
Regeneration and Local Services,Direct Services,021242,Catering - County Hall,Premises,145009,Cleaning and Domestic Supplies,09-Jan-2019,000008217384503,ALLIANCE DISPOSABLES L,2842,Other cleaning and domestic costs,-85.04,-14.17,-70.87
Regeneration and Local Services,Economic Development and Housing,030544,Rural Employability - Client Engagement,Supplies and Services,384956,Miscellaneous Expenses,09-Jan-2019,000008217384519,DURHAM EXTRA,7221,Licences,9.99,0.00,9.99
Regeneration and Local Services,Culture & Sport,054812,Gala Theatre - Catering etc,Supplies and Services,324117,Provisions E324,09-Jan-2019,000008217384527,JR HOLLAND FOODSERVICE,5499,Catering costs - provisions,69.26,0.00,69.26
Children and Young Peoples Services,Head of Childrens Social Care,085361,LAC & Permanence Team 1,Supplies and Services,384999,Miscellaneous Expenses,09-Jan-2019,000008217384601,GRO HM PASSPORT OFFICE,9399,Other expenses,18.50,0.00,18.50
Children and Young Peoples Services,Head of Childrens Social Care,085361,LAC & Permanence Team 1,Supplies and Services,384999,Miscellaneous Expenses,09-Jan-2019,000008217384609,GRO HM PASSPORT OFFICE,9399,Other expenses,9.25,0.00,9.25
Children and Young Peoples Services,Head of Education and Skills,071732,Dean Bank Childcare,Supplies and Services,324117,Provisions E324,09-Jan-2019,000008217384695,TESCO STORES 2916,5411,Catering costs - provisions,7.35,0.00,7.35
Children and Young Peoples Services,Head of Education and Skills,071732,Dean Bank Childcare,Supplies and Services,312011,Newspapers books and periodicals E312,09-Jan-2019,000008217384703,Amazon.co.uk MB3KP2E84,5969,Books-school library,30.13,0.00,30.13
Regeneration and Local Services,Spatial Policy Planning Assets & Environment,031204,North Pennines Nectarworks,Supplies and Services,304403,Equipment and Materials,09-Jan-2019,000008217384709,W E & J ROWLE,5947,Other consumables,4.99,0.00,4.99
Children and Young Peoples Services,"Head of Early Help, Inclusion and Vulnerable Children",085957,Secure Management,Supplies and Services,384871,Miscellaneous Expenses,09-Jan-2019,000008217384789,AMZN Mktp UK MB5VA2EX4,5942,Training-other activities,2.99,0.00,2.99
Children and Young Peoples Services,"Head of Early Help, Inclusion and Vulnerable Children",085955,Auckland,Supplies and Services,328041,Clothing uniforms and laundry E328,09-Jan-2019,000008217384795,FOOTASYLUM PLC,5691,Clothing uniforms and laundry,54.97,0.00,54.97
Children and Young Peoples Services,"Head of Early Help, Inclusion and Vulnerable Children",085965,Barnard,Supplies and Services,328041,Clothing uniforms and laundry E328,09-Jan-2019,000008217384797,FOOTASYLUM PLC,5691,Clothing uniforms and laundry,209.97,0.00,209.97
Children and Young Peoples Services,"Head of Early Help, Inclusion and Vulnerable Children",085954,Walworth,Supplies and Services,384999,Miscellaneous Expenses,09-Jan-2019,000008217384801,WWW.HMV.COM,5735,Other expenses,39.98,6.66,33.32
Children and Young Peoples Services,"Head of Early Help, Inclusion and Vulnerable Children",085955,Auckland,Supplies and Services,384871,Miscellaneous Expenses,09-Jan-2019,000008217384807,WWW.HMV.COM,5735,Training-other activities,19.99,3.33,16.66
Children and Young Peoples Services,"Head of Early Help, Inclusion and Vulnerable Children",085957,Secure Management,Supplies and Services,384871,Miscellaneous Expenses,09-Jan-2019,000008217384811,AMZN Mktp UK MB08H0EP4,5942,Training-other activities,12.99,0.00,12.99
Children and Young Peoples Services,Childrens Services Operational Support,052986,CYPS - Locality and Operational Support,Supplies and Services,384999,Miscellaneous Expenses,09-Jan-2019,000008217384823,BAKER ROSS,5970,Other expenses,78.29,13.05,65.24
Regeneration and Local Services,Economic Development and Housing,030757,Interserve/Skills Support for the Unemployed,Employees,040149,Recruitment Instruction and Training,09-Jan-2019,000008217384841,WWW.CSKILLS.ORG,8249,Training-all costs,36.00,0.00,36.00
Regeneration and Local Services,Economic Development and Housing,030757,Interserve/Skills Support for the Unemployed,Employees,040149,Recruitment Instruction and Training,09-Jan-2019,000008217384847,WWW.CSKILLS.ORG,8249,Training-all costs,36.00,0.00,36.00
Regeneration and Local Services,Direct Services,021234,Catering - Locomotion,Supplies and Services,324117,Provisions E324,09-Jan-2019,000008217384853,JR HOLLAND FOODSERVICE,5499,Catering costs - provisions,70.38,0.00,70.38
Regeneration and Local Services,Direct Services,021234,Catering - Locomotion,Supplies and Services,324117,Provisions E324,09-Jan-2019,000008217384857,JR HOLLAND FOODSERVICE,5499,Catering costs - provisions,3.68,0.00,3.68
Regeneration and Local Services,Spatial Policy Planning Assets & Environment,031222,North Pennines Allen Valleys Landscape Partnership,Transport,235057,Public Transport,09-Jan-2019,000008217384991,Trainline,4112,Staff travelling,122.58,0.00,122.58
Regeneration and Local Services,Spatial Policy Planning Assets & Environment,031222,North Pennines Allen Valleys Landscape Partnership,Supplies and Services,352001,Conference Expenses,09-Jan-2019,000008217384995,TRAVELODGE,3615,Conferencesseminars fees etc,133.00,22.17,110.83
Regeneration and Local Services,Direct Services,010301,C&G - North Grounds Maintenance,Supplies and Services,304403,Equipment and Materials,09-Jan-2019,000008217385013,BESCOL,5231,Other consumables,29.71,4.95,24.76
Children and Young Peoples Services,"Head of Early Help, Inclusion and Vulnerable Children",074000,TTF-Attachment and Results,Supplies and Services,312011,Newspapers books and periodicals E312,09-Jan-2019,000008217385025,AMZN Mktp UK MB5WD0EW4,5942,Books-school library,2.35,0.00,2.35
Children and Young Peoples Services,"Head of Early Help, Inclusion and Vulnerable Children",074000,TTF-Attachment and Results,Supplies and Services,312011,Newspapers books and periodicals E312,09-Jan-2019,000008217385027,AMZN Mktp UK MB8LQ0ED4,5942,Books-school library,2.10,0.35,1.75
Children and Young Peoples Services,"Head of Early Help, Inclusion and Vulnerable Children",074000,TTF-Attachment and Results,Supplies and Services,312011,Newspapers books and periodicals E312,09-Jan-2019,000008217385033,AMZN Mktp UK MB6X29EA4,5942,Books-school library,25.49,4.25,21.24
Children and Young Peoples Services,"Head of Early Help, Inclusion and Vulnerable Children",074000,TTF-Attachment and Results,Supplies and Services,312011,Newspapers books and periodicals E312,09-Jan-2019,000008217385035,AMZN Mktp UK MB8XT5EG4,5942,Books-school library,25.49,4.25,21.24
Children and Young Peoples Services,"Head of Early Help, Inclusion and Vulnerable Children",074000,TTF-Attachment and Results,Supplies and Services,312011,Newspapers books and periodicals E312,09-Jan-2019,000008217385041,Amazon.co.uk MB00K5EW4,5969,Books-school library,25.49,4.25,21.24
Children and Young Peoples Services,"Head of Early Help, Inclusion and Vulnerable Children",074000,TTF-Attachment and Results,Supplies and Services,312011,Newspapers books and periodicals E312,09-Jan-2019,000008217385045,Amazon.co.uk MB3XO0ES4,5969,Books-school library,25.49,4.25,21.24
Children and Young Peoples Services,"Head of Early Help, Inclusion and Vulnerable Children",074000,TTF-Attachment and Results,Supplies and Services,312011,Newspapers books and periodicals E312,09-Jan-2019,000008217385049,Amazon.co.uk MB6XV5EU4,5969,Books-school library,25.49,4.25,21.24
Children and Young Peoples Services,"Head of Early Help, Inclusion and Vulnerable Children",074000,TTF-Attachment and Results,Supplies and Services,312011,Newspapers books and periodicals E312,09-Jan-2019,000008217385055,Amazon.co.uk MB7XI6EY4,5969,Books-school library,25.49,4.25,21.24
Children and Young Peoples Services,"Head of Early Help, Inclusion and Vulnerable Children",074000,TTF-Attachment and Results,Supplies and Services,312011,Newspapers books and periodicals E312,09-Jan-2019,000008217385059,Amazon.co.uk MB9E54ES4,5969,Books-school library,17.79,0.00,17.79
Children and Young Peoples Services,"Head of Early Help, Inclusion and Vulnerable Children",074000,TTF-Attachment and Results,Supplies and Services,324117,Provisions E324,09-Jan-2019,000008217385065,ASDA GEORGE COM LEEDS,5411,Catering costs - provisions,138.50,23.08,115.42
Children and Young Peoples Services,Head of Childrens Social Care,085342,9 Cedar Drive Aycliffe,Employees,040149,Recruitment Instruction and Training,09-Jan-2019,000008217385089,PARENTPAY E-COM R,8220,Training-all costs,60.00,0.00,60.00
Children and Young Peoples Services,"Head of Early Help, Inclusion and Vulnerable Children",085965,Barnard,Supplies and Services,304649,Equipment and Materials,09-Jan-2019,000008217385095,Amazon.co.uk MB7E78E24,5969,Toys,34.99,0.00,34.99
Children and Young Peoples Services,"Head of Early Help, Inclusion and Vulnerable Children",085955,Auckland,Supplies and Services,324117,Provisions E324,09-Jan-2019,000008217385099,TESCO STORES 6329,5411,Catering costs - provisions,152.93,0.00,152.93
Dedicated Schools Grant,DSG High Needs Block,079040,SENSS-HQ,Supplies and Services,324117,Provisions E324,09-Jan-2019,000008217385113,TESCO STORES 2371,5411,Catering costs - provisions,44.35,0.00,44.35
Children and Young Peoples Services,Childrens Services Operational Support,052986,CYPS - Locality and Operational Support,Supplies and Services,312011,Newspapers books and periodicals E312,09-Jan-2019,000008217385123,Amazon.co.uk MB8HD5E74,5969,Books-school library,42.49,7.08,35.41
Regeneration and Local Services,Economic Development and Housing,030690,Durham Dales Centre - Tourist Information Centre,Supplies and Services,384999,Miscellaneous Expenses,09-Jan-2019,000008217385129,GAINSBOROUGH GIFTWARE,5950,Other expenses,575.59,95.93,479.66
Children and Young Peoples Services,Head of Childrens Social Care,085333,Coxhoe Satelite Home,Supplies and Services,324117,Provisions E324,09-Jan-2019,000008217385185,TESCO STORES 2916,5411,Catering costs - provisions,33.84,0.00,33.84
Resources,Digital and Customer Services,069010,Administration,Employees,040149,Recruitment Instruction and Training,09-Jan-2019,000008217385297,PAYPAL CELT,8249,Training-all costs,60.00,0.00,60.00
Children and Young Peoples Services,Childrens Services Operational Support,052986,CYPS - Locality and Operational Support,Supplies and Services,312011,Newspapers books and periodicals E312,09-Jan-2019,000008217385427,Amazon.co.uk MB2GZ8ET4,5969,Books-school library,67.96,0.00,67.96
Regeneration and Local Services,Economic Development and Housing,030699,Business Growth and Innovation General,Supplies and Services,342033,Computers and Communications,09-Jan-2019,000008221231733,SLICKPLAN.COM,7372,Computer hardware,7.86,0.00,7.86
Regeneration and Local Services,Economic Development and Housing,030699,Business Growth and Innovation General,Supplies and Services,304403,Equipment and Materials,09-Jan-2019,000008221231735,MEETEDGAR MONTHLY,5734,Other consumables,38.49,0.00,38.49
Regeneration and Local Services,Economic Development and Housing,030699,Business Growth and Innovation General,Supplies and Services,304999,Equipment and Materials,09-Jan-2019,000008221231745,MAILCHIMP MONTHLY,5968,Misc equipment tools and materials,62.85,0.00,62.85
Children and Young Peoples Services,Head of Education and Skills,070169,Durham SSP,Supplies and Services,384199,Miscellaneous Expenses,09-Jan-2019,000008221231857,WM MORRISONS STORE,5411,Other hired and contracted services,200.00,0.00,200.00
Regeneration and Local Services,Economic Development and Housing,031576,B& B - Temp Accom,Supplies and Services,364320,Grants to Voluntary Organisations,09-Jan-2019,000008221231997,PREMIER INN,3811,Accommodation assistance,77.00,12.83,64.17
Children and Young Peoples Services,"Head of Early Help, Inclusion and Vulnerable Children",085955,Auckland,Supplies and Services,304259,Equipment and Materials,09-Jan-2019,000008221232219,ARGOS RETAIL GROUP,5310,Equipment-purchase and rental,219.99,0.00,219.99
Children and Young Peoples Services,"Head of Early Help, Inclusion and Vulnerable Children",085954,Walworth,Supplies and Services,384871,Miscellaneous Expenses,09-Jan-2019,000008221232223,WWW.ARGOS.CO.UK,5310,Training-other activities,32.97,0.00,32.97
Children and Young Peoples Services,"Head of Early Help, Inclusion and Vulnerable Children",085956,Lumley,Supplies and Services,304259,Equipment and Materials,09-Jan-2019,000008221232225,WWW.ARGOS.CO.UK,5310,Equipment-purchase and rental,43.94,0.00,43.94
Children and Young Peoples Services,"Head of Early Help, Inclusion and Vulnerable Children",085954,Walworth,Supplies and Services,384871,Miscellaneous Expenses,09-Jan-2019,000008221232253,HALFORDS ON LINE,5940,Training-other activities,23.99,0.00,23.99
Regeneration and Local Services,Direct Services,010525,Catering - Green Lane,Supplies and Services,324117,Provisions E324,09-Jan-2019,000008221232313,BATLEYS PERTH,5300,Catering costs - provisions,-2.50,0.00,-2.50
Children and Young Peoples Services,"Head of Early Help, Inclusion and Vulnerable Children",085965,Barnard,Supplies and Services,304649,Equipment and Materials,09-Jan-2019,000008221232661,BARGAINMAX.CO.UK,5945,Toys,6.98,0.00,6.98
Resources,Corporate Finance & Commercial Services,069800,Corporate Procurement,Employees,040149,Recruitment Instruction and Training,09-Jan-2019,000008221232787,WWW.CIPS.ORG,8699,Training-all costs,130.00,0.00,130.00
Regeneration and Local Services,Culture & Sport,011263,Louisa Centre,Supplies and Services,328041,Clothing uniforms and laundry E328,09-Jan-2019,000008221232805,ARGOS LTD,5310,Clothing uniforms and laundry,199.99,0.00,199.99
Children and Young Peoples Services,"Head of Early Help, Inclusion and Vulnerable Children",085957,Secure Management,Supplies and Services,384871,Miscellaneous Expenses,09-Jan-2019,000008228362507,SPORTSDIRECT.COM,5941,Training-other activities,392.98,65.50,327.48
Children and Young Peoples Services,"Head of Early Help, Inclusion and Vulnerable Children",085954,Walworth,Supplies and Services,384871,Miscellaneous Expenses,09-Jan-2019,000008228362513,SPORTSDIRECT.COM,5941,Training-other activities,16.95,2.83,14.12
Children and Young Peoples Services,"Head of Early Help, Inclusion and Vulnerable Children",085957,Secure Management,Supplies and Services,384871,Miscellaneous Expenses,09-Jan-2019,000008228362515,SPORTSDIRECT.COM,5941,Training-other activities,114.99,19.17,95.82
Children and Young Peoples Services,Head of Education and Skills,054640,Durham Learning Resources,Supplies and Services,304245,Equipment and Materials,10-Jan-2019,000008221231635,AMZN Mktp UK MB6WX2164,5942,Materials,2.20,0.00,2.20
Children and Young Peoples Services,Head of Education and Skills,054640,Durham Learning Resources,Supplies and Services,304245,Equipment and Materials,10-Jan-2019,000008221231639,AMZN Mktp UK MB7GG4164,5942,Materials,131.88,0.00,131.88
Children and Young Peoples Services,Head of Education and Skills,078560,Durham Learn,Supplies and Services,304335,Equipment and Materials,10-Jan-2019,000008221231645,WPENGINE.COM,7372,ICT supplies etc,102.08,0.00,102.08
Regeneration and Local Services,Economic Development and Housing,030773,CLLD North,Transport,235057,Public Transport,10-Jan-2019,000008221231669,STATION TAXIS SUND,4121,Staff travelling,21.00,0.00,21.00
Regeneration and Local Services,Economic Development and Housing,030773,CLLD North,Transport,235057,Public Transport,10-Jan-2019,000008221231683,GO NORTH EAST - V/T,4131,Staff travelling,35.00,0.00,35.00
Children and Young Peoples Services,Head of Childrens Social Care,085332,Middlestone Moor CU,Supplies and Services,324117,Provisions E324,10-Jan-2019,000008221231719,ALDI 15 774,5411,Catering costs - provisions,10.81,0.00,10.81
Regeneration and Local Services,Economic Development and Housing,030699,Business Growth and Innovation General,Supplies and Services,312011,Newspapers books and periodicals E312,10-Jan-2019,000008221231749,FASTHOSTS INTERNET,4816,Books-school library,90.00,15.00,75.00
Regeneration and Local Services,Economic Development and Housing,030699,Business Growth and Innovation General,Supplies and Services,312011,Newspapers books and periodicals E312,10-Jan-2019,000008221231755,FASTHOSTS INTERNET,4816,Books-school library,60.00,10.00,50.00
Regeneration and Local Services,Economic Development and Housing,030699,Business Growth and Innovation General,Supplies and Services,312011,Newspapers books and periodicals E312,10-Jan-2019,000008221231763,FASTHOSTS INTERNET,4816,Books-school library,60.00,10.00,50.00
Regeneration and Local Services,Economic Development and Housing,030699,Business Growth and Innovation General,Supplies and Services,312011,Newspapers books and periodicals E312,10-Jan-2019,000008221231773,FASTHOSTS INTERNET,4816,Books-school library,60.00,10.00,50.00
Regeneration and Local Services,Direct Services,021242,Catering - County Hall,Premises,145009,Cleaning and Domestic Supplies,10-Jan-2019,000008221231845,ALLIANCE DISPOSABLES L,2842,Other cleaning and domestic costs,41.77,6.96,34.81
Regeneration and Local Services,Culture & Sport,054233,Bishop Auckland Town Hall Library,Supplies and Services,312009,Newspapers books and periodicals E312,10-Jan-2019,000008221231849,WH SMITH,5994,Newspapers books and periodicals,7.99,0.00,7.99
Children and Young Peoples Services,Head of Education and Skills,070169,Durham SSP,Supplies and Services,384199,Miscellaneous Expenses,10-Jan-2019,000008221231861,AMZN Mktp UK MB6XB90C4,5942,Other hired and contracted services,32.95,0.00,32.95
Regeneration and Local Services,Direct Services,010864,Fleet - Hackworth Road Fleet,Transport,215013,Running Costs of Vehicles,10-Jan-2019,000008221232011,DVLA VEHICLE TAX,9399,Vehicle Excise Duty (VED),167.50,0.00,167.50
Regeneration and Local Services,Direct Services,010864,Fleet - Hackworth Road Fleet,Transport,215013,Running Costs of Vehicles,10-Jan-2019,000008221232017,DVLA VEHICLE TAX,9399,Vehicle Excise Duty (VED),167.50,0.00,167.50
Regeneration and Local Services,Direct Services,010900,Fleet - Meadowfield Fleet,Transport,215013,Running Costs of Vehicles,10-Jan-2019,000008221232019,DVLA VEHICLE TAX,9399,Vehicle Excise Duty (VED),167.50,0.00,167.50
Regeneration and Local Services,Direct Services,010561,Fleet - Morrison Busty Fleet,Transport,215013,Running Costs of Vehicles,10-Jan-2019,000008221232023,DVLA VEHICLE TAX,9399,Vehicle Excise Duty (VED),252.50,0.00,252.50
Regeneration and Local Services,Direct Services,010864,Fleet - Hackworth Road Fleet,Transport,215013,Running Costs of Vehicles,10-Jan-2019,000008221232025,DVLA VEHICLE TAX,9399,Vehicle Excise Duty (VED),167.50,0.00,167.50
Regeneration and Local Services,Direct Services,010561,Fleet - Morrison Busty Fleet,Transport,215013,Running Costs of Vehicles,10-Jan-2019,000008221232033,DVLA VEHICLE TAX,9399,Vehicle Excise Duty (VED),167.50,0.00,167.50
Regeneration and Local Services,Direct Services,010551,Fleet - Chilton Fleet,Transport,215013,Running Costs of Vehicles,10-Jan-2019,000008221232037,DVLA VEHICLE TAX,9399,Vehicle Excise Duty (VED),167.50,0.00,167.50
Regeneration and Local Services,Direct Services,010551,Fleet - Chilton Fleet,Transport,215013,Running Costs of Vehicles,10-Jan-2019,000008221232041,DVLA VEHICLE TAX,9399,Vehicle Excise Duty (VED),167.50,0.00,167.50
Regeneration and Local Services,Economic Development and Housing,030771,Durham Advance Flexible Fund,Employees,040149,Recruitment Instruction and Training,10-Jan-2019,000008221232141,NATIONWIDE PLATFORMS L,5085,Training-all costs,228.00,0.00,228.00
Children and Young Peoples Services,"Head of Early Help, Inclusion and Vulnerable Children",085965,Barnard,Supplies and Services,328041,Clothing uniforms and laundry E328,10-Jan-2019,000008221232229,M and M Direct Ltd,5941,Clothing uniforms and laundry,162.93,0.00,162.93
Children and Young Peoples Services,"Head of Early Help, Inclusion and Vulnerable Children",085965,Barnard,Supplies and Services,328041,Clothing uniforms and laundry E328,10-Jan-2019,000008221232237,M and M Direct Ltd,5941,Clothing uniforms and laundry,152.93,0.00,152.93
Children and Young Peoples Services,"Head of Early Help, Inclusion and Vulnerable Children",085965,Barnard,Supplies and Services,324117,Provisions E324,10-Jan-2019,000008221232243,TESCO STORES 6329,5411,Catering costs - provisions,92.37,0.00,92.37
Children and Young Peoples Services,"Head of Early Help, Inclusion and Vulnerable Children",085965,Barnard,Supplies and Services,328041,Clothing uniforms and laundry E328,10-Jan-2019,000008221232247,WWW.NIKESTORE.COM,5691,Clothing uniforms and laundry,111.47,0.00,111.47
Regeneration and Local Services,Culture & Sport,054813,Gala Theatre - Technical,Supplies and Services,324117,Provisions E324,10-Jan-2019,000008221232259,whitelightdisplay.co,5399,Catering costs - provisions,290.40,0.00,290.40
Regeneration and Local Services,Culture & Sport,054813,Gala Theatre - Technical,Supplies and Services,324117,Provisions E324,10-Jan-2019,000008221232267,whitelightdisplay.co,5399,Catering costs - provisions,290.40,0.00,290.40
Regeneration and Local Services,Culture & Sport,011060,Hardwick Park Catering,Premises,145009,Cleaning and Domestic Supplies,10-Jan-2019,000008221232281,ALLIANCE DISPOSABLES L,2842,Other cleaning and domestic costs,153.13,25.52,127.61
Regeneration and Local Services,Culture & Sport,011060,Hardwick Park Catering,Premises,145009,Cleaning and Domestic Supplies,10-Jan-2019,000008221232287,ALLIANCE DISPOSABLES L,2842,Other cleaning and domestic costs,146.72,24.45,122.27
Regeneration and Local Services,Direct Services,010525,Catering - Green Lane,Premises,145009,Cleaning and Domestic Supplies,10-Jan-2019,000008221232303,ALLIANCE DISPOSABLES L,2842,Other cleaning and domestic costs,274.20,45.70,228.50
Regeneration and Local Services,Direct Services,010525,Catering - Green Lane,Premises,145009,Cleaning and Domestic Supplies,10-Jan-2019,000008221232303 - 1,ALLIANCE DISPOSABLES L,2842,Other cleaning and domestic costs,0.04,,0.04
Children and Young Peoples Services,Head of Childrens Social Care,085352,Tow Law CU,Transport,215995,Running Costs of Vehicles,10-Jan-2019,000008221232319,HELME PARK S/STN,5541,Vehicle running expenses,40.01,6.67,33.34
Children and Young Peoples Services,Head of Childrens Social Care,085334,West Rainton Satelite Home,Supplies and Services,328041,Clothing uniforms and laundry E328,10-Jan-2019,000008221232471,ARGOS LTD,5310,Clothing uniforms and laundry,49.99,0.00,49.99
Children and Young Peoples Services,Head of Childrens Social Care,085333,Coxhoe Satelite Home,Supplies and Services,324117,Provisions E324,10-Jan-2019,000008221232479,ASDA SUPERSTORE 4987,5411,Catering costs - provisions,133.27,0.00,133.27
Children and Young Peoples Services,Head of Childrens Social Care,085352,Tow Law CU,Supplies and Services,324117,Provisions E324,10-Jan-2019,000008221232529,TESCO STORES 2371,5411,Catering costs - provisions,188.56,0.00,188.56
Children and Young Peoples Services,Head of Education and Skills,070264,EDC Premises,Supplies and Services,324117,Provisions E324,10-Jan-2019,000008221232623,ASDA STORES,5411,Catering costs - provisions,4.36,0.00,4.36
Children and Young Peoples Services,"Head of Early Help, Inclusion and Vulnerable Children",074000,TTF-Attachment and Results,Supplies and Services,312011,Newspapers books and periodicals E312,10-Jan-2019,000008221232629,AMZN Mktp UK MB8SH60M4,5942,Books-school library,29.98,5.00,24.98
Children and Young Peoples Services,"Head of Early Help, Inclusion and Vulnerable Children",074000,TTF-Attachment and Results,Supplies and Services,312011,Newspapers books and periodicals E312,10-Jan-2019,000008221232635,Amazon.co.uk MB8EA90F4,5969,Books-school library,10.43,1.74,8.69
Children and Young Peoples Services,"Head of Early Help, Inclusion and Vulnerable Children",074000,TTF-Attachment and Results,Supplies and Services,312011,Newspapers books and periodicals E312,10-Jan-2019,000008221232641,AMZN Mktp UK MB5G131V4,5942,Books-school library,29.76,0.00,29.76
Children and Young Peoples Services,"Head of Early Help, Inclusion and Vulnerable Children",085957,Secure Management,Supplies and Services,304221,Equipment and Materials,10-Jan-2019,000008221232669,SCREWFIX DIRECT,5211,Direct materials,115.42,0.00,115.42
Children and Young Peoples Services,"Head of Early Help, Inclusion and Vulnerable Children",085957,Secure Management,Supplies and Services,304221,Equipment and Materials,10-Jan-2019,000008221232673,SCREWFIX DIRECT,5211,Direct materials,-19.90,-3.32,-16.58
Children and Young Peoples Services,Head of Childrens Social Care,085513,Supervised Contact Centre,Supplies and Services,324117,Provisions E324,10-Jan-2019,000008221232689,WM MORRISONS STORE,5411,Catering costs - provisions,10.00,0.00,10.00
Children and Young Peoples Services,"Head of Early Help, Inclusion and Vulnerable Children",085801,CDYOS - Support,Supplies and Services,324117,Provisions E324,10-Jan-2019,000008221232733,ASDA STORES,5411,Catering costs - provisions,16.95,0.00,16.95
Resources,Digital and Customer Services,069010,Administration,Supplies and Services,304259,Equipment and Materials,10-Jan-2019,000008221232845,DISCLOSURE AND BARRING,9399,Equipment-purchase and rental,25.00,0.00,25.00
Resources,Digital and Customer Services,069010,Administration,Supplies and Services,342033,Computers and Communications,10-Jan-2019,000008221232853,ELCOMPONENT LTD,5964,Computer hardware,475.20,0.00,475.20
Regeneration and Local Services,Direct Services,021235,Catering - Wharton Park,Premises,145009,Cleaning and Domestic Supplies,10-Jan-2019,000008221232871,ALLIANCE DISPOSABLES L,2842,Other cleaning and domestic costs,37.04,6.17,30.87
Adult and Health Services,Head of Adults,055309,Peterlee Pathways,Supplies and Services,312011,Newspapers books and periodicals E312,10-Jan-2019,000008221232905,AMZN Mktp UK MB36C21V4,5942,Books-school library,11.49,0.00,11.49
Regeneration and Local Services,Direct Services,021242,Catering - County Hall,Supplies and Services,324117,Provisions E324,10-Jan-2019,000008228362045,BATLEYS PERTH,5300,Catering costs - provisions,358.74,59.79,298.95
Regeneration and Local Services,Direct Services,021242,Catering - County Hall,Supplies and Services,324117,Provisions E324,10-Jan-2019,000008228362045 - 1,BATLEYS PERTH,5300,Catering costs - provisions,96.18,,96.18
Regeneration and Local Services,Economic Development and Housing,031500,Housing Solutions - Core Team,Employees,040149,Recruitment Instruction and Training,10-Jan-2019,000008228362489,PREMIER INN,3811,Training-all costs,244.00,40.67,203.33
Regeneration and Local Services,Culture & Sport,011060,Hardwick Park Catering,Supplies and Services,324117,Provisions E324,10-Jan-2019,000008228362561,BATLEYS PERTH,5300,Catering costs - provisions,202.80,33.80,169.00
Regeneration and Local Services,Culture & Sport,011060,Hardwick Park Catering,Supplies and Services,324117,Provisions E324,10-Jan-2019,000008228362561 - 1,BATLEYS PERTH,5300,Catering costs - provisions,218.32,,218.32
Regeneration and Local Services,Culture & Sport,011060,Hardwick Park Catering,Supplies and Services,324117,Provisions E324,10-Jan-2019,000008228362567,BATLEYS PERTH,5300,Catering costs - provisions,10.20,0.00,10.20
Regeneration and Local Services,Direct Services,030691,"Catering - Durham Dales Centre			",Supplies and Services,324117,Provisions E324,10-Jan-2019,000008228362751,BATLEYS PERTH,5300,Catering costs - provisions,20.14,3.36,16.78
Children and Young Peoples Services,Head of Education and Skills,078560,Durham Learn,Supplies and Services,304335,Equipment and Materials,11-Jan-2019,000008221231647,WPENGINE.COM,7372,ICT supplies etc,2.81,0.00,2.81
Regeneration and Local Services,Economic Development and Housing,030699,Business Growth and Innovation General,Supplies and Services,342033,Computers and Communications,11-Jan-2019,000008221231777,SLICKPLAN.COM,7372,Computer hardware,0.22,0.00,0.22
Regeneration and Local Services,Economic Development and Housing,030699,Business Growth and Innovation General,Supplies and Services,304403,Equipment and Materials,11-Jan-2019,000008221231779,MEETEDGAR MONTHLY,5734,Other consumables,1.06,0.00,1.06
Regeneration and Local Services,Economic Development and Housing,030699,Business Growth and Innovation General,Supplies and Services,304999,Equipment and Materials,11-Jan-2019,000008221231781,MAILCHIMP MONTHLY,5968,Misc equipment tools and materials,1.73,0.00,1.73
Children and Young Peoples Services,Head of Education and Skills,071801,Selby Cottage Childcare Centre,Supplies and Services,324117,Provisions E324,11-Jan-2019,000008228361875,TESCO STORES 2278,5411,Catering costs - provisions,4.18,0.00,4.18
Regeneration and Local Services,Culture & Sport,054401,Strategic Management Libraries,Supplies and Services,304221,Equipment and Materials,11-Jan-2019,000008228361939,SCREWFIX DIRECT,5211,Direct materials,29.94,4.99,24.95
Regeneration and Local Services,Culture & Sport,054401,Strategic Management Libraries,Supplies and Services,304221,Equipment and Materials,11-Jan-2019,000008228361939 - 1,SCREWFIX DIRECT,5211,Direct materials,5.05,,5.05
Dedicated Schools Grant,DSG High Needs Block,079050,SENSS-Sensory,Supplies and Services,304259,Equipment and Materials,11-Jan-2019,000008228361953,CURRYS,5732,Equipment-purchase and rental,356.98,0.00,356.98
Children and Young Peoples Services,Head of Childrens Social Care,085621,Families First Aycliffe,Supplies and Services,338045,Services,11-Jan-2019,000008228361957,HM PASSPORT OFFICE,9399,Legal expenses 338045,54.00,0.00,54.00
Children and Young Peoples Services,Head of Childrens Social Care,085332,Middlestone Moor CU,Supplies and Services,324117,Provisions E324,11-Jan-2019,000008228361961,TESCO STORES 2371,5411,Catering costs - provisions,114.46,0.00,114.46
Regeneration and Local Services,Economic Development and Housing,030699,Business Growth and Innovation General,Supplies and Services,312011,Newspapers books and periodicals E312,11-Jan-2019,000008228361963,FASTHOSTS INTERNET,4816,Books-school library,60.00,10.00,50.00
Regeneration and Local Services,Economic Development and Housing,030699,Business Growth and Innovation General,Supplies and Services,312011,Newspapers books and periodicals E312,11-Jan-2019,000008228361967,FASTHOSTS INTERNET,4816,Books-school library,60.00,10.00,50.00
Regeneration and Local Services,Economic Development and Housing,030699,Business Growth and Innovation General,Supplies and Services,312011,Newspapers books and periodicals E312,11-Jan-2019,000008228361969,FASTHOSTS INTERNET,4816,Books-school library,60.00,10.00,50.00
Children and Young Peoples Services,Childrens Services Operational Support,052986,CYPS - Locality and Operational Support,Supplies and Services,332047,Printing Stationery and Gen Off Exps,11-Jan-2019,000008228362029,AMZN MKTP UK MB7MV9PN4,5942,Stationery,35.84,5.97,29.87
Regeneration and Local Services,Direct Services,021242,Catering - County Hall,Premises,145009,Cleaning and Domestic Supplies,11-Jan-2019,000008228362037,ALLIANCE DISPOSABLES L,2842,Other cleaning and domestic costs,67.92,11.32,56.60
Regeneration and Local Services,Direct Services,021242,Catering - County Hall,Premises,145009,Cleaning and Domestic Supplies,11-Jan-2019,000008228362041,ALLIANCE DISPOSABLES L,2842,Other cleaning and domestic costs,25.49,4.25,21.24
Regeneration and Local Services,Culture & Sport,054233,Bishop Auckland Town Hall Library,Supplies and Services,304259,Equipment and Materials,11-Jan-2019,000008228362053,WILKO RETAIL LIMIT,5722,Equipment-purchase and rental,6.75,0.00,6.75
Regeneration and Local Services,Economic Development and Housing,030771,Durham Advance Flexible Fund,Supplies and Services,304221,Equipment and Materials,11-Jan-2019,000008228362061,SCREWFIX DURHAM,5211,Direct materials,49.92,8.32,41.60
Regeneration and Local Services,Economic Development and Housing,030771,Durham Advance Flexible Fund,Supplies and Services,304221,Equipment and Materials,11-Jan-2019,000008228362061 - 1,SCREWFIX DURHAM,5211,Direct materials,30.05,,30.05
Resources,Digital and Customer Services,065461,Business Support,Supplies and Services,372009,Subscriptions E372,11-Jan-2019,000008228362063,NOMINET UK,7392,Subscriptions 372009,36.00,0.00,36.00
Regeneration and Local Services,Economic Development and Housing,030544,Rural Employability - Client Engagement,Transport,235057,Public Transport,11-Jan-2019,000008228362073,GO NORTH EAST LIMITED,4131,Staff travelling,13.40,0.00,13.40
Regeneration and Local Services,Economic Development and Housing,030773,CLLD North,Employees,040149,Recruitment Instruction and Training,11-Jan-2019,000008228362145,WWW.DISCLOSURE.CAPITAR,8999,Training-all costs,44.00,0.00,44.00
Children and Young Peoples Services,Head of Childrens Social Care,085333,Coxhoe Satelite Home,Supplies and Services,324117,Provisions E324,11-Jan-2019,000008228362165,CO-OP GROUP 310016,5411,Catering costs - provisions,10.15,0.00,10.15
Regeneration and Local Services,Direct Services,010900,Fleet - Meadowfield Fleet,Transport,215013,Running Costs of Vehicles,11-Jan-2019,000008228362211,DVLA VEHICLE TAX,9399,Vehicle Excise Duty (VED),252.50,0.00,252.50
Regeneration and Local Services,Direct Services,010900,Fleet - Meadowfield Fleet,Transport,215013,Running Costs of Vehicles,11-Jan-2019,000008228362213,DVLA VEHICLE TAX,9399,Vehicle Excise Duty (VED),252.50,0.00,252.50
Regeneration and Local Services,Direct Services,010900,Fleet - Meadowfield Fleet,Transport,215013,Running Costs of Vehicles,11-Jan-2019,000008228362215,DVLA VEHICLE TAX,9399,Vehicle Excise Duty (VED),252.50,0.00,252.50
Regeneration and Local Services,Direct Services,010900,Fleet - Meadowfield Fleet,Transport,215013,Running Costs of Vehicles,11-Jan-2019,000008228362219,DVLA VEHICLE TAX,9399,Vehicle Excise Duty (VED),252.50,0.00,252.50
Regeneration and Local Services,Direct Services,010900,Fleet - Meadowfield Fleet,Transport,215013,Running Costs of Vehicles,11-Jan-2019,000008228362223,DVLA VEHICLE TAX,9399,Vehicle Excise Duty (VED),252.50,0.00,252.50
Regeneration and Local Services,Direct Services,010900,Fleet - Meadowfield Fleet,Transport,215013,Running Costs of Vehicles,11-Jan-2019,000008228362227,DVLA VEHICLE TAX,9399,Vehicle Excise Duty (VED),252.50,0.00,252.50
Regeneration and Local Services,Direct Services,010900,Fleet - Meadowfield Fleet,Transport,215013,Running Costs of Vehicles,11-Jan-2019,000008228362229,DVLA VEHICLE TAX,9399,Vehicle Excise Duty (VED),252.50,0.00,252.50
Regeneration and Local Services,Direct Services,010900,Fleet - Meadowfield Fleet,Transport,215013,Running Costs of Vehicles,11-Jan-2019,000008228362233,DVLA VEHICLE TAX,9399,Vehicle Excise Duty (VED),252.50,0.00,252.50
Regeneration and Local Services,Direct Services,010900,Fleet - Meadowfield Fleet,Transport,215013,Running Costs of Vehicles,11-Jan-2019,000008228362235,DVLA VEHICLE TAX,9399,Vehicle Excise Duty (VED),252.50,0.00,252.50
Regeneration and Local Services,Direct Services,010900,Fleet - Meadowfield Fleet,Transport,215013,Running Costs of Vehicles,11-Jan-2019,000008228362239,DVLA VEHICLE TAX,9399,Vehicle Excise Duty (VED),252.50,0.00,252.50
Regeneration and Local Services,Direct Services,010551,Fleet - Chilton Fleet,Transport,215013,Running Costs of Vehicles,11-Jan-2019,000008228362241,DVLA VEHICLE TAX,9399,Vehicle Excise Duty (VED),252.50,0.00,252.50
Regeneration and Local Services,Direct Services,010900,Fleet - Meadowfield Fleet,Transport,215013,Running Costs of Vehicles,11-Jan-2019,000008228362243,DVLA VEHICLE TAX,9399,Vehicle Excise Duty (VED),252.50,0.00,252.50
Regeneration and Local Services,Direct Services,010551,Fleet - Chilton Fleet,Transport,215013,Running Costs of Vehicles,11-Jan-2019,000008228362245,DVLA VEHICLE TAX,9399,Vehicle Excise Duty (VED),252.50,0.00,252.50
Regeneration and Local Services,Direct Services,010551,Fleet - Chilton Fleet,Transport,215013,Running Costs of Vehicles,11-Jan-2019,000008228362249,DVLA VEHICLE TAX,9399,Vehicle Excise Duty (VED),252.50,0.00,252.50
Regeneration and Local Services,Direct Services,010900,Fleet - Meadowfield Fleet,Transport,215013,Running Costs of Vehicles,11-Jan-2019,000008228362251,DVLA VEHICLE TAX,9399,Vehicle Excise Duty (VED),252.50,0.00,252.50
Regeneration and Local Services,Direct Services,010551,Fleet - Chilton Fleet,Transport,215013,Running Costs of Vehicles,11-Jan-2019,000008228362255,DVLA VEHICLE TAX,9399,Vehicle Excise Duty (VED),252.50,0.00,252.50
Regeneration and Local Services,Direct Services,010900,Fleet - Meadowfield Fleet,Transport,215013,Running Costs of Vehicles,11-Jan-2019,000008228362259,DVLA VEHICLE TAX,9399,Vehicle Excise Duty (VED),252.50,0.00,252.50
Regeneration and Local Services,Direct Services,010900,Fleet - Meadowfield Fleet,Transport,215013,Running Costs of Vehicles,11-Jan-2019,000008228362261,DVLA VEHICLE TAX,9399,Vehicle Excise Duty (VED),252.50,0.00,252.50
Regeneration and Local Services,Direct Services,010900,Fleet - Meadowfield Fleet,Transport,215013,Running Costs of Vehicles,11-Jan-2019,000008228362265,DVLA VEHICLE TAX,9399,Vehicle Excise Duty (VED),252.50,0.00,252.50
Regeneration and Local Services,Direct Services,010900,Fleet - Meadowfield Fleet,Transport,215013,Running Costs of Vehicles,11-Jan-2019,000008228362267,DVLA VEHICLE TAX,9399,Vehicle Excise Duty (VED),252.50,0.00,252.50
Regeneration and Local Services,Direct Services,010900,Fleet - Meadowfield Fleet,Transport,215013,Running Costs of Vehicles,11-Jan-2019,000008228362269,DVLA VEHICLE TAX,9399,Vehicle Excise Duty (VED),252.50,0.00,252.50
Regeneration and Local Services,Direct Services,010551,Fleet - Chilton Fleet,Transport,215013,Running Costs of Vehicles,11-Jan-2019,000008228362271,DVLA VEHICLE TAX,9399,Vehicle Excise Duty (VED),252.50,0.00,252.50
Regeneration and Local Services,Direct Services,010551,Fleet - Chilton Fleet,Transport,215013,Running Costs of Vehicles,11-Jan-2019,000008228362275,DVLA VEHICLE TAX,9399,Vehicle Excise Duty (VED),252.50,0.00,252.50
Regeneration and Local Services,Direct Services,010900,Fleet - Meadowfield Fleet,Transport,215013,Running Costs of Vehicles,11-Jan-2019,000008228362281,DVLA VEHICLE TAX,9399,Vehicle Excise Duty (VED),252.50,0.00,252.50
Regeneration and Local Services,Direct Services,010864,Fleet - Hackworth Road Fleet,Transport,215013,Running Costs of Vehicles,11-Jan-2019,000008228362295,DVLA VEHICLE TAX,9399,Vehicle Excise Duty (VED),252.50,0.00,252.50
Regeneration and Local Services,Direct Services,010864,Fleet - Hackworth Road Fleet,Transport,215013,Running Costs of Vehicles,11-Jan-2019,000008228362307,DVLA VEHICLE TAX,9399,Vehicle Excise Duty (VED),252.50,0.00,252.50
Regeneration and Local Services,Direct Services,010561,Fleet - Morrison Busty Fleet,Transport,215013,Running Costs of Vehicles,11-Jan-2019,000008228362313,DVLA VEHICLE TAX,9399,Vehicle Excise Duty (VED),252.50,0.00,252.50
Regeneration and Local Services,Direct Services,010900,Fleet - Meadowfield Fleet,Transport,215013,Running Costs of Vehicles,11-Jan-2019,000008228362315,DVLA VEHICLE TAX,9399,Vehicle Excise Duty (VED),252.50,0.00,252.50
Regeneration and Local Services,Direct Services,010900,Fleet - Meadowfield Fleet,Transport,215013,Running Costs of Vehicles,11-Jan-2019,000008228362317,DVLA VEHICLE TAX,9399,Vehicle Excise Duty (VED),252.50,0.00,252.50
Regeneration and Local Services,Direct Services,010900,Fleet - Meadowfield Fleet,Transport,215013,Running Costs of Vehicles,11-Jan-2019,000008228362319,DVLA VEHICLE TAX,9399,Vehicle Excise Duty (VED),252.50,0.00,252.50
Regeneration and Local Services,Direct Services,010900,Fleet - Meadowfield Fleet,Transport,215013,Running Costs of Vehicles,11-Jan-2019,000008228362321,DVLA VEHICLE TAX,9399,Vehicle Excise Duty (VED),252.50,0.00,252.50
Regeneration and Local Services,Direct Services,010900,Fleet - Meadowfield Fleet,Transport,215013,Running Costs of Vehicles,11-Jan-2019,000008228362325,DVLA VEHICLE TAX,9399,Vehicle Excise Duty (VED),252.50,0.00,252.50
Regeneration and Local Services,Direct Services,010551,Fleet - Chilton Fleet,Transport,215013,Running Costs of Vehicles,11-Jan-2019,000008228362329,DVLA VEHICLE TAX,9399,Vehicle Excise Duty (VED),252.50,0.00,252.50
Regeneration and Local Services,Direct Services,010551,Fleet - Chilton Fleet,Transport,215013,Running Costs of Vehicles,11-Jan-2019,000008228362333,DVLA VEHICLE TAX,9399,Vehicle Excise Duty (VED),252.50,0.00,252.50
Regeneration and Local Services,Direct Services,010900,Fleet - Meadowfield Fleet,Transport,215013,Running Costs of Vehicles,11-Jan-2019,000008228362337,DVLA VEHICLE TAX,9399,Vehicle Excise Duty (VED),252.50,0.00,252.50
Regeneration and Local Services,Culture & Sport,054813,Gala Theatre - Technical,Supplies and Services,312011,Newspapers books and periodicals E312,11-Jan-2019,000008228362391,AMZN Mktp UK MB61X1PM4,5942,Books-school library,7.20,0.00,7.20
Regeneration and Local Services,Culture & Sport,054813,Gala Theatre - Technical,Supplies and Services,312011,Newspapers books and periodicals E312,11-Jan-2019,000008228362395,AMZN Mktp UK MB9BB5P44,5942,Books-school library,26.99,0.00,26.99
Regeneration and Local Services,Culture & Sport,054813,Gala Theatre - Technical,Supplies and Services,312011,Newspapers books and periodicals E312,11-Jan-2019,000008228362397,AMZN MKTP UK MB55O8P54,5942,Books-school library,175.00,0.00,175.00
Regeneration and Local Services,Spatial Policy Planning Assets & Environment,031204,North Pennines Nectarworks,Supplies and Services,304403,Equipment and Materials,11-Jan-2019,000008228362437,KMS DISTRIBUTIONS,5999,Other consumables,119.00,19.83,99.17
Regeneration and Local Services,Culture & Sport,010991,County-wide FISCH,Supplies and Services,304221,Equipment and Materials,11-Jan-2019,000008228362477,TPBC ULVERSTON,5099,Direct materials,112.60,0.00,112.60
Regeneration and Local Services,Culture & Sport,010991,County-wide FISCH,Supplies and Services,304221,Equipment and Materials,11-Jan-2019,000008228362483,TPBC ULVERSTON,5099,Direct materials,-51.60,0.00,-51.60
Children and Young Peoples Services,Head of Education and Skills,071903,EYDCP-Sustainability EDS,Third Party Payments 4THIRD,430100,Rendered by Private Contractors,11-Jan-2019,000008228362485,EB COUNTY LINES CONFE,7399,Payments to sub-contractors,99.00,0.00,99.00
Children and Young Peoples Services,"Head of Early Help, Inclusion and Vulnerable Children",085956,Lumley,Supplies and Services,324117,Provisions E324,11-Jan-2019,000008228362503,TESCO STORES 6329,5411,Catering costs - provisions,51.93,0.00,51.93
Regeneration and Local Services,Culture & Sport,054813,Gala Theatre - Technical,Supplies and Services,312011,Newspapers books and periodicals E312,11-Jan-2019,000008228362527,AMZN Mktp UK MB0627PZ4,5942,Books-school library,9.45,0.00,9.45
Regeneration and Local Services,Culture & Sport,054813,Gala Theatre - Technical,Supplies and Services,312011,Newspapers books and periodicals E312,11-Jan-2019,000008228362531,AMZN Mktp UK MB4914PO4,5942,Books-school library,49.99,0.00,49.99
Children and Young Peoples Services,Childrens Services Operational Support,052986,CYPS - Locality and Operational Support,Supplies and Services,304259,Equipment and Materials,11-Jan-2019,000008228362553,SUNDERLAND CC,9399,Equipment-purchase and rental,10.00,0.00,10.00
Regeneration and Local Services,Culture & Sport,011060,Hardwick Park Catering,Premises,145009,Cleaning and Domestic Supplies,11-Jan-2019,000008228362559,ALLIANCE DISPOSABLES L,2842,Other cleaning and domestic costs,35.77,5.96,29.81
Regeneration and Local Services,Economic Development and Housing,030757,Interserve/Skills Support for the Unemployed,Employees,040149,Recruitment Instruction and Training,11-Jan-2019,000008228362587,WWW.CSKILLS.ORG,8249,Training-all costs,36.00,0.00,36.00
Regeneration and Local Services,Economic Development and Housing,030757,Interserve/Skills Support for the Unemployed,Employees,040149,Recruitment Instruction and Training,11-Jan-2019,000008228362591,WWW.CSKILLS.ORG,8249,Training-all costs,36.00,0.00,36.00
Regeneration and Local Services,Economic Development and Housing,030757,Interserve/Skills Support for the Unemployed,Employees,040149,Recruitment Instruction and Training,11-Jan-2019,000008228362595,WWW.CSKILLS.ORG,8249,Training-all costs,36.00,0.00,36.00
Regeneration and Local Services,Economic Development and Housing,030757,Interserve/Skills Support for the Unemployed,Employees,040149,Recruitment Instruction and Training,11-Jan-2019,000008228362599,WWW.CSKILLS.ORG,8249,Training-all costs,36.00,0.00,36.00
Children and Young Peoples Services,Head of Childrens Social Care,085551,Short Break Services-Park Hse Sher,Supplies and Services,324117,Provisions E324,11-Jan-2019,000008228362625,ALDI 59 774,5411,Catering costs - provisions,28.80,0.00,28.80
Resources,Finance & Transactional Services,065175,Administration,Supplies and Services,308011,Furniture,11-Jan-2019,000008228362631,AMZN Mktp UK MB5LC0PS4,5942,Furniture repair and replacement,37.62,6.27,31.35
Resources,Corporate Finance & Commercial Services,069800,Corporate Procurement,Supplies and Services,308011,Furniture,11-Jan-2019,000008228362631 - 1,AMZN Mktp UK MB5LC0PS4,5942,Furniture repair and replacement,18.36,,18.36
Children and Young Peoples Services,Head of Childrens Social Care,085334,West Rainton Satelite Home,Supplies and Services,324117,Provisions E324,11-Jan-2019,000008228362689,TESCO STORES 2371,5411,Catering costs - provisions,63.03,0.00,63.03
Children and Young Peoples Services,Head of Childrens Social Care,085334,West Rainton Satelite Home,Supplies and Services,308011,Furniture,11-Jan-2019,000008228362693,PAYPAL FASHIONKING,5712,Furniture repair and replacement,13.99,0.00,13.99
Children and Young Peoples Services,Head of Childrens Social Care,085334,West Rainton Satelite Home,Supplies and Services,304403,Equipment and Materials,11-Jan-2019,000008228362695,PAYPAL LAURENWHITE,5999,Other consumables,10.95,0.00,10.95
Children and Young Peoples Services,Head of Childrens Social Care,085352,Tow Law CU,Supplies and Services,324117,Provisions E324,11-Jan-2019,000008228362731,ASDA SUPERSTORE 4987,5411,Catering costs - provisions,67.14,0.00,67.14
Children and Young Peoples Services,Head of Childrens Social Care,085352,Tow Law CU,Supplies and Services,324117,Provisions E324,11-Jan-2019,000008228362735,ASDA SUPERSTORE 4987,5411,Catering costs - provisions,37.00,0.00,37.00
Regeneration and Local Services,Spatial Policy Planning Assets & Environment,031222,North Pennines Allen Valleys Landscape Partnership,Supplies and Services,352001,Conference Expenses,11-Jan-2019,000008228362793,THE CUMBERLAND HOT,7011,Conferencesseminars fees etc,35.10,5.85,29.25
Children and Young Peoples Services,"Head of Early Help, Inclusion and Vulnerable Children",088100,Durham West & CLS 0-19 Targeted Family Support,Supplies and Services,312011,Newspapers books and periodicals E312,11-Jan-2019,000008228362841,AMZN Mktp UK MB4G92P74,5942,Books-school library,26.50,0.00,26.50
Children and Young Peoples Services,"Head of Early Help, Inclusion and Vulnerable Children",088100,Durham West & CLS 0-19 Targeted Family Support,Supplies and Services,312011,Newspapers books and periodicals E312,11-Jan-2019,000008228362845,AMZN MKTP UK MB2L60PV4,5942,Books-school library,37.80,0.00,37.80
Children and Young Peoples Services,"Head of Early Help, Inclusion and Vulnerable Children",088100,Durham West & CLS 0-19 Targeted Family Support,Supplies and Services,312011,Newspapers books and periodicals E312,11-Jan-2019,000008228362849,AMZN MKTP UK MB0NO1PR4,5942,Books-school library,47.94,0.00,47.94
Children and Young Peoples Services,"Head of Early Help, Inclusion and Vulnerable Children",074000,TTF-Attachment and Results,Supplies and Services,312011,Newspapers books and periodicals E312,11-Jan-2019,000008228362861,Amazon.co.uk MB2VH6PC4,5969,Books-school library,25.49,4.25,21.24
Children and Young Peoples Services,"Head of Early Help, Inclusion and Vulnerable Children",074000,TTF-Attachment and Results,Supplies and Services,312011,Newspapers books and periodicals E312,11-Jan-2019,000008228362865,Amazon.co.uk MB8V33PC4,5969,Books-school library,25.49,4.25,21.24
Resources,Digital and Customer Services,065335,School Services - Implementations,Supplies and Services,304303,Equipment and Materials,11-Jan-2019,000008228362879,WWW.TOOLSTATION.COM,5251,Network for resale,48.78,8.13,40.65
Children and Young Peoples Services,"Head of Early Help, Inclusion and Vulnerable Children",085952,Secure Education,Employees,040149,Recruitment Instruction and Training,11-Jan-2019,000008228362889,VUE NCS CITB HS&E TEST,8299,Training-all costs,21.00,0.00,21.00
Regeneration and Local Services,Transport and Contracted Services,031704,Care Connect - CCTV Countywide,Supplies and Services,384956,Miscellaneous Expenses,11-Jan-2019,000008228362897,SECURITY INDUSTRY,7393,Licences,220.00,0.00,220.00
Children and Young Peoples Services,Childrens Services Operational Support,052986,CYPS - Locality and Operational Support,Supplies and Services,304252,Equipment and Materials,11-Jan-2019,000008228362901,MAGRINI LTD,5072,Equipment-repairsserviceinsurance,24.54,0.00,24.54
Children and Young Peoples Services,Head of Childrens Social Care,085333,Coxhoe Satelite Home,Supplies and Services,324117,Provisions E324,11-Jan-2019,000008228362933,TESCO STORES 2916,5411,Catering costs - provisions,117.85,0.00,117.85
Resources,Corporate Finance & Commercial Services,069800,Corporate Procurement,Employees,040149,Recruitment Instruction and Training,11-Jan-2019,000008228362961,WWW.CIPS.ORG,8699,Training-all costs,130.00,0.00,130.00
Adult and Health Services,Head of Adults,055807,Newton Aycliffe Pathways,Supplies and Services,340001,Postages E340,11-Jan-2019,000008228363015,YOUNGS NEWSAGE LTD 391,5411,Postages,8.04,0.00,8.04
Adult and Health Services,Head of Adults,055807,Newton Aycliffe Pathways,Third Party Payments 4THIRD,474101,Purchase of Care,11-Jan-2019,000008228363017,PIONEERING CARE PARTNE,8050,Nursing care payments,48.00,0.00,48.00
Adult and Health Services,Head of Adults,055807,Newton Aycliffe Pathways,Supplies and Services,324117,Provisions E324,11-Jan-2019,000008228363021,TESCO STORES 2916,5411,Catering costs - provisions,2.75,0.00,2.75
Children and Young Peoples Services,Head of Childrens Social Care,085363,LAC & Permanence Team 3,Supplies and Services,338045,Services,11-Jan-2019,000008228363057,HARTLEPOOL BC CNP,9399,Legal expenses 338045,14.00,0.00,14.00
Regeneration and Local Services,Direct Services,030691,"Catering - Durham Dales Centre			",Supplies and Services,324117,Provisions E324,11-Jan-2019,000008228363091,Castle Bank Butchers,5422,Catering costs - provisions,9.13,0.00,9.13
Regeneration and Local Services,Direct Services,030691,"Catering - Durham Dales Centre			",Supplies and Services,324117,Provisions E324,11-Jan-2019,000008228363095,Castle Bank Butchers,5422,Catering costs - provisions,7.94,0.00,7.94
Regeneration and Local Services,Culture & Sport,011060,Hardwick Park Catering,Supplies and Services,324117,Provisions E324,11-Jan-2019,000008235941369,BATLEYS PERTH,5300,Catering costs - provisions,97.98,16.33,81.65
Regeneration and Local Services,Culture & Sport,011060,Hardwick Park Catering,Supplies and Services,324117,Provisions E324,11-Jan-2019,000008235941369 - 1,BATLEYS PERTH,5300,Catering costs - provisions,173.25,,173.25
Regeneration and Local Services,Direct Services,021234,Catering - Locomotion,Supplies and Services,324117,Provisions E324,11-Jan-2019,000008235941421,BATLEYS PERTH,5300,Catering costs - provisions,199.86,33.31,166.55
Regeneration and Local Services,Direct Services,021234,Catering - Locomotion,Supplies and Services,324117,Provisions E324,11-Jan-2019,000008235941421 - 1,BATLEYS PERTH,5300,Catering costs - provisions,52.52,,52.52
Regeneration and Local Services,Direct Services,010525,Catering - Green Lane,Supplies and Services,324117,Provisions E324,11-Jan-2019,000008235941473,BATLEYS PERTH,5300,Catering costs - provisions,170.76,28.46,142.30
Regeneration and Local Services,Direct Services,010525,Catering - Green Lane,Supplies and Services,324117,Provisions E324,11-Jan-2019,000008235941473 - 1,BATLEYS PERTH,5300,Catering costs - provisions,107.50,,107.50
Adult and Health Services,Head of Adults,055643,Hawthorn House LD Respite Unit,Supplies and Services,324117,Provisions E324,11-Jan-2019,000008235941703,BATLEYS PERTH,5300,Catering costs - provisions,51.78,8.63,43.15
Adult and Health Services,Head of Adults,055643,Hawthorn House LD Respite Unit,Supplies and Services,324117,Provisions E324,11-Jan-2019,000008235941703 - 1,BATLEYS PERTH,5300,Catering costs - provisions,122.59,,122.59
Children and Young Peoples Services,"Head of Early Help, Inclusion and Vulnerable Children",085957,Secure Management,Supplies and Services,372009,Subscriptions E372,11-Jan-2019,000008235941761,SKY BUSINESS,4899,Subscriptions 372009,104.95,0.00,104.95
Resources,Digital and Customer Services,065212,Digital Durham,Supplies and Services,336005,Advertising E336,12-Jan-2019,000008228361879,Twitter Online Ads,7311,Advertising other than for staff,55.50,0.00,55.50
Adult and Health Services,Commissioning inc Supporting People,052100,Supporting the Provider Market,Supplies and Services,312011,Newspapers books and periodicals E312,12-Jan-2019,000008228362033,Amazon.co.uk MB6JF3G64,5969,Books-school library,15.98,0.00,15.98
Children and Young Peoples Services,Childrens Services Operational Support,052986,CYPS - Locality and Operational Support,Supplies and Services,324117,Provisions E324,12-Jan-2019,000008228362355,WM MORRISONS STORE,5411,Catering costs - provisions,60.00,0.00,60.00
Children and Young Peoples Services,"Head of Early Help, Inclusion and Vulnerable Children",085954,Walworth,Supplies and Services,324117,Provisions E324,12-Jan-2019,000008228362517,TESCO STORES 6329,5411,Catering costs - provisions,131.01,0.00,131.01
Children and Young Peoples Services,Head of Education and Skills,070264,EDC Premises,Supplies and Services,304245,Equipment and Materials,12-Jan-2019,000008228362825,AMZN Mktp UK MB0KI1GT4,5942,Materials,7.79,0.00,7.79
Children and Young Peoples Services,Head of Childrens Social Care,085332,Middlestone Moor CU,Supplies and Services,308011,Furniture,12-Jan-2019,000008228362971,SP DIVAN BASE DIRECT,5691,Furniture repair and replacement,305.91,0.00,305.91
Children and Young Peoples Services,Head of Childrens Social Care,085332,Middlestone Moor CU,Supplies and Services,308011,Furniture,12-Jan-2019,000008228362975,SP DIVAN BASE DIRECT,5691,Furniture repair and replacement,305.91,0.00,305.91
Children and Young Peoples Services,Head of Education and Skills,071732,Dean Bank Childcare,Supplies and Services,324117,Provisions E324,13-Jan-2019,000008228362383,SAINSBURYS SACAT (2303,5411,Catering costs - provisions,26.70,0.00,26.70
Children and Young Peoples Services,Head of Education and Skills,071732,Dean Bank Childcare,Supplies and Services,328041,Clothing uniforms and laundry E328,13-Jan-2019,000008228362387,ARGOS SEDGEFIELD,5310,Clothing uniforms and laundry,17.99,0.00,17.99
Regeneration and Local Services,Culture & Sport,054813,Gala Theatre - Technical,Supplies and Services,312011,Newspapers books and periodicals E312,13-Jan-2019,000008228362535,AMZN Mktp UK MB28L6G84,5942,Books-school library,24.99,0.00,24.99
Regeneration and Local Services,Culture & Sport,054813,Gala Theatre - Technical,Supplies and Services,304259,Equipment and Materials,13-Jan-2019,000008228362539,Prime Video MB1D64XZ4,5735,Equipment-purchase and rental,2.49,0.00,2.49
Regeneration and Local Services,Culture & Sport,054813,Gala Theatre - Technical,Supplies and Services,312011,Newspapers books and periodicals E312,13-Jan-2019,000008228362541,AMZN Mktp UK MB2T99XS4,5942,Books-school library,24.95,0.00,24.95
Regeneration and Local Services,Culture & Sport,054813,Gala Theatre - Technical,Supplies and Services,312011,Newspapers books and periodicals E312,13-Jan-2019,000008228362543,AMZN Mktp UK MB4R45XZ4,5942,Books-school library,81.11,0.00,81.11
Regeneration and Local Services,Culture & Sport,054813,Gala Theatre - Technical,Supplies and Services,312011,Newspapers books and periodicals E312,13-Jan-2019,000008228362545,Amazon.co.uk MB1O22XS4,5969,Books-school library,16.28,0.00,16.28
Regeneration and Local Services,Culture & Sport,054813,Gala Theatre - Technical,Supplies and Services,312011,Newspapers books and periodicals E312,13-Jan-2019,000008228362547,Amazon.co.uk MB27V9X54,5969,Books-school library,16.28,0.00,16.28
Children and Young Peoples Services,Head of Childrens Social Care,085334,West Rainton Satelite Home,Supplies and Services,312011,Newspapers books and periodicals E312,13-Jan-2019,000008228362697,TOOLSTATION LTD,5251,Books-school library,23.53,0.00,23.53
Children and Young Peoples Services,Head of Childrens Social Care,085334,West Rainton Satelite Home,Supplies and Services,304221,Equipment and Materials,13-Jan-2019,000008228362699,B & Q 1343,5211,Direct materials,69.21,0.00,69.21
Children and Young Peoples Services,"Head of Early Help, Inclusion and Vulnerable Children",088100,Durham West & CLS 0-19 Targeted Family Support,Supplies and Services,312011,Newspapers books and periodicals E312,13-Jan-2019,000008228362851,AMZN MKTP UK MB2MJ0XA4,5942,Books-school library,195.81,0.00,195.81
Children and Young Peoples Services,"Head of Early Help, Inclusion and Vulnerable Children",085957,Secure Management,Supplies and Services,384999,Miscellaneous Expenses,13-Jan-2019,000008228362891,AMZN Mktp UK MB4EM8G24,5942,Other expenses,71.64,0.00,71.64
Children and Young Peoples Services,Head of Education and Skills,071801,Selby Cottage Childcare Centre,Supplies and Services,324117,Provisions E324,14-Jan-2019,000008235940673,TESCO STORES 2278,5411,Catering costs - provisions,14.27,0.00,14.27
Transformation and Partnerships,Partnerships & Community Engagement Div.,060702,Local Safeguarding Adults Board,Supplies and Services,384199,Miscellaneous Expenses,14-Jan-2019,000008235940697,DISCLOSURE SCOTLAND,9399,Other hired and contracted services,25.00,0.00,25.00
Regeneration and Local Services,Economic Development and Housing,030773,CLLD North,Transport,235057,Public Transport,14-Jan-2019,000008235940735,GO NORTH EAST - V/T,4131,Staff travelling,30.00,0.00,30.00
Adult and Health Services,Head of Adults,055302,Durham Pathways,Supplies and Services,324117,Provisions E324,14-Jan-2019,000008235940745,SAINSBURYS SACAT 0776,5411,Catering costs - provisions,8.75,0.00,8.75
Children and Young Peoples Services,Head of Childrens Social Care,085342,9 Cedar Drive Aycliffe,Supplies and Services,324117,Provisions E324,14-Jan-2019,000008235940771,ASDA SUPERSTORE 4987,5411,Catering costs - provisions,36.55,0.00,36.55
Children and Young Peoples Services,Head of Childrens Social Care,085332,Middlestone Moor CU,Supplies and Services,324117,Provisions E324,14-Jan-2019,000008235940777,TESCO STORES 2371,5411,Catering costs - provisions,52.40,0.00,52.40
Children and Young Peoples Services,Head of Childrens Social Care,085332,Middlestone Moor CU,Supplies and Services,324117,Provisions E324,14-Jan-2019,000008235940781,TESCO STORES 2916,5411,Catering costs - provisions,2.42,0.00,2.42
Children and Young Peoples Services,Head of Childrens Social Care,085332,Middlestone Moor CU,Supplies and Services,324117,Provisions E324,14-Jan-2019,000008235940783,ALDI 59 774,5411,Catering costs - provisions,8.14,0.00,8.14
Children and Young Peoples Services,Head of Childrens Social Care,085332,Middlestone Moor CU,Supplies and Services,324117,Provisions E324,14-Jan-2019,000008235940787,ALDI 74 774,5411,Catering costs - provisions,11.83,0.00,11.83
Children and Young Peoples Services,Childrens Services Operational Support,052986,CYPS - Locality and Operational Support,Supplies and Services,324117,Provisions E324,14-Jan-2019,000008235940871,ASDA SUPERSTORE 4987,5411,Catering costs - provisions,8.13,0.00,8.13
Children and Young Peoples Services,"Head of Early Help, Inclusion and Vulnerable Children",071670,Willington Childrens Centre,Supplies and Services,304403,Equipment and Materials,14-Jan-2019,000008235940877,LIDL UK CROOK,5411,Other consumables,25.62,0.00,25.62
Children and Young Peoples Services,"Head of Early Help, Inclusion and Vulnerable Children",071569,Woodhouse Close Childrens Centre,Supplies and Services,304403,Equipment and Materials,14-Jan-2019,000008235940883,LIDL UK CROOK,5411,Other consumables,22.78,0.00,22.78
Regeneration and Local Services,Direct Services,021242,Catering - County Hall,Supplies and Services,324117,Provisions E324,14-Jan-2019,000008235940891,HOPWELLS LTD,5811,Catering costs - provisions,156.59,0.00,156.59
Regeneration and Local Services,Direct Services,021242,Catering - County Hall,Supplies and Services,324117,Provisions E324,14-Jan-2019,000008235940897,HOPWELLS LTD,5811,Catering costs - provisions,78.56,0.00,78.56
Regeneration and Local Services,Direct Services,021242,Catering - County Hall,Supplies and Services,324117,Provisions E324,14-Jan-2019,000008235940903,HOPWELLS LTD,5811,Catering costs - provisions,28.84,0.00,28.84
Regeneration and Local Services,Direct Services,021242,Catering - County Hall,Supplies and Services,324117,Provisions E324,14-Jan-2019,000008235940909,FREEMAN CATERING BUTCH,5422,Catering costs - provisions,134.25,0.00,134.25
Children and Young Peoples Services,"Head of Early Help, Inclusion and Vulnerable Children",085952,Secure Education,Supplies and Services,372009,Subscriptions E372,14-Jan-2019,000008235940927,WEB NETWORKSOLUTIONS,5968,Subscriptions 372009,103.39,0.00,103.39
Regeneration and Local Services,Economic Development and Housing,030544,Rural Employability - Client Engagement,Transport,235057,Public Transport,14-Jan-2019,000008235940951,ARRIVA NORTH EAST,4131,Staff travelling,14.40,0.00,14.40
Regeneration and Local Services,Culture & Sport,054812,Gala Theatre - Catering etc,Supplies and Services,324117,Provisions E324,14-Jan-2019,000008235940955,FREEMAN CATERING BUTCH,5422,Catering costs - provisions,16.20,0.00,16.20
Regeneration and Local Services,Culture & Sport,011207,Physical Activity,Supplies and Services,336005,Advertising E336,14-Jan-2019,000008235941001,TEXTANYWHERE LTD,4814,Advertising other than for staff,291.00,48.50,242.50
Regeneration and Local Services,Direct Services,010561,Fleet - Morrison Busty Fleet,Transport,215013,Running Costs of Vehicles,14-Jan-2019,000008235941051,DVLA VEHICLE TAX,9399,Vehicle Excise Duty (VED),252.50,0.00,252.50
Regeneration and Local Services,Direct Services,010561,Fleet - Morrison Busty Fleet,Transport,215013,Running Costs of Vehicles,14-Jan-2019,000008235941055,DVLA VEHICLE TAX,9399,Vehicle Excise Duty (VED),652.50,0.00,652.50
Regeneration and Local Services,Direct Services,010551,Fleet - Chilton Fleet,Transport,215013,Running Costs of Vehicles,14-Jan-2019,000008235941059,DVLA VEHICLE TAX,9399,Vehicle Excise Duty (VED),652.50,0.00,652.50
Regeneration and Local Services,Direct Services,010551,Fleet - Chilton Fleet,Transport,215013,Running Costs of Vehicles,14-Jan-2019,000008235941061,DVLA VEHICLE TAX,9399,Vehicle Excise Duty (VED),252.50,0.00,252.50
Regeneration and Local Services,Direct Services,010561,Fleet - Morrison Busty Fleet,Transport,215013,Running Costs of Vehicles,14-Jan-2019,000008235941065,DVLA VEHICLE TAX,9399,Vehicle Excise Duty (VED),252.50,0.00,252.50
Regeneration and Local Services,Direct Services,010551,Fleet - Chilton Fleet,Transport,215013,Running Costs of Vehicles,14-Jan-2019,000008235941069,DVLA VEHICLE TAX,9399,Vehicle Excise Duty (VED),652.50,0.00,652.50
Regeneration and Local Services,Direct Services,010900,Fleet - Meadowfield Fleet,Transport,215013,Running Costs of Vehicles,14-Jan-2019,000008235941071,DVLA VEHICLE TAX,9399,Vehicle Excise Duty (VED),252.50,0.00,252.50
Regeneration and Local Services,Direct Services,010551,Fleet - Chilton Fleet,Transport,215013,Running Costs of Vehicles,14-Jan-2019,000008235941079,DVLA VEHICLE TAX,9399,Vehicle Excise Duty (VED),252.50,0.00,252.50
Regeneration and Local Services,Direct Services,010561,Fleet - Morrison Busty Fleet,Transport,215013,Running Costs of Vehicles,14-Jan-2019,000008235941081,DVLA VEHICLE TAX,9399,Vehicle Excise Duty (VED),652.50,0.00,652.50
Regeneration and Local Services,Direct Services,010561,Fleet - Morrison Busty Fleet,Transport,215013,Running Costs of Vehicles,14-Jan-2019,000008235941087,DVLA VEHICLE TAX,9399,Vehicle Excise Duty (VED),252.50,0.00,252.50
Regeneration and Local Services,Direct Services,010864,Fleet - Hackworth Road Fleet,Transport,215013,Running Costs of Vehicles,14-Jan-2019,000008235941093,DVLA VEHICLE TAX,9399,Vehicle Excise Duty (VED),652.50,0.00,652.50
Regeneration and Local Services,Direct Services,010561,Fleet - Morrison Busty Fleet,Transport,215013,Running Costs of Vehicles,14-Jan-2019,000008235941095,DVLA VEHICLE TAX,9399,Vehicle Excise Duty (VED),652.50,0.00,652.50
Regeneration and Local Services,Direct Services,010864,Fleet - Hackworth Road Fleet,Transport,215013,Running Costs of Vehicles,14-Jan-2019,000008235941101,DVLA VEHICLE TAX,9399,Vehicle Excise Duty (VED),652.50,0.00,652.50
Regeneration and Local Services,Direct Services,010900,Fleet - Meadowfield Fleet,Transport,215013,Running Costs of Vehicles,14-Jan-2019,000008235941107,DVLA VEHICLE TAX,9399,Vehicle Excise Duty (VED),252.50,0.00,252.50
Regeneration and Local Services,Direct Services,010561,Fleet - Morrison Busty Fleet,Transport,215013,Running Costs of Vehicles,14-Jan-2019,000008235941109,DVLA VEHICLE TAX,9399,Vehicle Excise Duty (VED),652.50,0.00,652.50
Regeneration and Local Services,Direct Services,010561,Fleet - Morrison Busty Fleet,Transport,215013,Running Costs of Vehicles,14-Jan-2019,000008235941115,DVLA VEHICLE TAX,9399,Vehicle Excise Duty (VED),652.50,0.00,652.50
Regeneration and Local Services,Direct Services,010864,Fleet - Hackworth Road Fleet,Transport,215013,Running Costs of Vehicles,14-Jan-2019,000008235941119,DVLA VEHICLE TAX,9399,Vehicle Excise Duty (VED),652.50,0.00,652.50
Regeneration and Local Services,Direct Services,010900,Fleet - Meadowfield Fleet,Transport,215013,Running Costs of Vehicles,14-Jan-2019,000008235941121,DVLA VEHICLE TAX,9399,Vehicle Excise Duty (VED),652.50,0.00,652.50
Regeneration and Local Services,Direct Services,010561,Fleet - Morrison Busty Fleet,Transport,215013,Running Costs of Vehicles,14-Jan-2019,000008235941125,DVLA VEHICLE TAX,9399,Vehicle Excise Duty (VED),652.50,0.00,652.50
Regeneration and Local Services,Direct Services,010900,Fleet - Meadowfield Fleet,Transport,215013,Running Costs of Vehicles,14-Jan-2019,000008235941131,DVLA VEHICLE TAX,9399,Vehicle Excise Duty (VED),252.50,0.00,252.50
Regeneration and Local Services,Direct Services,010561,Fleet - Morrison Busty Fleet,Transport,215013,Running Costs of Vehicles,14-Jan-2019,000008235941133,DVLA VEHICLE TAX,9399,Vehicle Excise Duty (VED),652.50,0.00,652.50
Regeneration and Local Services,Direct Services,010561,Fleet - Morrison Busty Fleet,Transport,215013,Running Costs of Vehicles,14-Jan-2019,000008235941137,DVLA VEHICLE TAX,9399,Vehicle Excise Duty (VED),652.50,0.00,652.50
Regeneration and Local Services,Direct Services,010900,Fleet - Meadowfield Fleet,Transport,215013,Running Costs of Vehicles,14-Jan-2019,000008235941143,DVLA VEHICLE TAX,9399,Vehicle Excise Duty (VED),652.50,0.00,652.50
Regeneration and Local Services,Direct Services,010561,Fleet - Morrison Busty Fleet,Transport,215013,Running Costs of Vehicles,14-Jan-2019,000008235941145,DVLA VEHICLE TAX,9399,Vehicle Excise Duty (VED),652.50,0.00,652.50
Regeneration and Local Services,Direct Services,010551,Fleet - Chilton Fleet,Transport,215013,Running Costs of Vehicles,14-Jan-2019,000008235941149,DVLA VEHICLE TAX,9399,Vehicle Excise Duty (VED),652.50,0.00,652.50
Children and Young Peoples Services,Head of Education and Skills,071732,Dean Bank Childcare,Supplies and Services,324117,Provisions E324,14-Jan-2019,000008235941201,ASDA GROCERIES ONLINE,5411,Catering costs - provisions,52.15,0.00,52.15
Children and Young Peoples Services,Head of Education and Skills,071732,Dean Bank Childcare,Supplies and Services,312011,Newspapers books and periodicals E312,14-Jan-2019,000008235941209,AMZN Mktp UK MB4VS8VS4,5942,Books-school library,38.64,0.00,38.64
Children and Young Peoples Services,Head of Education and Skills,071732,Dean Bank Childcare,Supplies and Services,324117,Provisions E324,14-Jan-2019,000008235941213,ASDA GROCERIES ONLINE,5411,Catering costs - provisions,-1.60,0.00,-1.60
Regeneration and Local Services,Culture & Sport,054813,Gala Theatre - Technical,Supplies and Services,312011,Newspapers books and periodicals E312,14-Jan-2019,000008235941217,AMZN Mktp UK MB8BL1V84,5942,Books-school library,23.98,0.00,23.98
Regeneration and Local Services,Culture & Sport,054813,Gala Theatre - Technical,Supplies and Services,312011,Newspapers books and periodicals E312,14-Jan-2019,000008235941297,AMZN Mktp UK MB1G19VE4,5942,Books-school library,4.29,0.00,4.29
Regeneration and Local Services,Culture & Sport,054813,Gala Theatre - Technical,Supplies and Services,312011,Newspapers books and periodicals E312,14-Jan-2019,000008235941301,AMZN Mktp UK MB4B49VF4,5942,Books-school library,25.12,0.00,25.12
Regeneration and Local Services,Culture & Sport,054813,Gala Theatre - Technical,Supplies and Services,312011,Newspapers books and periodicals E312,14-Jan-2019,000008235941303,AMZN Mktp UK MB56W3VC4,5942,Books-school library,31.98,0.00,31.98
Regeneration and Local Services,Culture & Sport,054813,Gala Theatre - Technical,Supplies and Services,312011,Newspapers books and periodicals E312,14-Jan-2019,000008235941309,AMZN Mktp UK MB9CF4VH4,5942,Books-school library,15.98,0.00,15.98
Regeneration and Local Services,Culture & Sport,054813,Gala Theatre - Technical,Supplies and Services,312011,Newspapers books and periodicals E312,14-Jan-2019,000008235941311,AMZN MKTP UK MB0BV6VU4,5942,Books-school library,9.28,0.00,9.28
Regeneration and Local Services,Culture & Sport,054813,Gala Theatre - Technical,Supplies and Services,312011,Newspapers books and periodicals E312,14-Jan-2019,000008235941315,AMZN MKTP UK MB8DB3V34,5942,Books-school library,16.95,0.00,16.95
Regeneration and Local Services,Culture & Sport,054813,Gala Theatre - Technical,Supplies and Services,312011,Newspapers books and periodicals E312,14-Jan-2019,000008235941319,AMZN MKTP UK MB19G6MY4,5942,Books-school library,9.99,0.00,9.99
Regeneration and Local Services,Culture & Sport,054813,Gala Theatre - Technical,Supplies and Services,324117,Provisions E324,14-Jan-2019,000008235941323,WM MORRISONS STORE,5411,Catering costs - provisions,65.15,0.00,65.15
Regeneration and Local Services,Direct Services,010367,C&G - South Grounds Maintenance,Supplies and Services,304221,Equipment and Materials,14-Jan-2019,000008235941331,SCREWFIX PETERLEE,5211,Direct materials,77.94,12.99,64.95
Regeneration and Local Services,Culture & Sport,011060,Hardwick Park Catering,Supplies and Services,324117,Provisions E324,14-Jan-2019,000008235941351,HOPWELLS LTD,5811,Catering costs - provisions,164.10,27.35,136.75
Regeneration and Local Services,Culture & Sport,011060,Hardwick Park Catering,Supplies and Services,324117,Provisions E324,14-Jan-2019,000008235941351 - 1,HOPWELLS LTD,5811,Catering costs - provisions,78.66,,78.66
Regeneration and Local Services,Culture & Sport,011060,Hardwick Park Catering,Supplies and Services,324117,Provisions E324,14-Jan-2019,000008235941357,HOPWELLS LTD,5811,Catering costs - provisions,71.64,11.94,59.70
Regeneration and Local Services,Culture & Sport,011060,Hardwick Park Catering,Supplies and Services,324117,Provisions E324,14-Jan-2019,000008235941357 - 1,HOPWELLS LTD,5811,Catering costs - provisions,124.28,,124.28
Regeneration and Local Services,Culture & Sport,011060,Hardwick Park Catering,Supplies and Services,324117,Provisions E324,14-Jan-2019,000008235941363,HOPWELLS LTD,5811,Catering costs - provisions,73.50,0.00,73.50
Regeneration and Local Services,Culture & Sport,011060,Hardwick Park Catering,Supplies and Services,324117,Provisions E324,14-Jan-2019,000008235941379,FREEMAN CATERING BUTCH,5422,Catering costs - provisions,65.16,0.00,65.16
Regeneration and Local Services,Culture & Sport,011060,Hardwick Park Catering,Supplies and Services,324117,Provisions E324,14-Jan-2019,000008235941383,FREEMAN CATERING BUTCH,5422,Catering costs - provisions,16.20,0.00,16.20
Regeneration and Local Services,Culture & Sport,011060,Hardwick Park Catering,Supplies and Services,324117,Provisions E324,14-Jan-2019,000008235941389,FREEMAN CATERING BUTCH,5422,Catering costs - provisions,48.74,0.00,48.74
Regeneration and Local Services,Direct Services,021234,Catering - Locomotion,Supplies and Services,324117,Provisions E324,14-Jan-2019,000008235941409,HOPWELLS LTD,5811,Catering costs - provisions,299.37,0.00,299.37
Regeneration and Local Services,Direct Services,021234,Catering - Locomotion,Supplies and Services,324117,Provisions E324,14-Jan-2019,000008235941415,HOPWELLS LTD,5811,Catering costs - provisions,41.09,0.00,41.09
Regeneration and Local Services,Direct Services,021234,Catering - Locomotion,Supplies and Services,324117,Provisions E324,14-Jan-2019,000008235941429,FREEMAN CATERING BUTCH,5422,Catering costs - provisions,21.27,0.00,21.27
Regeneration and Local Services,Direct Services,021234,Catering - Locomotion,Supplies and Services,324117,Provisions E324,14-Jan-2019,000008235941433,FREEMAN CATERING BUTCH,5422,Catering costs - provisions,47.16,0.00,47.16
Regeneration and Local Services,Direct Services,021234,Catering - Locomotion,Supplies and Services,324117,Provisions E324,14-Jan-2019,000008235941437,HOPWELLS LTD,5811,Catering costs - provisions,-32.46,0.00,-32.46
Regeneration and Local Services,Direct Services,010525,Catering - Green Lane,Supplies and Services,324117,Provisions E324,14-Jan-2019,000008235941463,HOPWELLS LTD,5811,Catering costs - provisions,80.62,0.00,80.62
Regeneration and Local Services,Direct Services,010525,Catering - Green Lane,Supplies and Services,324117,Provisions E324,14-Jan-2019,000008235941469,HOPWELLS LTD,5811,Catering costs - provisions,70.42,0.00,70.42
Regeneration and Local Services,Direct Services,010525,Catering - Green Lane,Supplies and Services,324117,Provisions E324,14-Jan-2019,000008235941485,FREEMAN CATERING BUTCH,5422,Catering costs - provisions,44.29,0.00,44.29
Regeneration and Local Services,Culture & Sport,054302,Cornforth Library,Supplies and Services,304649,Equipment and Materials,14-Jan-2019,000008235941497,AMZN Mktp UK MB7XV4V34,5942,Toys,58.68,0.00,58.68
Regeneration and Local Services,Direct Services,010367,C&G - South Grounds Maintenance,Supplies and Services,312011,Newspapers books and periodicals E312,14-Jan-2019,000008235941535,Snowballs,5251,Books-school library,22.28,3.71,18.57
Regeneration and Local Services,Direct Services,020079,Bldg Serv - R&M Div 79- Electrical,Supplies and Services,304221,Equipment and Materials,14-Jan-2019,000008235941583,PAYPAL MONITORMYME,5169,Direct materials,32.99,0.00,32.99
Children and Young Peoples Services,Head of Childrens Social Care,085333,Coxhoe Satelite Home,Supplies and Services,324117,Provisions E324,14-Jan-2019,000008235941597,TESCO STORES 2371,5411,Catering costs - provisions,44.07,0.00,44.07
Children and Young Peoples Services,Head of Childrens Social Care,085333,Coxhoe Satelite Home,Supplies and Services,328041,Clothing uniforms and laundry E328,14-Jan-2019,000008235941601,B & M RETAIL,5310,Clothing uniforms and laundry,37.36,0.00,37.36
Children and Young Peoples Services,Head of Childrens Social Care,085352,Tow Law CU,Supplies and Services,324117,Provisions E324,14-Jan-2019,000008235941637,LIDL UK LANGLEY MOOR,5411,Catering costs - provisions,34.21,0.00,34.21
Children and Young Peoples Services,"Head of Early Help, Inclusion and Vulnerable Children",085957,Secure Management,Supplies and Services,324117,Provisions E324,14-Jan-2019,000008235941641,TESCO STORES 6329,5411,Catering costs - provisions,189.50,0.00,189.50
Regeneration and Local Services,Direct Services,030691,"Catering - Durham Dales Centre			",Supplies and Services,324117,Provisions E324,14-Jan-2019,000008235941649,HOPWELLS LTD,5811,Catering costs - provisions,152.93,0.00,152.93
Regeneration and Local Services,Direct Services,030691,"Catering - Durham Dales Centre			",Supplies and Services,324117,Provisions E324,14-Jan-2019,000008235941655,FREEMAN CATERING BUTCH,5422,Catering costs - provisions,124.02,0.00,124.02
Adult and Health Services,Head of Adults,055643,Hawthorn House LD Respite Unit,Supplies and Services,324117,Provisions E324,14-Jan-2019,000008235941695,HOPWELLS LTD,5811,Catering costs - provisions,46.58,0.00,46.58
Adult and Health Services,Head of Adults,055643,Hawthorn House LD Respite Unit,Supplies and Services,324117,Provisions E324,14-Jan-2019,000008235941709,FREEMAN CATERING BUTCH,5422,Catering costs - provisions,44.82,0.00,44.82
Children and Young Peoples Services,Head of Education and Skills,070264,EDC Premises,Premises,115125,Repairs to Grounds,14-Jan-2019,000008235941727,AMZN Mktp UK MB3YS6V04,5942,General maintenance,5.77,0.96,4.81
Children and Young Peoples Services,Head of Education and Skills,070264,EDC Premises,Supplies and Services,304259,Equipment and Materials,14-Jan-2019,000008235941733,AMZN Mktp UK MB5BE0VP4,5942,Equipment-purchase and rental,7.45,1.24,6.21
Children and Young Peoples Services,Head of Education and Skills,070264,EDC Premises,Supplies and Services,304221,Equipment and Materials,14-Jan-2019,000008235941735,AMZN Mktp UK MB5EO8VM4,5942,Direct materials,5.97,1.00,4.97
Children and Young Peoples Services,Head of Education and Skills,070264,EDC Premises,Supplies and Services,304221,Equipment and Materials,14-Jan-2019,000008235941739,AMZN Mktp UK MB9R20M14,5942,Direct materials,11.04,0.00,11.04
Children and Young Peoples Services,Head of Education and Skills,070264,EDC Premises,Premises,115125,Repairs to Grounds,14-Jan-2019,000008235941743,Amazon.co.uk MB6DU8MB4,5969,General maintenance,28.68,4.78,23.90
Regeneration and Local Services,Economic Development and Housing,030771,Durham Advance Flexible Fund,Transport,235057,Public Transport,14-Jan-2019,000008235941755,GO NORTH EAST LIMITED,4131,Staff travelling,6.70,0.00,6.70
Regeneration and Local Services,Economic Development and Housing,030690,Durham Dales Centre - Tourist Information Centre,Supplies and Services,328041,Clothing uniforms and laundry E328,14-Jan-2019,000008235941777,ZELLY UK TRADING LTD,5651,Clothing uniforms and laundry,564.33,94.06,470.27
Regeneration and Local Services,Direct Services,021324,Catering - Meadowfield,Supplies and Services,324117,Provisions E324,14-Jan-2019,000008235941797,HOPWELLS LTD,5811,Catering costs - provisions,110.34,0.00,110.34
Regeneration and Local Services,Direct Services,021324,Catering - Meadowfield,Supplies and Services,324117,Provisions E324,14-Jan-2019,000008235941803,FREEMAN CATERING BUTCH,5422,Catering costs - provisions,62.46,0.00,62.46
Regeneration and Local Services,Direct Services,021324,Catering - Meadowfield,Supplies and Services,324117,Provisions E324,14-Jan-2019,000008235941807,FREEMAN CATERING BUTCH,5422,Catering costs - provisions,55.71,0.00,55.71
Resources,Corporate Finance & Commercial Services,069800,Corporate Procurement,Employees,040149,Recruitment Instruction and Training,14-Jan-2019,000008235941873,WWW.CIPS.ORG,8699,Training-all costs,130.00,0.00,130.00
Adult and Health Services,Head of Adults,055306,Spennymoor Pathways,Supplies and Services,324117,Provisions E324,14-Jan-2019,000008235941949,ASDA SUPERSTORE 4987,5411,Catering costs - provisions,0.55,0.00,0.55
Resources,Digital and Customer Services,069010,Administration,Supplies and Services,336005,Advertising E336,14-Jan-2019,000008235941967,FACEBK 8YR3UHA4B2,7311,Advertising other than for staff,500.00,0.00,500.00
Resources,Digital and Customer Services,069010,Administration,Supplies and Services,342033,Computers and Communications,14-Jan-2019,000008235941971,SurveyMonkey,7372,Computer hardware,336.00,0.00,336.00
Adult and Health Services,Head of Adults,055306,Spennymoor Pathways,Supplies and Services,324117,Provisions E324,14-Jan-2019,000008235941977,ASDA SUPERSTORE 4987,5411,Catering costs - provisions,3.09,0.00,3.09
Regeneration and Local Services,Economic Development and Housing,031500,Housing Solutions - Core Team,Employees,040149,Recruitment Instruction and Training,14-Jan-2019,000008239896697,PREMIER INN,3811,Training-all costs,70.00,0.00,70.00
Regeneration and Local Services,Culture & Sport,054812,Gala Theatre - Catering etc,Supplies and Services,324117,Provisions E324,14-Jan-2019,000008244759281,BATLEYS PERTH,5300,Catering costs - provisions,28.32,4.72,23.60
Regeneration and Local Services,Culture & Sport,054812,Gala Theatre - Catering etc,Supplies and Services,324117,Provisions E324,14-Jan-2019,000008244759281 - 1,BATLEYS PERTH,5300,Catering costs - provisions,136.90,,136.90
Regeneration and Local Services,Direct Services,030691,"Catering - Durham Dales Centre			",Supplies and Services,324117,Provisions E324,14-Jan-2019,000008244759853,BATLEYS PERTH,5300,Catering costs - provisions,37.92,6.32,31.60
Regeneration and Local Services,Direct Services,030691,"Catering - Durham Dales Centre			",Supplies and Services,324117,Provisions E324,14-Jan-2019,000008244759853 - 1,BATLEYS PERTH,5300,Catering costs - provisions,97.91,,97.91
Children and Young Peoples Services,"Head of Early Help, Inclusion and Vulnerable Children",085957,Secure Management,Supplies and Services,328041,Clothing uniforms and laundry E328,14-Jan-2019,000008249713955,WWW.ARGOS.CO.UK,5310,Clothing uniforms and laundry,143.98,0.00,143.98
Children and Young Peoples Services,Childrens Services Operational Support,052986,CYPS - Locality and Operational Support,Supplies and Services,328041,Clothing uniforms and laundry E328,14-Jan-2019,000008249714133,CLARKS.CO.UK,5661,Clothing uniforms and laundry,43.00,0.00,43.00
Children and Young Peoples Services,Head of Childrens Social Care,085362,LAC & Permanence Team 2,Supplies and Services,384999,Miscellaneous Expenses,15-Jan-2019,000006184339274,GEN REGISTER OFFICE,9399,Other expenses,-9.25,0.00,-9.25
Children and Young Peoples Services,"Head of Early Help, Inclusion and Vulnerable Children",071746,Newton Aycliffe Childrens Centre,Supplies and Services,324117,Provisions E324,15-Jan-2019,000006201481280,BATLEYS PERTH,5300,Catering costs - provisions,10.94,0.00,10.94
Children and Young Peoples Services,"Head of Early Help, Inclusion and Vulnerable Children",085952,Secure Education,Supplies and Services,372009,Subscriptions E372,15-Jan-2019,000008235940931,WEB NETWORKSOLUTIONS,5968,Subscriptions 372009,2.84,0.00,2.84
Regeneration and Local Services,Economic Development and Housing,030554,International Relations,Transport,235057,Public Transport,15-Jan-2019,000008239895733,PRINCE BISHOP SHOPPING,7523,Staff travelling,3.30,0.00,3.30
Children and Young Peoples Services,Head of Education and Skills,071801,Selby Cottage Childcare Centre,Supplies and Services,324117,Provisions E324,15-Jan-2019,000008239895743,JR HOLLAND FOODSERVICE,5499,Catering costs - provisions,357.18,0.00,357.18
Children and Young Peoples Services,Head of Education and Skills,071801,Selby Cottage Childcare Centre,Supplies and Services,312011,Newspapers books and periodicals E312,15-Jan-2019,000008239895751,AMZN Mktp UK MB2AP55D4,5942,Books-school library,195.96,0.00,195.96
Children and Young Peoples Services,Head of Education and Skills,071801,Selby Cottage Childcare Centre,Supplies and Services,328041,Clothing uniforms and laundry E328,15-Jan-2019,000008239895757,Etsy.com - BrightEars,5699,Clothing uniforms and laundry,28.98,0.00,28.98
Children and Young Peoples Services,Head of Education and Skills,071801,Selby Cottage Childcare Centre,Supplies and Services,328041,Clothing uniforms and laundry E328,15-Jan-2019,000008239895763,ARGOS RETAIL GROUP,5310,Clothing uniforms and laundry,323.99,0.00,323.99
Resources,Digital and Customer Services,065461,Business Support,Supplies and Services,304999,Equipment and Materials,15-Jan-2019,000008239895779,Microsoft Store,5816,Misc equipment tools and materials,99.98,16.66,83.32
Children and Young Peoples Services,Head of Education and Skills,078100,Curric and Professional Development,Supplies and Services,344033,Telephones,15-Jan-2019,000008239895785,AMZN MKTP UK MB08D2M54,5942,Telephones general-all costs,65.98,11.00,54.98
Regeneration and Local Services,Spatial Policy Planning Assets & Environment,031233,North Pennines - Pennine Peatlife,Supplies and Services,384073,Miscellaneous Expenses,15-Jan-2019,000008239895823,THE BUCK INN,7011,Catering - meetings,150.00,0.00,150.00
Children and Young Peoples Services,Head of Childrens Social Care,085332,Middlestone Moor CU,Supplies and Services,324117,Provisions E324,15-Jan-2019,000008239895863,ALDI 25 774,5411,Catering costs - provisions,19.08,0.00,19.08
Regeneration and Local Services,Economic Development and Housing,030699,Business Growth and Innovation General,Supplies and Services,312011,Newspapers books and periodicals E312,15-Jan-2019,000008239895869,FASTHOSTS INTERNET,4816,Books-school library,88.75,0.00,88.75
Regeneration and Local Services,Economic Development and Housing,030699,Business Growth and Innovation General,Supplies and Services,312011,Newspapers books and periodicals E312,15-Jan-2019,000008239895875,FASTHOSTS INTERNET,4816,Books-school library,103.13,0.00,103.13
Regeneration and Local Services,Direct Services,010367,C&G - South Grounds Maintenance,Supplies and Services,304221,Equipment and Materials,15-Jan-2019,000008239895913,SCREWFIX DIRECT,5211,Direct materials,424.99,70.83,354.16
Children and Young Peoples Services,Childrens Services Operational Support,052986,CYPS - Locality and Operational Support,Supplies and Services,324117,Provisions E324,15-Jan-2019,000008239895979,ASDA SUPERSTORE 4987,5411,Catering costs - provisions,26.03,0.00,26.03
Children and Young Peoples Services,"Head of Early Help, Inclusion and Vulnerable Children",088104,BA/BC/Crook 0-19 Targeted Family Support,Supplies and Services,304649,Equipment and Materials,15-Jan-2019,000008239896003,AMZN Mktp UK MB53V5514,5942,Toys,6.27,0.00,6.27
Children and Young Peoples Services,"Head of Early Help, Inclusion and Vulnerable Children",088104,BA/BC/Crook 0-19 Targeted Family Support,Supplies and Services,384700,Miscellaneous Expenses,15-Jan-2019,000008239896007,WWW.VOUCHEREXPRESS.CO.,5947,Miscellaneous grants,52.00,0.00,52.00
Children and Young Peoples Services,"Head of Early Help, Inclusion and Vulnerable Children",088104,BA/BC/Crook 0-19 Targeted Family Support,Supplies and Services,304649,Equipment and Materials,15-Jan-2019,000008239896013,ARGOS RETAIL GROUP,5310,Toys,30.98,0.00,30.98
Regeneration and Local Services,Direct Services,021242,Catering - County Hall,Premises,145009,Cleaning and Domestic Supplies,15-Jan-2019,000008239896025,ALLIANCE DISPOSABLES L,2842,Other cleaning and domestic costs,30.84,5.14,25.70
Regeneration and Local Services,Direct Services,021242,Catering - County Hall,Supplies and Services,324117,Provisions E324,15-Jan-2019,000008239896033,JR HOLLAND FOODSERVICE,5499,Catering costs - provisions,118.04,0.00,118.04
Regeneration and Local Services,Direct Services,021242,Catering - County Hall,Supplies and Services,324117,Provisions E324,15-Jan-2019,000008239896041,JR HOLLAND FOODSERVICE,5499,Catering costs - provisions,53.53,0.00,53.53
Regeneration and Local Services,Direct Services,021242,Catering - County Hall,Supplies and Services,324117,Provisions E324,15-Jan-2019,000008239896049,JR HOLLAND FOODSERVICE,5499,Catering costs - provisions,37.68,0.00,37.68
Regeneration and Local Services,Direct Services,021242,Catering - County Hall,Supplies and Services,324117,Provisions E324,15-Jan-2019,000008239896061,JR HOLLAND FOODSERVICE,5499,Catering costs - provisions,13.80,0.00,13.80
Regeneration and Local Services,Direct Services,021242,Catering - County Hall,Supplies and Services,324117,Provisions E324,15-Jan-2019,000008239896067,JR HOLLAND FOODSERVICE,5499,Catering costs - provisions,6.94,0.00,6.94
Regeneration and Local Services,Direct Services,021242,Catering - County Hall,Supplies and Services,324117,Provisions E324,15-Jan-2019,000008239896075,JR HOLLAND FOODSERVICE,5499,Catering costs - provisions,6.90,0.00,6.90
Regeneration and Local Services,Direct Services,021242,Catering - County Hall,Supplies and Services,324117,Provisions E324,15-Jan-2019,000008239896081,JR HOLLAND FOODSERVICE,5499,Catering costs - provisions,4.70,0.00,4.70
Children and Young Peoples Services,Head of Education and Skills,070169,Durham SSP,Supplies and Services,384199,Miscellaneous Expenses,15-Jan-2019,000008239896089,ASDA STORES 5889,5411,Other hired and contracted services,50.00,0.00,50.00
Regeneration and Local Services,Culture & Sport,054812,Gala Theatre - Catering etc,Supplies and Services,324117,Provisions E324,15-Jan-2019,000008239896109,JR HOLLAND FOODSERVICE,5499,Catering costs - provisions,27.15,0.00,27.15
Children and Young Peoples Services,Head of Childrens Social Care,085362,LAC & Permanence Team 2,Supplies and Services,384999,Miscellaneous Expenses,15-Jan-2019,000008239896149,GRO HM PASSPORT OFFICE,9399,Other expenses,18.50,0.00,18.50
Children and Young Peoples Services,Head of Childrens Social Care,085333,Coxhoe Satelite Home,Supplies and Services,324117,Provisions E324,15-Jan-2019,000008239896165,CO-OP GROUP 310016,5411,Catering costs - provisions,5.95,0.00,5.95
Children and Young Peoples Services,Head of Education and Skills,071732,Dean Bank Childcare,Supplies and Services,312011,Newspapers books and periodicals E312,15-Jan-2019,000008239896223,AMZN Mktp UK MB8D185R4,5942,Books-school library,5.38,0.00,5.38
Children and Young Peoples Services,Head of Education and Skills,071732,Dean Bank Childcare,Supplies and Services,324117,Provisions E324,15-Jan-2019,000008239896229,SAINSBURYS SACAT (2303,5411,Catering costs - provisions,30.95,0.00,30.95
Regeneration and Local Services,Culture & Sport,054813,Gala Theatre - Technical,Supplies and Services,304403,Equipment and Materials,15-Jan-2019,000008239896237,AMZ Yiyo,5999,Other consumables,-11.00,0.00,-11.00
Regeneration and Local Services,Culture & Sport,054813,Gala Theatre - Technical,Supplies and Services,304403,Equipment and Materials,15-Jan-2019,000008239896247,AMZ Yiyo,5999,Other consumables,-11.00,0.00,-11.00
Adult and Health Services,Head of Adults,055202,Support and Recovery,Supplies and Services,304259,Equipment and Materials,15-Jan-2019,000008239896333,WILKO RETAIL LIMIT,5722,Equipment-purchase and rental,5.50,0.00,5.50
Regeneration and Local Services,Direct Services,010301,C&G - North Grounds Maintenance,Supplies and Services,328041,Clothing uniforms and laundry E328,15-Jan-2019,000008239896343,THOMAS OWEN & SONS /N/,5611,Clothing uniforms and laundry,335.81,55.97,279.84
Children and Young Peoples Services,"Head of Early Help, Inclusion and Vulnerable Children",085962,Aycliffe Secure - Durham,Supplies and Services,324117,Provisions E324,15-Jan-2019,000008239896371,TESCO STORES 6329,5411,Catering costs - provisions,68.90,0.00,68.90
Regeneration and Local Services,Culture & Sport,054813,Gala Theatre - Technical,Supplies and Services,312011,Newspapers books and periodicals E312,15-Jan-2019,000008239896385,AMZN Mktp UK MB5H86MJ4,5942,Books-school library,64.95,0.00,64.95
Regeneration and Local Services,Culture & Sport,054813,Gala Theatre - Technical,Supplies and Services,312011,Newspapers books and periodicals E312,15-Jan-2019,000008239896389,AMZN Mktp UK MB03A55F4,5942,Books-school library,13.39,0.00,13.39
Regeneration and Local Services,Culture & Sport,054813,Gala Theatre - Technical,Supplies and Services,312011,Newspapers books and periodicals E312,15-Jan-2019,000008239896395,AMZN Mktp UK MB33555Y4,5942,Books-school library,32.99,0.00,32.99
Regeneration and Local Services,Culture & Sport,054813,Gala Theatre - Technical,Supplies and Services,312011,Newspapers books and periodicals E312,15-Jan-2019,000008239896401,Amazon.co.uk MB1CI75X4,5969,Books-school library,24.30,0.00,24.30
Regeneration and Local Services,Culture & Sport,054813,Gala Theatre - Technical,Supplies and Services,312011,Newspapers books and periodicals E312,15-Jan-2019,000008239896405,Amazon.co.uk MB71W75I4,5969,Books-school library,24.95,0.00,24.95
Regeneration and Local Services,Culture & Sport,054813,Gala Theatre - Technical,Supplies and Services,312011,Newspapers books and periodicals E312,15-Jan-2019,000008239896411,AMZN Mktp UK MB2QD25A4,5942,Books-school library,1.49,0.00,1.49
Regeneration and Local Services,Culture & Sport,054813,Gala Theatre - Technical,Supplies and Services,312011,Newspapers books and periodicals E312,15-Jan-2019,000008239896417,AMZN Mktp UK MB32V35E4,5942,Books-school library,42.97,0.00,42.97
Regeneration and Local Services,Culture & Sport,054813,Gala Theatre - Technical,Supplies and Services,308011,Furniture,15-Jan-2019,000008239896421,WWW.HABITAT.CO.UK,5712,Furniture repair and replacement,88.00,0.00,88.00
Regeneration and Local Services,Direct Services,010367,C&G - South Grounds Maintenance,Supplies and Services,384999,Miscellaneous Expenses,15-Jan-2019,000008239896433,GUSTHARTS.COM,5046,Other expenses,56.50,9.42,47.08
Regeneration and Local Services,Culture & Sport,011060,Hardwick Park Catering,Supplies and Services,324117,Provisions E324,15-Jan-2019,000008239896451,JR HOLLAND FOODSERVICE,5499,Catering costs - provisions,95.57,0.00,95.57
Regeneration and Local Services,Culture & Sport,011060,Hardwick Park Catering,Supplies and Services,324117,Provisions E324,15-Jan-2019,000008239896455,JR HOLLAND FOODSERVICE,5499,Catering costs - provisions,55.26,0.00,55.26
Regeneration and Local Services,Culture & Sport,011060,Hardwick Park Catering,Supplies and Services,324117,Provisions E324,15-Jan-2019,000008239896461,JR HOLLAND FOODSERVICE,5499,Catering costs - provisions,48.57,0.00,48.57
Regeneration and Local Services,Culture & Sport,011060,Hardwick Park Catering,Supplies and Services,324117,Provisions E324,15-Jan-2019,000008239896465,JR HOLLAND FOODSERVICE,5499,Catering costs - provisions,13.01,0.00,13.01
Regeneration and Local Services,Culture & Sport,011060,Hardwick Park Catering,Supplies and Services,324117,Provisions E324,15-Jan-2019,000008239896473,JR HOLLAND FOODSERVICE,5499,Catering costs - provisions,3.68,0.00,3.68
Regeneration and Local Services,Economic Development and Housing,030757,Interserve/Skills Support for the Unemployed,Employees,040149,Recruitment Instruction and Training,15-Jan-2019,000008239896481,NCS VUE CITB HS&E REV,8299,Training-all costs,483.00,0.00,483.00
Regeneration and Local Services,Economic Development and Housing,030757,Interserve/Skills Support for the Unemployed,Employees,040149,Recruitment Instruction and Training,15-Jan-2019,000008239896489,WWW.CSKILLS.ORG,8249,Training-all costs,36.00,0.00,36.00
Regeneration and Local Services,Economic Development and Housing,030757,Interserve/Skills Support for the Unemployed,Employees,040149,Recruitment Instruction and Training,15-Jan-2019,000008239896495,WWW.CSKILLS.ORG,8249,Training-all costs,36.00,0.00,36.00
Regeneration and Local Services,Direct Services,021234,Catering - Locomotion,Supplies and Services,324117,Provisions E324,15-Jan-2019,000008239896517,JR HOLLAND FOODSERVICE,5499,Catering costs - provisions,42.80,0.00,42.80
Regeneration and Local Services,Direct Services,010525,Catering - Green Lane,Premises,145009,Cleaning and Domestic Supplies,15-Jan-2019,000008239896537,ALLIANCE DISPOSABLES L,2842,Other cleaning and domestic costs,24.00,4.00,20.00
Regeneration and Local Services,Direct Services,010525,Catering - Green Lane,Supplies and Services,324117,Provisions E324,15-Jan-2019,000008239896541,JR HOLLAND FOODSERVICE,5499,Catering costs - provisions,60.96,0.00,60.96
Regeneration and Local Services,Direct Services,020073,Bldg Serv - R&M Div 73 - Gas Servicing,Supplies and Services,372009,Subscriptions E372,15-Jan-2019,000008239896669,OFTECDIRECT.COM,5942,Subscriptions 372009,912.00,152.00,760.00
Resources,Resources Management,069000,Resources Management,Supplies and Services,324117,Provisions E324,15-Jan-2019,000008239896689,CO-OP GROUP 010830,5411,Catering costs - provisions,13.39,0.00,13.39
Regeneration and Local Services,Economic Development and Housing,031500,Housing Solutions - Core Team,Supplies and Services,352001,Conference Expenses,15-Jan-2019,000008239896703,HAYAT HOTEL,7011,Conferencesseminars fees etc,500.00,0.00,500.00
Regeneration and Local Services,Economic Development and Housing,031500,Housing Solutions - Core Team,Supplies and Services,352001,Conference Expenses,15-Jan-2019,000008239896709,HAYAT HOTEL,7011,Conferencesseminars fees etc,250.00,0.00,250.00
Children and Young Peoples Services,"Head of Early Help, Inclusion and Vulnerable Children",085957,Secure Management,Supplies and Services,312011,Newspapers books and periodicals E312,15-Jan-2019,000008239896783,AMZN Mktp UK MB8UW55X4,5942,Books-school library,29.98,0.00,29.98
Children and Young Peoples Services,"Head of Early Help, Inclusion and Vulnerable Children",085957,Secure Management,Supplies and Services,304259,Equipment and Materials,15-Jan-2019,000008239896791,SPORTSDIRECT.COM,5941,Equipment-purchase and rental,63.47,0.00,63.47
Children and Young Peoples Services,"Head of Early Help, Inclusion and Vulnerable Children",085957,Secure Management,Supplies and Services,304259,Equipment and Materials,15-Jan-2019,000008239896795,WWW.GEAR4MUSIC.COM,5733,Equipment-purchase and rental,21.49,0.00,21.49
Regeneration and Local Services,Direct Services,030691,"Catering - Durham Dales Centre			",Premises,145009,Cleaning and Domestic Supplies,15-Jan-2019,000008239896805,ALLIANCE DISPOSABLES L,2842,Other cleaning and domestic costs,77.88,12.98,64.90
Regeneration and Local Services,Direct Services,030691,"Catering - Durham Dales Centre			",Premises,145009,Cleaning and Domestic Supplies,15-Jan-2019,000008239896805 - 1,ALLIANCE DISPOSABLES L,2842,Other cleaning and domestic costs,38.15,,38.15
Regeneration and Local Services,Direct Services,030691,"Catering - Durham Dales Centre			",Supplies and Services,324117,Provisions E324,15-Jan-2019,000008239896813,JR HOLLAND FOODSERVICE,5499,Catering costs - provisions,166.56,0.00,166.56
Regeneration and Local Services,Direct Services,030691,"Catering - Durham Dales Centre			",Supplies and Services,324117,Provisions E324,15-Jan-2019,000008239896817,JR HOLLAND FOODSERVICE,5499,Catering costs - provisions,19.21,0.00,19.21
Regeneration and Local Services,Direct Services,030691,"Catering - Durham Dales Centre			",Supplies and Services,324117,Provisions E324,15-Jan-2019,000008239896823,JR HOLLAND FOODSERVICE,5499,Catering costs - provisions,7.54,0.00,7.54
Regeneration and Local Services,Direct Services,030691,"Catering - Durham Dales Centre			",Supplies and Services,324117,Provisions E324,15-Jan-2019,000008239896829,JR HOLLAND FOODSERVICE,5499,Catering costs - provisions,7.44,0.00,7.44
Adult and Health Services,Head of Adults,055643,Hawthorn House LD Respite Unit,Supplies and Services,324117,Provisions E324,15-Jan-2019,000008239896869,JR HOLLAND FOODSERVICE,5499,Catering costs - provisions,25.42,0.00,25.42
Adult and Health Services,Head of Adults,055643,Hawthorn House LD Respite Unit,Supplies and Services,324117,Provisions E324,15-Jan-2019,000008239896875,JR HOLLAND FOODSERVICE,5499,Catering costs - provisions,16.60,0.00,16.60
Adult and Health Services,Head of Adults,055643,Hawthorn House LD Respite Unit,Supplies and Services,324117,Provisions E324,15-Jan-2019,000008239896881,JR HOLLAND FOODSERVICE,5499,Catering costs - provisions,11.96,0.00,11.96
Adult and Health Services,Head of Adults,055643,Hawthorn House LD Respite Unit,Supplies and Services,324117,Provisions E324,15-Jan-2019,000008239896885,JR HOLLAND FOODSERVICE,5499,Catering costs - provisions,10.62,0.00,10.62
Adult and Health Services,Head of Adults,055643,Hawthorn House LD Respite Unit,Supplies and Services,324117,Provisions E324,15-Jan-2019,000008239896889,JR HOLLAND FOODSERVICE,5499,Catering costs - provisions,10.55,0.00,10.55
Children and Young Peoples Services,Head of Education and Skills,070264,EDC Premises,Premises,115125,Repairs to Grounds,15-Jan-2019,000008239896903,AMZN Mktp UK MB2BL65S4,5942,General maintenance,22.99,3.83,19.16
Regeneration and Local Services,Direct Services,010301,C&G - North Grounds Maintenance,Supplies and Services,304403,Equipment and Materials,15-Jan-2019,000008239896907,BESCOL,5231,Other consumables,125.02,20.84,104.18
Children and Young Peoples Services,"Head of Early Help, Inclusion and Vulnerable Children",074000,TTF-Attachment and Results,Supplies and Services,308011,Furniture,15-Jan-2019,000008239896923,MAGUIRES,5713,Furniture repair and replacement,146.00,24.33,121.67
Children and Young Peoples Services,"Head of Early Help, Inclusion and Vulnerable Children",071445,Chester le Street One Point Hub,Employees,040149,Recruitment Instruction and Training,15-Jan-2019,000008239896931,CO-OP GROUP,8931,Training-all costs,215.00,0.00,215.00
Children and Young Peoples Services,"Head of Early Help, Inclusion and Vulnerable Children",071445,Chester le Street One Point Hub,Employees,040149,Recruitment Instruction and Training,15-Jan-2019,000008239896937,CO-OP GROUP,8931,Training-all costs,300.00,0.00,300.00
Dedicated Schools Grant,DSG High Needs Block,079040,SENSS-HQ,Supplies and Services,312011,Newspapers books and periodicals E312,15-Jan-2019,000008239896969,Amazon.co.uk MB0B04584,5969,Books-school library,10.45,0.00,10.45
Regeneration and Local Services,Culture & Sport,054235,Bishop Auckland Town Hall Cafe,Supplies and Services,324117,Provisions E324,15-Jan-2019,000008239897001,JR HOLLAND FOODSERVICE,5499,Catering costs - provisions,8.87,0.00,8.87
Regeneration and Local Services,Direct Services,021324,Catering - Meadowfield,Supplies and Services,324117,Provisions E324,15-Jan-2019,000008239897011,JR HOLLAND FOODSERVICE,5499,Catering costs - provisions,35.21,0.00,35.21
Regeneration and Local Services,Direct Services,021324,Catering - Meadowfield,Supplies and Services,324117,Provisions E324,15-Jan-2019,000008239897017,JR HOLLAND FOODSERVICE,5499,Catering costs - provisions,10.35,0.00,10.35
Children and Young Peoples Services,Head of Childrens Social Care,085333,Coxhoe Satelite Home,Supplies and Services,324117,Provisions E324,15-Jan-2019,000008239897095,TESCO STORES 2916,5411,Catering costs - provisions,36.75,0.00,36.75
Regeneration and Local Services,Direct Services,021235,Catering - Wharton Park,Supplies and Services,324117,Provisions E324,15-Jan-2019,000008239897223,JR HOLLAND FOODSERVICE,5499,Catering costs - provisions,26.68,0.00,26.68
Children and Young Peoples Services,Head of Education and Skills,076001,Music Service,Supplies and Services,304403,Equipment and Materials,15-Jan-2019,000008239897253,COLBORNE TROPHIES LTD,5734,Other consumables,112.37,18.73,93.64
Regeneration and Local Services,Economic Development and Housing,030554,International Relations,Supplies and Services,384409,Miscellaneous Expenses,15-Jan-2019,000008239897303,WALKERGATE CAR PAR,7523,Educational visits,1.80,0.00,1.80
Children and Young Peoples Services,Head of Education and Skills,071801,Selby Cottage Childcare Centre,Supplies and Services,324117,Provisions E324,15-Jan-2019,000008244758351,ASDA GROCERIES ONLINE,5411,Catering costs - provisions,5.00,0.00,5.00
Children and Young Peoples Services,"Head of Early Help, Inclusion and Vulnerable Children",071440,Barnard Castle One Point Hub,Supplies and Services,304335,Equipment and Materials,15-Jan-2019,000008244758379,AMZN MKTP UK MB70J85M4,5942,ICT supplies etc,8.99,1.50,7.49
Regeneration and Local Services,Economic Development and Housing,030699,Business Growth and Innovation General,Supplies and Services,352001,Conference Expenses,15-Jan-2019,000008244758449,Z HOTELS CITY LTD,7011,Conferencesseminars fees etc,130.00,21.67,108.33
Regeneration and Local Services,Direct Services,021242,Catering - County Hall,Supplies and Services,324117,Provisions E324,15-Jan-2019,000008244759209,BATLEYS PERTH,5300,Catering costs - provisions,245.64,40.94,204.70
Regeneration and Local Services,Direct Services,021242,Catering - County Hall,Supplies and Services,324117,Provisions E324,15-Jan-2019,000008244759209 - 1,BATLEYS PERTH,5300,Catering costs - provisions,237.52,,237.52
Regeneration and Local Services,Culture & Sport,011060,Hardwick Park Catering,Supplies and Services,324117,Provisions E324,15-Jan-2019,000008244759495,BATLEYS PERTH,5300,Catering costs - provisions,67.98,11.33,56.65
Regeneration and Local Services,Culture & Sport,011060,Hardwick Park Catering,Supplies and Services,324117,Provisions E324,15-Jan-2019,000008244759495 - 1,BATLEYS PERTH,5300,Catering costs - provisions,97.22,,97.22
Regeneration and Local Services,Culture & Sport,054235,Bishop Auckland Town Hall Cafe,Supplies and Services,324117,Provisions E324,15-Jan-2019,000008244759981,BATLEYS PERTH,5300,Catering costs - provisions,137.70,22.95,114.75
Regeneration and Local Services,Culture & Sport,054235,Bishop Auckland Town Hall Cafe,Supplies and Services,324117,Provisions E324,15-Jan-2019,000008244759981 - 1,BATLEYS PERTH,5300,Catering costs - provisions,40.63,,40.63
Regeneration and Local Services,Direct Services,021324,Catering - Meadowfield,Supplies and Services,324117,Provisions E324,15-Jan-2019,000008244760011,BATLEYS PERTH,5300,Catering costs - provisions,61.32,10.22,51.10
Regeneration and Local Services,Direct Services,021324,Catering - Meadowfield,Supplies and Services,324117,Provisions E324,15-Jan-2019,000008244760011 - 1,BATLEYS PERTH,5300,Catering costs - provisions,102.33,,102.33
Children and Young Peoples Services,"Head of Early Help, Inclusion and Vulnerable Children",085957,Secure Management,Supplies and Services,328041,Clothing uniforms and laundry E328,15-Jan-2019,000008249713951,WWW.ARGOS.CO.UK,5310,Clothing uniforms and laundry,80.00,0.00,80.00
Children and Young Peoples Services,Head of Education and Skills,071801,Selby Cottage Childcare Centre,Supplies and Services,324117,Provisions E324,16-Jan-2019,000008244758341,TESCO STORES 2278,5411,Catering costs - provisions,78.66,0.00,78.66
Children and Young Peoples Services,Head of Education and Skills,071801,Selby Cottage Childcare Centre,Supplies and Services,328041,Clothing uniforms and laundry E328,16-Jan-2019,000008244758345,ARGOS LTD,5310,Clothing uniforms and laundry,25.00,0.00,25.00
Children and Young Peoples Services,Head of Education and Skills,071801,Selby Cottage Childcare Centre,Supplies and Services,312011,Newspapers books and periodicals E312,16-Jan-2019,000008244758353,Amazon.co.uk MB5546BI4,5969,Books-school library,15.80,0.00,15.80
Children and Young Peoples Services,Head of Education and Skills,054640,Durham Learning Resources,Supplies and Services,304245,Equipment and Materials,16-Jan-2019,000008244758359,AMZN Mktp UK MB0BH7H24,5942,Materials,22.45,0.00,22.45
Children and Young Peoples Services,Head of Education and Skills,054640,Durham Learning Resources,Supplies and Services,304245,Equipment and Materials,16-Jan-2019,000008244758363,AMZN Mktp UK MB3LJ2H64,5942,Materials,10.44,0.00,10.44
Resources,Digital and Customer Services,065304,Design & Print - Print,Supplies and Services,332047,Printing Stationery and Gen Off Exps,16-Jan-2019,000008244758369,AMZN MKTP UK MB3TD6H64,5942,Stationery,8.98,0.00,8.98
Resources,Legal & Democratic Services,067910,Democratic Representation,Supplies and Services,344033,Telephones,16-Jan-2019,000008244758375,AMZN MKTP UK MB5VP1HM4,5942,Telephones general-all costs,15.90,2.65,13.25
Children and Young Peoples Services,Head of Education and Skills,078100,Curric and Professional Development,Supplies and Services,344033,Telephones,16-Jan-2019,000008244758383,AMZN MKTP UK MB5XR3H14,5942,Telephones general-all costs,60.68,0.00,60.68
Resources,Digital and Customer Services,069010,Administration,Transport,235057,Public Transport,16-Jan-2019,000008244758389,Oyster Online,4112,Staff travelling,50.00,0.00,50.00
Resources,Digital and Customer Services,069010,Administration,Transport,235057,Public Transport,16-Jan-2019,000008244758391,Oyster Online,4112,Staff travelling,50.00,0.00,50.00
Resources,Digital and Customer Services,069010,Administration,Transport,235057,Public Transport,16-Jan-2019,000008244758397,Oyster Online,4112,Staff travelling,50.00,0.00,50.00
Regeneration and Local Services,Spatial Policy Planning Assets & Environment,031233,North Pennines - Pennine Peatlife,Supplies and Services,304403,Equipment and Materials,16-Jan-2019,000008244758411,YORKSURVEY.CO.UK,8911,Other consumables,164.76,27.46,137.30
Adult and Health Services,Head of Adults,055302,Durham Pathways,Supplies and Services,312011,Newspapers books and periodicals E312,16-Jan-2019,000008244758425,AMZN MKTP UK MB1PS2HL4,5942,Books-school library,4.01,0.00,4.01
Children and Young Peoples Services,Head of Childrens Social Care,085342,9 Cedar Drive Aycliffe,Supplies and Services,324117,Provisions E324,16-Jan-2019,000008244758433,TESCO STORES 2916,5411,Catering costs - provisions,24.79,0.00,24.79
Children and Young Peoples Services,Head of Childrens Social Care,085332,Middlestone Moor CU,Supplies and Services,324117,Provisions E324,16-Jan-2019,000008244758437,ASDA SUPERSTORE 4987,5411,Catering costs - provisions,18.48,0.00,18.48
Children and Young Peoples Services,Head of Childrens Social Care,085332,Middlestone Moor CU,Supplies and Services,324117,Provisions E324,16-Jan-2019,000008244758441,ASDA SUPERSTORE 4987,5411,Catering costs - provisions,15.00,0.00,15.00
Children and Young Peoples Services,Head of Childrens Social Care,085332,Middlestone Moor CU,Supplies and Services,308011,Furniture,16-Jan-2019,000008244758445,THE RANGE,5311,Furniture repair and replacement,36.69,0.00,36.69
Regeneration and Local Services,Economic Development and Housing,030699,Business Growth and Innovation General,Supplies and Services,304999,Equipment and Materials,16-Jan-2019,000008244758453,LINKEDIN-355 6076776,5968,Misc equipment tools and materials,34.44,0.00,34.44
Children and Young Peoples Services,Head of Childrens Social Care,085333,Coxhoe Satelite Home,Supplies and Services,304259,Equipment and Materials,16-Jan-2019,000008244758473,WILKO METRO CENTRE,5722,Equipment-purchase and rental,8.80,0.00,8.80
Children and Young Peoples Services,"Head of Early Help, Inclusion and Vulnerable Children",088104,BA/BC/Crook 0-19 Targeted Family Support,Supplies and Services,304649,Equipment and Materials,16-Jan-2019,000008244759169,AMZN Mktp UK MB70E9HG4,5942,Toys,3.99,0.00,3.99
Children and Young Peoples Services,"Head of Early Help, Inclusion and Vulnerable Children",088104,BA/BC/Crook 0-19 Targeted Family Support,Supplies and Services,304649,Equipment and Materials,16-Jan-2019,000008244759175,PAYPAL INCENTIVEPL,5331,Toys,27.00,4.50,22.50
Children and Young Peoples Services,"Head of Early Help, Inclusion and Vulnerable Children",088104,BA/BC/Crook 0-19 Targeted Family Support,Supplies and Services,304649,Equipment and Materials,16-Jan-2019,000008244759177,Amazon.co.uk MB7UA6BI4,5969,Toys,10.84,1.81,9.03
Regeneration and Local Services,Direct Services,021242,Catering - County Hall,Supplies and Services,324117,Provisions E324,16-Jan-2019,000008244759191,JR HOLLAND FOODSERVICE,5499,Catering costs - provisions,115.46,0.00,115.46
Regeneration and Local Services,Direct Services,021242,Catering - County Hall,Supplies and Services,324117,Provisions E324,16-Jan-2019,000008244759193,JR HOLLAND FOODSERVICE,5499,Catering costs - provisions,113.17,0.00,113.17
Regeneration and Local Services,Direct Services,021242,Catering - County Hall,Supplies and Services,324117,Provisions E324,16-Jan-2019,000008244759197,JR HOLLAND FOODSERVICE,5499,Catering costs - provisions,98.00,0.00,98.00
Regeneration and Local Services,Direct Services,021242,Catering - County Hall,Supplies and Services,324117,Provisions E324,16-Jan-2019,000008244759201,JR HOLLAND FOODSERVICE,5499,Catering costs - provisions,31.51,0.00,31.51
Regeneration and Local Services,Direct Services,021242,Catering - County Hall,Supplies and Services,324117,Provisions E324,16-Jan-2019,000008244759205,JR HOLLAND FOODSERVICE,5499,Catering costs - provisions,13.80,0.00,13.80
Regeneration and Local Services,Economic Development and Housing,030771,Durham Advance Flexible Fund,Supplies and Services,304259,Equipment and Materials,16-Jan-2019,000008244759223,SPORTSDIRECT 264,5941,Equipment-purchase and rental,37.99,0.00,37.99
Children and Young Peoples Services,Head of Education and Skills,070169,Durham SSP,Supplies and Services,384199,Miscellaneous Expenses,16-Jan-2019,000008244759231,AMZN Mktp UK MB1I52HA4,5942,Other hired and contracted services,7.99,0.00,7.99
Regeneration and Local Services,Direct Services,010367,C&G - South Grounds Maintenance,Supplies and Services,304221,Equipment and Materials,16-Jan-2019,000008244759237,R DEFTY,5200,Direct materials,5.20,0.00,5.20
Regeneration and Local Services,Culture & Sport,054812,Gala Theatre - Catering etc,Supplies and Services,324117,Provisions E324,16-Jan-2019,000008244759275,JR HOLLAND FOODSERVICE,5499,Catering costs - provisions,49.98,0.00,49.98
Children and Young Peoples Services,Head of Childrens Social Care,085352,Tow Law CU,Supplies and Services,304259,Equipment and Materials,16-Jan-2019,000008244759357,JD SPORTS PLC,5941,Equipment-purchase and rental,42.35,0.00,42.35
Children and Young Peoples Services,Childrens Services Operational Support,052986,CYPS - Locality and Operational Support,Supplies and Services,324117,Provisions E324,16-Jan-2019,000008244759361,ASDA SUPERSTORE 4987,5411,Catering costs - provisions,7.28,0.00,7.28
